SERVICE_CODE,ORGANISATION_UNIT,EXPENDITURE_CATEGORY,EXPENDITURE_DESCRIPTION,EXPENDITURE_CODE,NARRATIVE,DATE,TRANSATION_CODE,NET_AMOUNT,SUPPLIER_CODE,SUPPLIER_NAME,FROM_DATE,TO_DATE,FINANCIAL_PERIOD_YEAR
P&V,SOUTH AREA RANGERS,PREMISES RELATED EXPENDITURE,GM HORTICULTURE SCHEDULED,2143,Jul-23,09/08/2023 00:00,276286,144.87,GL0214,GLENDALE GROUNDS MANAGEMENT LIMITED,31/07/2023 00:00,27/08/2023 00:00,P05-2024
P&V,ABBEY GARDENS,PREMISES RELATED EXPENDITURE,GM HORTICULTURE SCHEDULED,2143,Jul-23,09/08/2023 00:00,276286,1974.21,GL0214,GLENDALE GROUNDS MANAGEMENT LIMITED,31/07/2023 00:00,27/08/2023 00:00,P05-2024
P&V,GUNPOWDER PARK,PREMISES RELATED EXPENDITURE,GM HORTICULTURE SCHEDULED,2143,Jul-23,09/08/2023 00:00,276286,259.15,GL0214,GLENDALE GROUNDS MANAGEMENT LIMITED,31/07/2023 00:00,27/08/2023 00:00,P05-2024
P&V,RIVER LEE COUNTRY PARK,PREMISES RELATED EXPENDITURE,GM HORTICULTURE SCHEDULED,2143,Jul-23,09/08/2023 00:00,276286,134.48,GL0214,GLENDALE GROUNDS MANAGEMENT LIMITED,31/07/2023 00:00,27/08/2023 00:00,P05-2024
,LEE VALLEY VELOPARK,PREMISES RELATED EXPENDITURE,GM HORTICULTURE SCHEDULED,2143,Jul-23,09/08/2023 00:00,276286,1152.74,GL0214,GLENDALE GROUNDS MANAGEMENT LIMITED,31/07/2023 00:00,27/08/2023 00:00,P05-2024
,LV HOCKEY AND TENNIS CENTRE,PREMISES RELATED EXPENDITURE,GM HORTICULTURE SCHEDULED,2143,Jul-23,09/08/2023 00:00,276286,1660.02,GL0214,GLENDALE GROUNDS MANAGEMENT LIMITED,31/07/2023 00:00,27/08/2023 00:00,P05-2024
P&V,THREE MILLS,PREMISES RELATED EXPENDITURE,GM HORTICULTURE SCHEDULED,2143,Jul-23,09/08/2023 00:00,276286,53.88,GL0214,GLENDALE GROUNDS MANAGEMENT LIMITED,31/07/2023 00:00,27/08/2023 00:00,P05-2024
,LEE VALLEY RIDING CENTRE,PREMISES RELATED EXPENDITURE,GM HORTICULTURE SCHEDULED,2143,Jul-23,09/08/2023 00:00,276286,13.47,GL0214,GLENDALE GROUNDS MANAGEMENT LIMITED,31/07/2023 00:00,27/08/2023 00:00,P05-2024
P&V,FORMER LV LIDO SITE,PREMISES RELATED EXPENDITURE,GM HORTICULTURE SCHEDULED,2143,Jul-23,09/08/2023 00:00,276286,12.85,GL0214,GLENDALE GROUNDS MANAGEMENT LIMITED,31/07/2023 00:00,27/08/2023 00:00,P05-2024
,LEE VALLEY WHITE WATER CENTRE,PREMISES RELATED EXPENDITURE,GM HORTICULTURE SCHEDULED,2143,Jul-23,09/08/2023 00:00,276286,29.42,GL0214,GLENDALE GROUNDS MANAGEMENT LIMITED,31/07/2023 00:00,27/08/2023 00:00,P05-2024
P&V,NORTH AREA RANGERS,PREMISES RELATED EXPENDITURE,GM ARBORICULTURE UNSCHEDULED,2146,P122986-SERVICE-Emergency Tree Works at Kings Weir,27/08/2023 00:00,276893,780,MU0030,P J MUSK TREES,31/07/2023 00:00,27/08/2023 00:00,P05-2024
P&V,SOUTH AREA RANGERS,PREMISES RELATED EXPENDITURE,GM ARBORICULTURE UNSCHEDULED,2146,P122705-SERVICE-Fallen Black Poplar at Leyton Marsh / South M,09/08/2023 00:00,276310,795,PA0222,PARKIN & PARKER TREE SPECIALISTS,31/07/2023 00:00,27/08/2023 00:00,P05-2024
P&V,RIVER LEE COUNTRY PARK,PREMISES RELATED EXPENDITURE,GM ARBORICULTURE UNSCHEDULED,2146,P120616-SERVICE-Tree Works at Trinity Lane Area,14/08/2023 00:00,271588,1845,VE0004,PRINCIPAL TREES LTD,31/07/2023 00:00,27/08/2023 00:00,P05-2024
P&V,RIVER LEE COUNTRY PARK,PREMISES RELATED EXPENDITURE,GM ARBORICULTURE UNSCHEDULED,2146,P120616-SERVICE-Tree Works at Trinity Lane Area,14/08/2023 00:00,276441,-1845,VE0004,PRINCIPAL TREES LTD,31/07/2023 00:00,27/08/2023 00:00,P05-2024
P&V,RIVER LEE COUNTRY PARK,PREMISES RELATED EXPENDITURE,GM ARBORICULTURE UNSCHEDULED,2146,P122497-SERVICE-Emergency Tree Works at Old Mill & Meadows,27/08/2023 00:00,277018,75,VE0004,PRINCIPAL TREES LTD,31/07/2023 00:00,27/08/2023 00:00,P05-2024
P&V,RIVER LEE COUNTRY PARK,PREMISES RELATED EXPENDITURE,GM ARBORICULTURE UNSCHEDULED,2146,P122578-SERVICE-Fallen Willow at Holyfield Lake,27/08/2023 00:00,277019,775,VE0004,PRINCIPAL TREES LTD,31/07/2023 00:00,27/08/2023 00:00,P05-2024
P&V,RIVER LEE COUNTRY PARK,PREMISES RELATED EXPENDITURE,GM ARBORICULTURE UNSCHEDULED,2146,"P122457-SERVICE-Emergency Tree Works at Boot Pit, Slipe Lane",27/08/2023 00:00,277020,450,VE0004,PRINCIPAL TREES LTD,31/07/2023 00:00,27/08/2023 00:00,P05-2024
P&V,RIVER LEE COUNTRY PARK,PREMISES RELATED EXPENDITURE,GM ARBORICULTURE UNSCHEDULED,2146,P122826-SERVICE-Emergency Tree Works at Fishers Green,27/08/2023 00:00,277021,60,VE0004,PRINCIPAL TREES LTD,31/07/2023 00:00,27/08/2023 00:00,P05-2024
P&V,SOUTH AREA RANGERS,PREMISES RELATED EXPENDITURE,GM NON MAIN CONT UNSCHEDULED,2147,P122272-SERVICE-Trough Connection - Walthamstow Marshes,22/08/2023 00:00,276694,1850,BU0090,BUSH WHEELER SERVICES LTD,31/07/2023 00:00,27/08/2023 00:00,P05-2024
,LEE VALLEY MARINA SPRINGFIELD,PREMISES RELATED EXPENDITURE,GENERAL WASTE,2211,P123012-SERVICE-General waste & recyling July to sept 23,22/08/2023 00:00,276465,1224.12,CL0037,VEOLIA ES (UK) LTD,31/07/2023 00:00,27/08/2023 00:00,P05-2024
,LEE VALLEY MARINA STANSTEAD,PREMISES RELATED EXPENDITURE,GENERAL WASTE,2211,P121961-SERVICE-annual bin pick ups for RH & SM,22/08/2023 00:00,276460,318.93,CL0037,VEOLIA ES (UK) LTD,31/07/2023 00:00,27/08/2023 00:00,P05-2024
,LEE VALLEY MARINA STANSTEAD,PREMISES RELATED EXPENDITURE,GENERAL WASTE,2211,P121961-SERVICE-annual bin pick ups for RH & SM,23/08/2023 00:00,276462,894.27,CL0037,VEOLIA ES (UK) LTD,31/07/2023 00:00,27/08/2023 00:00,P05-2024
,LEE VALLEY CAMPSITE,PREMISES RELATED EXPENDITURE,GENERAL WASTE,2211,P121610-SERVICE-Skip empty APRIL -JUN 23,22/08/2023 00:00,276463,930.06,CL0037,VEOLIA ES (UK) LTD,31/07/2023 00:00,27/08/2023 00:00,P05-2024
,LEE VALLEY CARAVAN PARK,PREMISES RELATED EXPENDITURE,GENERAL WASTE,2211,P122868-SERVICE-General waste collection,09/08/2023 00:00,276461,3073.58,CL0037,VEOLIA ES (UK) LTD,31/07/2023 00:00,27/08/2023 00:00,P05-2024
,LEE VALLEY CARAVAN PARK,PREMISES RELATED EXPENDITURE,GENERAL WASTE,2211,P122868-SERVICE-General waste collection,23/08/2023 00:00,276866,-125.14,CL0037,VEOLIA ES (UK) LTD,31/07/2023 00:00,27/08/2023 00:00,P05-2024
P&V,SOUTH AREA RANGERS,PREMISES RELATED EXPENDITURE,GENERAL WASTE,2211,P121714-SERVICE-Skip at WaterWorks Centre,09/08/2023 00:00,276447,323.4,GB0239,GBN SERVICES LTD,31/07/2023 00:00,27/08/2023 00:00,P05-2024
P&V,RIVER LEE COUNTRY PARK,PREMISES RELATED EXPENDITURE,GENERAL WASTE,2211,P123042-SERVICE-12yd General Rubbish Skip at Holyfield Hall F,27/08/2023 00:00,276911,646.8,GB0239,GBN SERVICES LTD,31/07/2023 00:00,27/08/2023 00:00,P05-2024
,LV LEISURE CENTRE CAMPSITE,PREMISES RELATED EXPENDITURE,GENERAL WASTE,2211,P122916-SERVICE-recycling empty,14/08/2023 00:00,276430,394.77,BY0049,BYWATERS (LEYTON) LTD,31/07/2023 00:00,27/08/2023 00:00,P05-2024
P&V,ABBEY GARDENS,PREMISES RELATED EXPENDITURE,HAZARDOUS WASTE DISPOSAL,2212,P122947-SERVICE-Asbestos Removable from Cornmill Meadows Car,22/08/2023 00:00,276833,450,JA0186,J & A ASBESTOS REMOVAL SPECIALISTS LTD,31/07/2023 00:00,27/08/2023 00:00,P05-2024
P&V,ABBEY GARDENS,PREMISES RELATED EXPENDITURE,FLYTIPPING/WHITE GOOD DISPOSAL,2213,P122494-SERVICE-Remove Flytip from Cornmill Meadows Car Park,08/08/2023 00:00,276262,496,GL0214,GLENDALE GROUNDS MANAGEMENT LIMITED,31/07/2023 00:00,27/08/2023 00:00,P05-2024
P&V,MYDDELTON HOUSE,PREMISES RELATED EXPENDITURE,RECYCLING,2214,P122866-SERVICE-Recycling,14/08/2023 00:00,276478,289.62,CA0341,F & R CAWLEY LTD,31/07/2023 00:00,27/08/2023 00:00,P05-2024
P&V,MYDDELTON HOUSE,PREMISES RELATED EXPENDITURE,BUILDING SERVICE AGREEMENTS,2220,P121870-SERVICE-Sanitary Services,27/08/2023 00:00,276864,89.64,PE0015,PHS GROUP PLC,31/07/2023 00:00,27/08/2023 00:00,P05-2024
,LEE VALLEY MARINA SPRINGFIELD,PREMISES RELATED EXPENDITURE,BUILDING SERVICE AGREEMENTS,2220,P123014-SERVICE-To carry out work to faulty fire system,22/08/2023 00:00,276636,407,AD0015,ADT FIRE & SECURITY PLC,31/07/2023 00:00,27/08/2023 00:00,P05-2024
,LEE VALLEY MARINA SPRINGFIELD,PREMISES RELATED EXPENDITURE,BUILDING SERVICE AGREEMENTS,2220,P122697-SERVICE-To carry out fire extinguisher service,22/08/2023 00:00,276846,679.26,TJ0009,T.J.FIRE & SECURITY,31/07/2023 00:00,27/08/2023 00:00,P05-2024
,LEE VALLEY MARINA SPRINGFIELD,PREMISES RELATED EXPENDITURE,BUILDING SERVICE AGREEMENTS,2220,"P121662-SERVICE-Sanitary Disposal,Dust Mats,Eco Shield",22/08/2023 00:00,276863,216.54,PE0015,PHS GROUP PLC,31/07/2023 00:00,27/08/2023 00:00,P05-2024
,LEE VALLEY MARINA STANSTEAD,PREMISES RELATED EXPENDITURE,BUILDING SERVICE AGREEMENTS,2220,P122678-SERVICE-chubb annual maintenance agreement w/s,08/08/2023 00:00,275812,194.27,CH0088,CHUBB FIRE & SECURITY,31/07/2023 00:00,27/08/2023 00:00,P05-2024
,LEE VALLEY WATERWORKS CENTRE,PREMISES RELATED EXPENDITURE,BUILDING SERVICE AGREEMENTS,2220,P122116-SERVICE-Light Repairs at Waterworks Centre,22/08/2023 00:00,276859,855.98,CO0199,EQUANS FM LIMITED (frmlyENGIE FM LIMITED),31/07/2023 00:00,27/08/2023 00:00,P05-2024
P&V,NORTH AREA RANGERS,PREMISES RELATED EXPENDITURE,BUILDING SERVICE AGREEMENTS,2220,P121023-SERVICE-Sanitary Disposal - Old Mill & Meadows Toilet,22/08/2023 00:00,276862,3.74,PE0015,PHS GROUP PLC,31/07/2023 00:00,27/08/2023 00:00,P05-2024
P&V,WILDLIFE DISCOVERY CENTRE,PREMISES RELATED EXPENDITURE,BUILDING SERVICE AGREEMENTS,2220,P122445-SERVICE-Lift Enginer Call Out,16/08/2023 00:00,276680,100,GA0448,GARTEC,31/07/2023 00:00,27/08/2023 00:00,P05-2024
P&V,GUNPOWDER PARK,PREMISES RELATED EXPENDITURE,BUILDING SERVICE AGREEMENTS,2220,P121073-SERVICE-Sanitary Disposal - Gunpowder Park - Public T,16/08/2023 00:00,276670,14.3,PE0015,PHS GROUP PLC,31/07/2023 00:00,27/08/2023 00:00,P05-2024
P&V,GUNPOWDER PARK,PREMISES RELATED EXPENDITURE,BUILDING SERVICE AGREEMENTS,2220,P119459-SERVICE-Building Servcie Agreement - Gunpowder Park,22/08/2023 00:00,276858,45.93,CO0199,EQUANS FM LIMITED (frmlyENGIE FM LIMITED),31/07/2023 00:00,27/08/2023 00:00,P05-2024
P&V,GUNPOWDER PARK,PREMISES RELATED EXPENDITURE,BUILDING SERVICE AGREEMENTS,2220,P119459-SERVICE-Building Servcie Agreement - Gunpowder Park,22/08/2023 00:00,276858,72.14,CO0199,EQUANS FM LIMITED (frmlyENGIE FM LIMITED),31/07/2023 00:00,27/08/2023 00:00,P05-2024
P&V,RIVER LEE COUNTRY PARK,PREMISES RELATED EXPENDITURE,BUILDING SERVICE AGREEMENTS,2220,P121074-SERVICE-Sanitary Disposal - Fishers Green Toilets,16/08/2023 00:00,276671,10.72,PE0015,PHS GROUP PLC,31/07/2023 00:00,27/08/2023 00:00,P05-2024
,LV LEISURE CENTRE CAMPSITE,PREMISES RELATED EXPENDITURE,BUILDING SERVICE AGREEMENTS,2220,P122832-SERVICE-Risk assessment review,08/08/2023 00:00,276244,738.38,KI0090,KINGFISHER ENVIRONMENTAL SERVICES LTD,31/07/2023 00:00,27/08/2023 00:00,P05-2024
,LV LEISURE CENTRE CAMPSITE,PREMISES RELATED EXPENDITURE,BUILDING SERVICE AGREEMENTS,2220,P122913-SERVICE-skips and compactor empty,14/08/2023 00:00,276464,1288.98,CL0037,VEOLIA ES (UK) LTD,31/07/2023 00:00,27/08/2023 00:00,P05-2024
,LV LEISURE CENTRE GOLF COURSE,PREMISES RELATED EXPENDITURE,BUILDING SERVICE AGREEMENTS,2220,P122795-SERVICE-OPM Removal Golf Course,14/08/2023 00:00,276509,4450,CO0752,COMPLETE TREE CARE LTD,31/07/2023 00:00,27/08/2023 00:00,P05-2024
,LV LEISURE CENTRE GOLF COURSE,PREMISES RELATED EXPENDITURE,BUILDING SERVICE AGREEMENTS,2220,P122795-SERVICE-OPM Removal Golf Course,15/08/2023 00:00,276510,-200,CO0752,COMPLETE TREE CARE LTD,31/07/2023 00:00,27/08/2023 00:00,P05-2024
CEO,RESIDENTIAL ACCOMMODATION,PREMISES RELATED EXPENDITURE,BUILDING REPAIRS & MAINTENANCE,2222,P122967-SERVICE-Marshgate Cottage - Replace Thermostat on Boi,27/08/2023 00:00,276669,110,WA0315,PAUL WALLACE ESTATE AGENTS,31/07/2023 00:00,27/08/2023 00:00,P05-2024
,LEE VALLEY MARINA SPRINGFIELD,PREMISES RELATED EXPENDITURE,BUILDING REPAIRS & MAINTENANCE,2222,P121218-SERVICE-To carry out service to workshop shutters,08/08/2023 00:00,276238,120,ES0392,ESSEX DOORS & SHUTTERS LTD,31/07/2023 00:00,27/08/2023 00:00,P05-2024
R&B,HUMAN RESOURCES,EMPLOYEES,TRAINING EXPENSES,1305,P122998-SERVICE-FLEXIBLE WORKING TRAINING 07/09/2023,23/08/2023 00:00,276861,115,AC0248,ACAS YORKSHIRE AND HUMBER,31/07/2023 00:00,27/08/2023 00:00,P05-2024
R&B,CORPORATE TRAINING,EMPLOYEES,TRAINING EXPENSES,1305,P122785-SERVICE-S ANDERSON FAW TRAINING30/08/2023,08/08/2023 00:00,276418,419,BR0069,BRITISH RED CROSS,31/07/2023 00:00,27/08/2023 00:00,P05-2024
R&B,CORPORATE TRAINING,EMPLOYEES,TRAINING EXPENSES,1305,P122884-SERVICE-E-Learning Courses,14/08/2023 00:00,276585,825,RI0053,RIGHT DIRECTIONS (MANAGEMENT) LTD,31/07/2023 00:00,27/08/2023 00:00,P05-2024
R&B,CORPORATE TRAINING,EMPLOYEES,TRAINING EXPENSES,1305,P122884-SERVICE-E-Learning Courses,14/08/2023 00:00,276586,225,RI0053,RIGHT DIRECTIONS (MANAGEMENT) LTD,31/07/2023 00:00,27/08/2023 00:00,P05-2024
R&B,CORPORATE TRAINING,EMPLOYEES,TRAINING EXPENSES,1305,P122999-SERVICE-DSO SAFEGUARDING TRAINING 1,23/08/2023 00:00,276867,65,HI0455,HIGH SPEED TRAINING LIMITED,31/07/2023 00:00,27/08/2023 00:00,P05-2024
P&V,SOUTH AREA RANGERS,EMPLOYEES,TRAINING EXPENSES,1305,P122786-SERVICE-Mink Dispatch Training,22/08/2023 00:00,276873,500,BR0406,THE BRITISH ASSOCIATION FOR SHOOTING,31/07/2023 00:00,27/08/2023 00:00,P05-2024
P&V,RIVER LEE COUNTRY PARK,EMPLOYEES,TRAINING EXPENSES,1305,P122786-SERVICE-Mink Dispatch Training,22/08/2023 00:00,276873,625,BR0406,THE BRITISH ASSOCIATION FOR SHOOTING,31/07/2023 00:00,27/08/2023 00:00,P05-2024
P&V,SPORT AND LEISURE,EMPLOYEES,TRAINING EXPENSES,1305,P122566-SERVICE-Contract Management Masterclasses,14/08/2023 00:00,276595,269,AP0492,APSE,31/07/2023 00:00,27/08/2023 00:00,P05-2024
R&B,NON DISTRIBUTED COSTS,EMPLOYEES,SUPERANNUATION ADDED YEARS,1310,Residual Liabilities,27/08/2023 00:00,276860,5276.2,LO0031,LONDON PENSIONS FUND AUTHORITY,31/07/2023 00:00,27/08/2023 00:00,P05-2024
,LEE VALLEY CAMPSITE,EMPLOYEES,CRB CHECKS,1330,HR-DBS check,08/08/2023 00:00,276468,18,DD0119,DUE DILIGENCE CHECKING LIMITED,31/07/2023 00:00,27/08/2023 00:00,P05-2024
,LEE VALLEY CAMPSITE,EMPLOYEES,CRB CHECKS,1330,ADMIN FEE,08/08/2023 00:00,276468,18,DD0119,DUE DILIGENCE CHECKING LIMITED,31/07/2023 00:00,27/08/2023 00:00,P05-2024
P&V,MYDDELTON HOUSE GARDENS,EMPLOYEES,CRB CHECKS,1330,HR-DBS check,08/08/2023 00:00,276468,36,DD0119,DUE DILIGENCE CHECKING LIMITED,31/07/2023 00:00,27/08/2023 00:00,P05-2024
P&V,MYDDELTON HOUSE GARDENS,EMPLOYEES,CRB CHECKS,1330,ADMIN FEE,08/08/2023 00:00,276468,36,DD0119,DUE DILIGENCE CHECKING LIMITED,31/07/2023 00:00,27/08/2023 00:00,P05-2024
P&V,MYDDLETON HSE HERITAGE CENTRE,EMPLOYEES,CRB CHECKS,1330,ADMIN FEE,08/08/2023 00:00,276468,18,DD0119,DUE DILIGENCE CHECKING LIMITED,31/07/2023 00:00,27/08/2023 00:00,P05-2024
P&V,MYDDLETON HSE HERITAGE CENTRE,EMPLOYEES,CRB CHECKS,1330,HR-DBS check,08/08/2023 00:00,276468,18,DD0119,DUE DILIGENCE CHECKING LIMITED,31/07/2023 00:00,27/08/2023 00:00,P05-2024
,LV LEISURE CENTRE CAMPSITE,EMPLOYEES,CRB CHECKS,1330,HR-DBS check,08/08/2023 00:00,276468,18,DD0119,DUE DILIGENCE CHECKING LIMITED,31/07/2023 00:00,27/08/2023 00:00,P05-2024
,LV LEISURE CENTRE CAMPSITE,EMPLOYEES,CRB CHECKS,1330,ADMIN FEE,08/08/2023 00:00,276468,18,DD0119,DUE DILIGENCE CHECKING LIMITED,31/07/2023 00:00,27/08/2023 00:00,P05-2024
,LV LEISURE CENTRE GOLF COURSE,EMPLOYEES,CRB CHECKS,1330,HR-DBS check,08/08/2023 00:00,276468,18,DD0119,DUE DILIGENCE CHECKING LIMITED,31/07/2023 00:00,27/08/2023 00:00,P05-2024
,LV LEISURE CENTRE GOLF COURSE,EMPLOYEES,CRB CHECKS,1330,ADMIN FEE,08/08/2023 00:00,276468,54,DD0119,DUE DILIGENCE CHECKING LIMITED,31/07/2023 00:00,27/08/2023 00:00,P05-2024
CEO,REGENERATION & PLANNING,EMPLOYEES,DRIVING LICENCE CHECKS,1335,C MARTIN DRIVING LICENCE CHECK,08/08/2023 00:00,276419,6.25,FI0288,FIRST ADVANTAGE EUROPE LTD,31/07/2023 00:00,27/08/2023 00:00,P05-2024
R&B,FINANCE,EMPLOYEES,DRIVING LICENCE CHECKS,1335,L READ DRIVING LICENCE CHECK,08/08/2023 00:00,276419,6.25,FI0288,FIRST ADVANTAGE EUROPE LTD,31/07/2023 00:00,27/08/2023 00:00,P05-2024
R&B,INFORMATION TECHNOLOGY,EMPLOYEES,DRIVING LICENCE CHECKS,1335,L BLUNDELL DRIVING LICENCE CHECK,08/08/2023 00:00,276419,6.25,FI0288,FIRST ADVANTAGE EUROPE LTD,31/07/2023 00:00,27/08/2023 00:00,P05-2024
P&V,OPERATIONAL MANAGEMENT (L&E),EMPLOYEES,DRIVING LICENCE CHECKS,1335,J HETHERINGTON DRIVING LICENCE CHECK,08/08/2023 00:00,276419,6.25,FI0288,FIRST ADVANTAGE EUROPE LTD,31/07/2023 00:00,27/08/2023 00:00,P05-2024
P&V,EVENTS MANAGEMENT (PR),EMPLOYEES,DRIVING LICENCE CHECKS,1335,S STONE DRIVING LICENCE CHECK,08/08/2023 00:00,276419,6.25,FI0288,FIRST ADVANTAGE EUROPE LTD,31/07/2023 00:00,27/08/2023 00:00,P05-2024
R&B,CORPORATE TRAINING,EMPLOYEES,APPRENTICE LEVY,1390,Paye,16/08/2023 00:00,276628,920,HM0368,HMRC,31/07/2023 00:00,27/08/2023 00:00,P05-2024
,LEE VALLEY RIDING CENTRE,PREMISES RELATED EXPENDITURE,SCHEDULED GROUND MAINTENANCE,2111,CREDIT NOTE REC'D 276616,16/08/2023 00:00,276261,433.64,GL0214,GLENDALE GROUNDS MANAGEMENT LIMITED,31/07/2023 00:00,27/08/2023 00:00,P05-2024
,LEE VALLEY RIDING CENTRE,PREMISES RELATED EXPENDITURE,SCHEDULED GROUND MAINTENANCE,2111,Refer to Comp Ref 276261,16/08/2023 00:00,276616,-433.64,GL0214,GLENDALE GROUNDS MANAGEMENT LIMITED,31/07/2023 00:00,27/08/2023 00:00,P05-2024
CEO,LVLC SERVICE CHARGE,PREMISES RELATED EXPENDITURE,SCHEDULED GROUND MAINTENANCE,2111,P120577-SERVICE-LVLC Willow Bank Creation,27/08/2023 00:00,270055,822.5,GL0214,GLENDALE GROUNDS MANAGEMENT LIMITED,31/07/2023 00:00,27/08/2023 00:00,P05-2024
CEO,LVLC SERVICE CHARGE,PREMISES RELATED EXPENDITURE,SCHEDULED GROUND MAINTENANCE,2111,P120915-SERVICE-Meridian Way - Cut Back,08/08/2023 00:00,276264,382.26,GL0214,GLENDALE GROUNDS MANAGEMENT LIMITED,31/07/2023 00:00,27/08/2023 00:00,P05-2024
CEO,LVLC SERVICE CHARGE,PREMISES RELATED EXPENDITURE,SCHEDULED GROUND MAINTENANCE,2111,P120918-SERVICE-LVLV Enterance Cut Back,08/08/2023 00:00,276265,422.84,GL0214,GLENDALE GROUNDS MANAGEMENT LIMITED,31/07/2023 00:00,27/08/2023 00:00,P05-2024
CEO,LVLC SERVICE CHARGE,PREMISES RELATED EXPENDITURE,SCHEDULED GROUND MAINTENANCE,2111,Jul-23,09/08/2023 00:00,276286,110.27,GL0214,GLENDALE GROUNDS MANAGEMENT LIMITED,31/07/2023 00:00,27/08/2023 00:00,P05-2024
CEO,LVLC SERVICE CHARGE,PREMISES RELATED EXPENDITURE,SCHEDULED GROUND MAINTENANCE,2111,Jul-23,09/08/2023 00:00,276286,3023.46,GL0214,GLENDALE GROUNDS MANAGEMENT LIMITED,31/07/2023 00:00,27/08/2023 00:00,P05-2024
CEO,LVLC SERVICE CHARGE,PREMISES RELATED EXPENDITURE,SCHEDULED GROUND MAINTENANCE,2111,P120577-SERVICE-LVLC Willow Bank Creation,27/08/2023 00:00,276840,-822.5,GL0214,GLENDALE GROUNDS MANAGEMENT LIMITED,31/07/2023 00:00,27/08/2023 00:00,P05-2024
,LEE VALLEY MARINA SPRINGFIELD,PREMISES RELATED EXPENDITURE,UNSCHEDULED GROUND MAINTENANCE,2112,P122540-SERVICE-Lift and reduce trees and hedgerow by,23/08/2023 00:00,276438,625,PA0222,PARKIN & PARKER TREE SPECIALISTS,31/07/2023 00:00,27/08/2023 00:00,P05-2024
,LEE VALLEY MARINA SPRINGFIELD,PREMISES RELATED EXPENDITURE,UNSCHEDULED GROUND MAINTENANCE,2112,P122540-SERVICE-additional work to remove weeds,23/08/2023 00:00,276438,25,PA0222,PARKIN & PARKER TREE SPECIALISTS,31/07/2023 00:00,27/08/2023 00:00,P05-2024
,LEE VALLEY MARINA SPRINGFIELD,PREMISES RELATED EXPENDITURE,UNSCHEDULED GROUND MAINTENANCE,2112,P122538-SERVICE-Cut back along pathway by bungalow and bridge,23/08/2023 00:00,276439,625,PA0222,PARKIN & PARKER TREE SPECIALISTS,31/07/2023 00:00,27/08/2023 00:00,P05-2024
,LEE VALLEY MARINA SPRINGFIELD,PREMISES RELATED EXPENDITURE,UNSCHEDULED GROUND MAINTENANCE,2112,P122538-SERVICE-extra cost to clear weegs,23/08/2023 00:00,276439,25,PA0222,PARKIN & PARKER TREE SPECIALISTS,31/07/2023 00:00,27/08/2023 00:00,P05-2024
P&V,MYDDELTON HOUSE,PREMISES RELATED EXPENDITURE,CONTRACT CLEANING,2120,P121875-SERVICE-Myddelton House Cleaning,27/08/2023 00:00,276914,1681.68,BR0632,BRITANNIA SERVICES GROUP LTD,31/07/2023 00:00,27/08/2023 00:00,P05-2024
,LEE VALLEY WATERWORKS CENTRE,PREMISES RELATED EXPENDITURE,CONTRACT CLEANING,2120,P122450-SERVICE-Cleaning WaterWorks Centre,08/08/2023 00:00,276225,776.16,BR0632,BRITANNIA SERVICES GROUP LTD,31/07/2023 00:00,27/08/2023 00:00,P05-2024
,LEE VALLEY WATERWORKS CENTRE,PREMISES RELATED EXPENDITURE,CONTRACT CLEANING,2120,P123091-SERVICE-Cleaning WaterWorks Centre,27/08/2023 00:00,276916,776.16,BR0632,BRITANNIA SERVICES GROUP LTD,31/07/2023 00:00,27/08/2023 00:00,P05-2024
,LEE VALLEY CAMPSITE,PREMISES RELATED EXPENDITURE,CONTRACT CLEANING,2120,P122513-SERVICE-Site cleaninh JULY 23,22/08/2023 00:00,276446,3907,LI0305,LIMPIAR CLEANING,31/07/2023 00:00,27/08/2023 00:00,P05-2024
,LEE VALLEY CAMPSITE,PREMISES RELATED EXPENDITURE,CONTRACT CLEANING,2120,P122615-SERVICE-Aug - Sept 23,22/08/2023 00:00,276467,93.56,IN0012,INITIAL WASHROOM HYGIENE,31/07/2023 00:00,27/08/2023 00:00,P05-2024
,LEE VALLEY CARAVAN PARK,PREMISES RELATED EXPENDITURE,CONTRACT CLEANING,2120,P122867-SERVICE-July cleaning,14/08/2023 00:00,276443,5198,LI0305,LIMPIAR CLEANING,31/07/2023 00:00,27/08/2023 00:00,P05-2024
,LEE VALLEY CARAVAN PARK,PREMISES RELATED EXPENDITURE,CONTRACT CLEANING,2120,P123030-SERVICE-Washroom hygiene,23/08/2023 00:00,276848,98.87,IN0012,INITIAL WASHROOM HYGIENE,31/07/2023 00:00,27/08/2023 00:00,P05-2024
P&V,WILDLIFE DISCOVERY CENTRE,PREMISES RELATED EXPENDITURE,CONTRACT CLEANING,2120,P122249-SERVICE-Cleaning - Ranger Office / Wildlife Discovery,14/08/2023 00:00,276224,388.08,BR0632,BRITANNIA SERVICES GROUP LTD,31/07/2023 00:00,27/08/2023 00:00,P05-2024
P&V,GUNPOWDER PARK,PREMISES RELATED EXPENDITURE,CONTRACT CLEANING,2120,Jul-23,09/08/2023 00:00,276286,552.26,GL0214,GLENDALE GROUNDS MANAGEMENT LIMITED,31/07/2023 00:00,27/08/2023 00:00,P05-2024
P&V,RIVER LEE COUNTRY PARK,PREMISES RELATED EXPENDITURE,CONTRACT CLEANING,2120,Jul-23,09/08/2023 00:00,276286,1104.51,GL0214,GLENDALE GROUNDS MANAGEMENT LIMITED,31/07/2023 00:00,27/08/2023 00:00,P05-2024
P&V,RIVER LEE COUNTRY PARK,PREMISES RELATED EXPENDITURE,CONTRACT CLEANING,2120,P122858-SERVICE-Cleaning - Ranger Office / Wildlife Discovery,27/08/2023 00:00,276915,388.08,BR0632,BRITANNIA SERVICES GROUP LTD,31/07/2023 00:00,27/08/2023 00:00,P05-2024
,LV LEISURE CENTRE CAMPSITE,PREMISES RELATED EXPENDITURE,CONTRACT CLEANING,2120,P122911-SERVICE-site cleaning and accomodations,14/08/2023 00:00,276445,3822,LI0305,LIMPIAR CLEANING,31/07/2023 00:00,27/08/2023 00:00,P05-2024
P&V,MYDDLETON HSE HERITAGE CENTRE,PREMISES RELATED EXPENDITURE,CLEANING CONTRACT,2121,P121876-SERVICE-Tea Room Cleaning,27/08/2023 00:00,276913,840.84,BR0632,BRITANNIA SERVICES GROUP LTD,31/07/2023 00:00,27/08/2023 00:00,P05-2024
,LEE VALLEY CAMPSITE,PREMISES RELATED EXPENDITURE,LINEN SERVICE,2122,P122851-SERVICE-Monthly Linen services,08/08/2023 00:00,276195,582.86,JO0168,JOHNSONS STALBRIDGE LINEN SERVICES,31/07/2023 00:00,27/08/2023 00:00,P05-2024
,LEE VALLEY CAMPSITE,PREMISES RELATED EXPENDITURE,LINEN SERVICE,2122,P122851-SERVICE-Monthly Linen services,27/08/2023 00:00,277003,899.88,JO0168,JOHNSONS STALBRIDGE LINEN SERVICES,31/07/2023 00:00,27/08/2023 00:00,P05-2024
,LEE VALLEY CARAVAN PARK,PREMISES RELATED EXPENDITURE,LINEN SERVICE,2122,P123074-SERVICE-Linen Service,27/08/2023 00:00,277004,955.99,JO0168,JOHNSONS STALBRIDGE LINEN SERVICES,31/07/2023 00:00,27/08/2023 00:00,P05-2024
,LEE VALLEY MARINA STANSTEAD,PREMISES RELATED EXPENDITURE,GM MAIN CONTRACT SCHEDULED,2141,Jul-23,09/08/2023 00:00,276286,645.18,GL0214,GLENDALE GROUNDS MANAGEMENT LIMITED,31/07/2023 00:00,27/08/2023 00:00,P05-2024
,LEE VALLEY WATERWORKS CENTRE,PREMISES RELATED EXPENDITURE,GM MAIN CONTRACT SCHEDULED,2141,Jul-23,09/08/2023 00:00,276286,606.12,GL0214,GLENDALE GROUNDS MANAGEMENT LIMITED,31/07/2023 00:00,27/08/2023 00:00,P05-2024
,LEE VALLEY WATERWORKS CENTRE,PREMISES RELATED EXPENDITURE,GM MAIN CONTRACT SCHEDULED,2141,Jul-23,09/08/2023 00:00,276286,265.73,GL0214,GLENDALE GROUNDS MANAGEMENT LIMITED,31/07/2023 00:00,27/08/2023 00:00,P05-2024
P&V,LEE VALLEY FARM HOLYFIELDHALL,PREMISES RELATED EXPENDITURE,GM MAIN CONTRACT SCHEDULED,2141,Jul-23,09/08/2023 00:00,276286,149.68,GL0214,GLENDALE GROUNDS MANAGEMENT LIMITED,31/07/2023 00:00,27/08/2023 00:00,P05-2024
P&V,EAST INDIA DOCK AND BOW CREEK,PREMISES RELATED EXPENDITURE,GM MAIN CONTRACT SCHEDULED,2141,Jul-23,09/08/2023 00:00,276286,949.09,GL0214,GLENDALE GROUNDS MANAGEMENT LIMITED,31/07/2023 00:00,27/08/2023 00:00,P05-2024
P&V,EAST INDIA DOCK AND BOW CREEK,PREMISES RELATED EXPENDITURE,GM MAIN CONTRACT SCHEDULED,2141,Jul-23,09/08/2023 00:00,276286,849.88,GL0214,GLENDALE GROUNDS MANAGEMENT LIMITED,31/07/2023 00:00,27/08/2023 00:00,P05-2024
P&V,NORTH AREA RANGERS,PREMISES RELATED EXPENDITURE,GM MAIN CONTRACT SCHEDULED,2141,Jul-23,09/08/2023 00:00,276286,5667.65,GL0214,GLENDALE GROUNDS MANAGEMENT LIMITED,31/07/2023 00:00,27/08/2023 00:00,P05-2024
P&V,SOUTH AREA RANGERS,PREMISES RELATED EXPENDITURE,GM MAIN CONTRACT SCHEDULED,2141,Jul-23,09/08/2023 00:00,276286,379.63,GL0214,GLENDALE GROUNDS MANAGEMENT LIMITED,31/07/2023 00:00,27/08/2023 00:00,P05-2024
P&V,SOUTH AREA RANGERS,PREMISES RELATED EXPENDITURE,GM MAIN CONTRACT SCHEDULED,2141,Jul-23,09/08/2023 00:00,276286,6555.49,GL0214,GLENDALE GROUNDS MANAGEMENT LIMITED,31/07/2023 00:00,27/08/2023 00:00,P05-2024
P&V,ABBEY GARDENS,PREMISES RELATED EXPENDITURE,GM MAIN CONTRACT SCHEDULED,2141,Jul-23,09/08/2023 00:00,276286,2895.18,GL0214,GLENDALE GROUNDS MANAGEMENT LIMITED,31/07/2023 00:00,27/08/2023 00:00,P05-2024
P&V,GUNPOWDER PARK,PREMISES RELATED EXPENDITURE,GM MAIN CONTRACT SCHEDULED,2141,Jul-23,09/08/2023 00:00,276286,2850.51,GL0214,GLENDALE GROUNDS MANAGEMENT LIMITED,31/07/2023 00:00,27/08/2023 00:00,P05-2024
P&V,RIVER LEE COUNTRY PARK,PREMISES RELATED EXPENDITURE,GM MAIN CONTRACT SCHEDULED,2141,Jul-23,09/08/2023 00:00,276286,16669.47,GL0214,GLENDALE GROUNDS MANAGEMENT LIMITED,31/07/2023 00:00,27/08/2023 00:00,P05-2024
P&V,RIVER LEE COUNTRY PARK,PREMISES RELATED EXPENDITURE,GM MAIN CONTRACT SCHEDULED,2141,Jul-23,09/08/2023 00:00,276286,189.82,GL0214,GLENDALE GROUNDS MANAGEMENT LIMITED,31/07/2023 00:00,27/08/2023 00:00,P05-2024
,LEE VALLEY VELOPARK,PREMISES RELATED EXPENDITURE,GM MAIN CONTRACT SCHEDULED,2141,Jul-23,09/08/2023 00:00,276286,7243.95,GL0214,GLENDALE GROUNDS MANAGEMENT LIMITED,31/07/2023 00:00,27/08/2023 00:00,P05-2024
,LV HOCKEY AND TENNIS CENTRE,PREMISES RELATED EXPENDITURE,GM MAIN CONTRACT SCHEDULED,2141,Jul-23,09/08/2023 00:00,276286,4442.52,GL0214,GLENDALE GROUNDS MANAGEMENT LIMITED,31/07/2023 00:00,27/08/2023 00:00,P05-2024
P&V,THREE MILLS,PREMISES RELATED EXPENDITURE,GM MAIN CONTRACT SCHEDULED,2141,Jul-23,09/08/2023 00:00,276286,1623.64,GL0214,GLENDALE GROUNDS MANAGEMENT LIMITED,31/07/2023 00:00,27/08/2023 00:00,P05-2024
,LEE VALLEY RIDING CENTRE,PREMISES RELATED EXPENDITURE,GM MAIN CONTRACT SCHEDULED,2141,Jul-23,09/08/2023 00:00,276286,563.06,GL0214,GLENDALE GROUNDS MANAGEMENT LIMITED,31/07/2023 00:00,27/08/2023 00:00,P05-2024
,LEE VALLEY ICE CENTRE,PREMISES RELATED EXPENDITURE,GM MAIN CONTRACT SCHEDULED,2141,Jul-23,09/08/2023 00:00,276286,907.11,GL0214,GLENDALE GROUNDS MANAGEMENT LIMITED,31/07/2023 00:00,27/08/2023 00:00,P05-2024
P&V,FORMER LV LIDO SITE,PREMISES RELATED EXPENDITURE,GM MAIN CONTRACT SCHEDULED,2141,Jul-23,09/08/2023 00:00,276286,1112.21,GL0214,GLENDALE GROUNDS MANAGEMENT LIMITED,31/07/2023 00:00,27/08/2023 00:00,P05-2024
,LEE VALLEY ATHLETICS CENTRE,PREMISES RELATED EXPENDITURE,GM MAIN CONTRACT SCHEDULED,2141,Jul-23,09/08/2023 00:00,276286,672.8,GL0214,GLENDALE GROUNDS MANAGEMENT LIMITED,31/07/2023 00:00,27/08/2023 00:00,P05-2024
,LEE VALLEY WHITE WATER CENTRE,PREMISES RELATED EXPENDITURE,GM MAIN CONTRACT SCHEDULED,2141,Jul-23,09/08/2023 00:00,276286,3497.85,GL0214,GLENDALE GROUNDS MANAGEMENT LIMITED,31/07/2023 00:00,27/08/2023 00:00,P05-2024
P&V,NORTH AREA RANGERS,PREMISES RELATED EXPENDITURE,GM MAIN CONTRACT UNSCHEDULED,2142,Jul-23,09/08/2023 00:00,276286,1735.57,GL0214,GLENDALE GROUNDS MANAGEMENT LIMITED,31/07/2023 00:00,27/08/2023 00:00,P05-2024
P&V,SOUTH AREA RANGERS,PREMISES RELATED EXPENDITURE,GM MAIN CONTRACT UNSCHEDULED,2142,Jul-23,09/08/2023 00:00,276286,1301.67,GL0214,GLENDALE GROUNDS MANAGEMENT LIMITED,31/07/2023 00:00,27/08/2023 00:00,P05-2024
,LEE VALLEY WATERWORKS CENTRE,PREMISES RELATED EXPENDITURE,GM HORTICULTURE SCHEDULED,2143,Jul-23,09/08/2023 00:00,276286,169.95,GL0214,GLENDALE GROUNDS MANAGEMENT LIMITED,31/07/2023 00:00,27/08/2023 00:00,P05-2024
P&V,NORTH AREA RANGERS,PREMISES RELATED EXPENDITURE,GM HORTICULTURE SCHEDULED,2143,Jul-23,09/08/2023 00:00,276286,250.51,GL0214,GLENDALE GROUNDS MANAGEMENT LIMITED,31/07/2023 00:00,27/08/2023 00:00,P05-2024
,LEE VALLEY MARINA SPRINGFIELD,PREMISES RELATED EXPENDITURE,BUILDING REPAIRS & MAINTENANCE,2222,P122642-SERVICE-New control panel coppermill gate quote,22/08/2023 00:00,276423,630,DE0013,DENNIS SECURITY CENTRE,31/07/2023 00:00,27/08/2023 00:00,P05-2024
,LEE VALLEY MARINA SPRINGFIELD,PREMISES RELATED EXPENDITURE,BUILDING REPAIRS & MAINTENANCE,2222,P122642-SERVICE-Replacement lock block coppermill gate,22/08/2023 00:00,276423,210,DE0013,DENNIS SECURITY CENTRE,31/07/2023 00:00,27/08/2023 00:00,P05-2024
,LEE VALLEY MARINA SPRINGFIELD,PREMISES RELATED EXPENDITURE,BUILDING REPAIRS & MAINTENANCE,2222,P122676-SERVICE-Coppermill gate hinge replacement,22/08/2023 00:00,276424,250,DE0013,DENNIS SECURITY CENTRE,31/07/2023 00:00,27/08/2023 00:00,P05-2024
,LEE VALLEY MARINA STANSTEAD,PREMISES RELATED EXPENDITURE,BUILDING REPAIRS & MAINTENANCE,2222,"P122679-SERVICE-replace sockets, replace rcd change meter",08/08/2023 00:00,275986,219,BR0018,BRADSHAW ELECTRICAL LIMITED,31/07/2023 00:00,27/08/2023 00:00,P05-2024
,LEE VALLEY MARINA STANSTEAD,PREMISES RELATED EXPENDITURE,BUILDING REPAIRS & MAINTENANCE,2222,P122680-SERVICE-reset meters to hook up current price,08/08/2023 00:00,275987,496,BR0018,BRADSHAW ELECTRICAL LIMITED,31/07/2023 00:00,27/08/2023 00:00,P05-2024
P&V,NORTH AREA RANGERS,PREMISES RELATED EXPENDITURE,BUILDING REPAIRS & MAINTENANCE,2222,P121893-SERVICE-Electrical Repairs at Rye House Gatehouse,27/08/2023 00:00,276815,265,BR0018,BRADSHAW ELECTRICAL LIMITED,31/07/2023 00:00,27/08/2023 00:00,P05-2024
P&V,WILDLIFE DISCOVERY CENTRE,PREMISES RELATED EXPENDITURE,BUILDING REPAIRS & MAINTENANCE,2222,P122160-SERVICE-Lift Call Out at Wildlife Discovery Centre,16/08/2023 00:00,276680,106,GA0448,GARTEC,31/07/2023 00:00,27/08/2023 00:00,P05-2024
P&V,GUNPOWDER PARK,PREMISES RELATED EXPENDITURE,BUILDING REPAIRS & MAINTENANCE,2222,P122201-SERVICE-Local Disinfection and Microbiological Re-sam,15/08/2023 00:00,276617,175.38,CO0199,EQUANS FM LIMITED (frmlyENGIE FM LIMITED),31/07/2023 00:00,27/08/2023 00:00,P05-2024
CEO,LVLC SERVICE CHARGE,PREMISES RELATED EXPENDITURE,BUILDING REPAIRS & MAINTENANCE,2222,P121726-SERVICE-Contract Sweep,14/08/2023 00:00,276398,150,SE0374,SELECT SWEEPER HIRE LTD,31/07/2023 00:00,27/08/2023 00:00,P05-2024
,LEE VALLEY WATERWORKS CENTRE,SUPPLIES AND SERVICES,FENCES/GATES ETC.,2231,P122636-SERVICE-Replace Fence at Wildlife Garden Waterworks,08/08/2023 00:00,276320,600,JO0019,R G JOYCE,31/07/2023 00:00,27/08/2023 00:00,P05-2024
P&V,SOUTH AREA RANGERS,SUPPLIES AND SERVICES,FENCES/GATES ETC.,2231,P122714-SERVICE-Supply and Install,27/08/2023 00:00,277010,1663,LI0483,LITTLEWOOD FENCING LTD,31/07/2023 00:00,27/08/2023 00:00,P05-2024
P&V,RIVER LEE COUNTRY PARK,SUPPLIES AND SERVICES,FENCES/GATES ETC.,2231,P122742-SERVICE-70x Posts for Post and Rail Fencing,22/08/2023 00:00,276433,685.3,TI0164,414 TIMBER & FENCING,31/07/2023 00:00,27/08/2023 00:00,P05-2024
P&V,RIVER LEE COUNTRY PARK,SUPPLIES AND SERVICES,FENCES/GATES ETC.,2231,P122741-SERVICE-50 Fast Set Postfix Plastic Bags 20Kg,14/08/2023 00:00,276634,397.5,JE0011,SAINT-GOBAIN BUILDING DISTRIBUTION,31/07/2023 00:00,27/08/2023 00:00,P05-2024
P&V,RIVER LEE COUNTRY PARK,SUPPLIES AND SERVICES,PARK SIGNS AND BOARDS,2236,P122808-SERVICE-15 x Swimming Panels,22/08/2023 00:00,276679,975,SI0024,SIGNS EXPRESS (HARLOW),31/07/2023 00:00,27/08/2023 00:00,P05-2024
P&V,RIVER LEE COUNTRY PARK,SUPPLIES AND SERVICES,PARK SIGNS AND BOARDS,2236,P122857-SERVICE-Height Barrier Repairs Pindar Car Park,27/08/2023 00:00,277017,145,BA0658,BASE FABRICATIONS LTD,31/07/2023 00:00,27/08/2023 00:00,P05-2024
P&V,RIVER LEE COUNTRY PARK,SUPPLIES AND SERVICES,PARK SIGNS AND BOARDS,2236,P122857-SERVICE-Height Barrier Repairs Sawmill Entrance,27/08/2023 00:00,277017,450,BA0658,BASE FABRICATIONS LTD,31/07/2023 00:00,27/08/2023 00:00,P05-2024
CEO,COMMERCIAL ACCOMMODATION,PREMISES RELATED EXPENDITURE,EAST HALE ALLOTMENTS,2261,P122046-SERVICE-Grass Cutting,08/08/2023 00:00,276263,809.16,GL0214,GLENDALE GROUNDS MANAGEMENT LIMITED,31/07/2023 00:00,27/08/2023 00:00,P05-2024
CEO,COMMERCIAL ACCOMMODATION,PREMISES RELATED EXPENDITURE,EAST HALE ALLOTMENTS,2261,P121887-SERVICE-Allotment Bins,14/08/2023 00:00,276466,234.1,CL0037,VEOLIA ES (UK) LTD,31/07/2023 00:00,27/08/2023 00:00,P05-2024
P&V,MYDDELTON HOUSE,PREMISES RELATED EXPENDITURE,ENERGY COSTS (ELECTRICITY),2332,MD Hse-ELECTRIC SUPPLY-July23,16/08/2023 00:00,276654,2510.46,KE0007,KENT COUNTY COUNCIL (KCS),31/07/2023 00:00,27/08/2023 00:00,P05-2024
CEO,RESIDENTIAL ACCOMMODATION,PREMISES RELATED EXPENDITURE,ENERGY COSTS (ELECTRICITY),2332,E-ON NEXT ENERGY LTD,08/08/2023 00:00,276247,7.22,EO0419,E-ON NEXT ENERGY LTD,31/07/2023 00:00,27/08/2023 00:00,P05-2024
CEO,RESIDENTIAL ACCOMMODATION,PREMISES RELATED EXPENDITURE,ENERGY COSTS (ELECTRICITY),2332,E-ON NEXT ENERGY LTD,14/08/2023 00:00,276400,90.22,EO0420,E-ON NEXT ENERGY LTD,31/07/2023 00:00,27/08/2023 00:00,P05-2024
CEO,RESIDENTIAL ACCOMMODATION,PREMISES RELATED EXPENDITURE,ENERGY COSTS (ELECTRICITY),2332,Jul-23,14/08/2023 00:00,276442,31,EO0398,E-ON NEXT ENERGY LTD,31/07/2023 00:00,27/08/2023 00:00,P05-2024
CEO,RESIDENTIAL ACCOMMODATION,PREMISES RELATED EXPENDITURE,ENERGY COSTS (ELECTRICITY),2332,E-ON NEXT ENERGY LTD,21/08/2023 00:00,276637,17.44,EO0419,E-ON NEXT ENERGY LTD,31/07/2023 00:00,27/08/2023 00:00,P05-2024
,LEE VALLEY MARINA SPRINGFIELD,PREMISES RELATED EXPENDITURE,ENERGY COSTS (ELECTRICITY),2332,Springfield-ELECTRIC SUPPLY-July23,21/08/2023 00:00,276658,3095.23,KE0007,KENT COUNTY COUNCIL (KCS),31/07/2023 00:00,27/08/2023 00:00,P05-2024
,LEE VALLEY WATERWORKS CENTRE,PREMISES RELATED EXPENDITURE,ENERGY COSTS (ELECTRICITY),2332,waterworks-Electric supply July23,27/08/2023 00:00,276757,528.94,NP0123,NPOWER LIMITED,31/07/2023 00:00,27/08/2023 00:00,P05-2024
,LEE VALLEY CAMPSITE,PREMISES RELATED EXPENDITURE,ENERGY COSTS (ELECTRICITY),2332,Sewardstone-ELECTRIC SUPPLY-July23,21/08/2023 00:00,276656,3010.64,KE0007,KENT COUNTY COUNCIL (KCS),31/07/2023 00:00,27/08/2023 00:00,P05-2024
,LEE VALLEY CAMPSITE,PREMISES RELATED EXPENDITURE,ENERGY COSTS (ELECTRICITY),2332,Sewardstone-ELECTRIC SUPPLY-July23,21/08/2023 00:00,276657,1892,KE0007,KENT COUNTY COUNCIL (KCS),31/07/2023 00:00,27/08/2023 00:00,P05-2024
,LEE VALLEY CARAVAN PARK,PREMISES RELATED EXPENDITURE,ENERGY COSTS (ELECTRICITY),2332,DW-ELECTRIC SUPPLY-July23,21/08/2023 00:00,276655,9574.48,KE0007,KENT COUNTY COUNCIL (KCS),31/07/2023 00:00,27/08/2023 00:00,P05-2024
P&V,EAST INDIA DOCK AND BOW CREEK,PREMISES RELATED EXPENDITURE,ENERGY COSTS (ELECTRICITY),2332,BOW CREEK-ELECTRIC SUPPLY-Nov22-Jan23,27/08/2023 00:00,276907,254.02,KE0007,KENT COUNTY COUNCIL (KCS),31/07/2023 00:00,27/08/2023 00:00,P05-2024
P&V,EAST INDIA DOCK AND BOW CREEK,PREMISES RELATED EXPENDITURE,ENERGY COSTS (ELECTRICITY),2332,BOW CREEK-ELECTRIC SUPPLY-Feb23-Apr23,27/08/2023 00:00,276908,229.62,KE0007,KENT COUNTY COUNCIL (KCS),31/07/2023 00:00,27/08/2023 00:00,P05-2024
P&V,GUNPOWDER PARK,PREMISES RELATED EXPENDITURE,ENERGY COSTS (ELECTRICITY),2332,Field Station -ELECTRIC SUPPLY-July23,16/08/2023 00:00,276659,560.45,KE0007,KENT COUNTY COUNCIL (KCS),31/07/2023 00:00,27/08/2023 00:00,P05-2024
P&V,QUEEN ELIZABETH OLYMPIC PARK,PREMISES RELATED EXPENDITURE,ENERGY COSTS (ELECTRICITY),2332,VELOPARK-E20-MPAN 1204-JULY2023,16/08/2023 00:00,276662,136.67,KE0007,KENT COUNTY COUNCIL (KCS),31/07/2023 00:00,27/08/2023 00:00,P05-2024
P&V,QUEEN ELIZABETH OLYMPIC PARK,PREMISES RELATED EXPENDITURE,ENERGY COSTS (ELECTRICITY),2332,Velopark-E20-MPAN 5201,16/08/2023 00:00,276663,84.32,KE0007,KENT COUNTY COUNCIL (KCS),31/07/2023 00:00,27/08/2023 00:00,P05-2024
P&V,QUEEN ELIZABETH OLYMPIC PARK,PREMISES RELATED EXPENDITURE,ENERGY COSTS (ELECTRICITY),2332,Velopark-E20-MPAN 5201,16/08/2023 00:00,276663,1.02,KE0007,KENT COUNTY COUNCIL (KCS),31/07/2023 00:00,27/08/2023 00:00,P05-2024
P&V,CAR PARK INCOME,PREMISES RELATED EXPENDITURE,ENERGY COSTS (ELECTRICITY),2332,Clayton Hill-Electric supply July 23,21/08/2023 00:00,276704,33.26,NP0123,NPOWER LIMITED,31/07/2023 00:00,27/08/2023 00:00,P05-2024
P&V,CAR PARK INCOME,PREMISES RELATED EXPENDITURE,ENERGY COSTS (ELECTRICITY),2332,Cornmill Meadow-Electric supply July23,21/08/2023 00:00,276772,42.87,NP0123,NPOWER LIMITED,31/07/2023 00:00,27/08/2023 00:00,P05-2024
P&V,FORMER LV LIDO SITE,PREMISES RELATED EXPENDITURE,ENERGY COSTS (ELECTRICITY),2332,Sep-21,02/08/2023 00:00,254818,809.23,KE0007,KENT COUNTY COUNCIL (KCS),31/07/2023 00:00,27/08/2023 00:00,P05-2024
P&V,FORMER LV LIDO SITE,PREMISES RELATED EXPENDITURE,ENERGY COSTS (ELECTRICITY),2332,Oct-21,02/08/2023 00:00,261637,854.06,KE0007,KENT COUNTY COUNCIL (KCS),31/07/2023 00:00,27/08/2023 00:00,P05-2024
P&V,FORMER LV LIDO SITE,PREMISES RELATED EXPENDITURE,ENERGY COSTS (ELECTRICITY),2332,Nov-21,02/08/2023 00:00,261638,451.64,KE0007,KENT COUNTY COUNCIL (KCS),31/07/2023 00:00,27/08/2023 00:00,P05-2024
P&V,FORMER LV LIDO SITE,PREMISES RELATED EXPENDITURE,ENERGY COSTS (ELECTRICITY),2332,Dec-21,02/08/2023 00:00,261639,936.63,KE0007,KENT COUNTY COUNCIL (KCS),31/07/2023 00:00,27/08/2023 00:00,P05-2024
P&V,FORMER LV LIDO SITE,PREMISES RELATED EXPENDITURE,ENERGY COSTS (ELECTRICITY),2332,Jan-22,02/08/2023 00:00,261640,997.18,KE0007,KENT COUNTY COUNCIL (KCS),31/07/2023 00:00,27/08/2023 00:00,P05-2024
,LV LEISURE CENTRE CAMPSITE,PREMISES RELATED EXPENDITURE,ENERGY COSTS (ELECTRICITY),2332,Edmonton-electric supply July23,21/08/2023 00:00,276773,7219.21,NP0123,NPOWER LIMITED,31/07/2023 00:00,27/08/2023 00:00,P05-2024
,LEE VALLEY MARINA SPRINGFIELD,PREMISES RELATED EXPENDITURE,ENERGY COSTS (GAS),2333,Springfield-GAS SUPPLY-July23,21/08/2023 00:00,276653,279.35,KE0007,KENT COUNTY COUNCIL (KCS),31/07/2023 00:00,27/08/2023 00:00,P05-2024
,LEE VALLEY MARINA STANSTEAD,PREMISES RELATED EXPENDITURE,ENERGY COSTS (GAS),2333,Stanstead-GAS SUPPLY-July23,21/08/2023 00:00,276648,137.48,KE0007,KENT COUNTY COUNCIL (KCS),31/07/2023 00:00,27/08/2023 00:00,P05-2024
,LEE VALLEY MARINA STANSTEAD,PREMISES RELATED EXPENDITURE,ENERGY COSTS (GAS),2333,Stanstead-GAS SUPPLY-July23,21/08/2023 00:00,276649,178.13,KE0007,KENT COUNTY COUNCIL (KCS),31/07/2023 00:00,27/08/2023 00:00,P05-2024
,LEE VALLEY CAMPSITE,PREMISES RELATED EXPENDITURE,ENERGY COSTS (GAS),2333,SEWARDSTONE-GAS SUPPLY-July 23,21/08/2023 00:00,276651,729.75,KE0007,KENT COUNTY COUNCIL (KCS),31/07/2023 00:00,27/08/2023 00:00,P05-2024
,LEE VALLEY CARAVAN PARK,PREMISES RELATED EXPENDITURE,ENERGY COSTS (GAS),2333,P122404-SERVICE-5 x 6kg and 1 x 13kg Gas Bottles,08/08/2023 00:00,275885,141.91,CA0006,CALOR GAS LIMITED,31/07/2023 00:00,27/08/2023 00:00,P05-2024
,LEE VALLEY CARAVAN PARK,PREMISES RELATED EXPENDITURE,ENERGY COSTS (GAS),2333,P121605-SERVICE-6 x 6kg  1 x 7kg  1 x 13kg,09/08/2023 00:00,276440,141.91,CA0006,CALOR GAS LIMITED,31/07/2023 00:00,27/08/2023 00:00,P05-2024
P&V,GUNPOWDER PARK,PREMISES RELATED EXPENDITURE,ENERGY COSTS (GAS),2333,Field Station-Gas supply July23,21/08/2023 00:00,276686,38.27,KE0007,KENT COUNTY COUNCIL (KCS),31/07/2023 00:00,27/08/2023 00:00,P05-2024
,LV LEISURE CENTRE CAMPSITE,PREMISES RELATED EXPENDITURE,ENERGY COSTS (GAS),2333,Edmonton-GAS SUPPLY-July23,21/08/2023 00:00,276650,874.84,KE0007,KENT COUNTY COUNCIL (KCS),31/07/2023 00:00,27/08/2023 00:00,P05-2024
,LEE VALLEY MARINA STANSTEAD,PREMISES RELATED EXPENDITURE,RENT (EXTERNAL),2442,Completion of lease at Rye House Mooring,16/08/2023 00:00,276642,103557.11,WO0344,WOMBLE BOND DICKINSON (UK) LLP,31/07/2023 00:00,27/08/2023 00:00,P05-2024
,LEE VALLEY MARINA STANSTEAD,PREMISES RELATED EXPENDITURE,RENT (EXTERNAL),2442,Stanstead-Agreement-290923-241223,27/08/2023 00:00,276774,13450,BR0036,CANAL & RIVER TRUST,31/07/2023 00:00,27/08/2023 00:00,P05-2024
CEO,RESIDENTIAL ACCOMMODATION,PREMISES RELATED EXPENDITURE,PROPERTY MANAGEMT/LETTING FEES,2447,P122822-SERVICE-Roselea Landlord Fees,08/08/2023 00:00,276245,1315,CA0165,CASTLES,31/07/2023 00:00,27/08/2023 00:00,P05-2024
CEO,RESIDENTIAL ACCOMMODATION,PREMISES RELATED EXPENDITURE,PROPERTY MANAGEMT/LETTING FEES,2447,P122968-SERVICE-Railway Cottage - 6 Month Management Fee,27/08/2023 00:00,276775,750,WA0315,PAUL WALLACE ESTATE AGENTS,31/07/2023 00:00,27/08/2023 00:00,P05-2024
P&V,MYDDELTON HOUSE,PREMISES RELATED EXPENDITURE,WATER,2555,MD Hse-water usage-July 23,08/08/2023 00:00,276322,704.34,CA0625,CASTLE WATER LIMITED,31/07/2023 00:00,27/08/2023 00:00,P05-2024
,LEE VALLEY MARINA SPRINGFIELD,PREMISES RELATED EXPENDITURE,WATER,2555,Springfield-water supply-July23,21/08/2023 00:00,276580,1132.6,CA0625,CASTLE WATER LIMITED,31/07/2023 00:00,27/08/2023 00:00,P05-2024
,LEE VALLEY MARINA SPRINGFIELD,PREMISES RELATED EXPENDITURE,WATER,2555,Springfield-water supply-July23,21/08/2023 00:00,276580,1814.65,CA0625,CASTLE WATER LIMITED,31/07/2023 00:00,27/08/2023 00:00,P05-2024
,LEE VALLEY MARINA STANSTEAD,PREMISES RELATED EXPENDITURE,WATER,2555,CASTLE WATER LIMITED,08/08/2023 00:00,276216,20.93,CA0625,CASTLE WATER LIMITED,31/07/2023 00:00,27/08/2023 00:00,P05-2024
,LEE VALLEY MARINA STANSTEAD,PREMISES RELATED EXPENDITURE,WATER,2555,CASTLE WATER LIMITED,08/08/2023 00:00,276216,20.14,CA0625,CASTLE WATER LIMITED,31/07/2023 00:00,27/08/2023 00:00,P05-2024
,LEE VALLEY MARINA STANSTEAD,PREMISES RELATED EXPENDITURE,WATER,2555,Jul-23,08/08/2023 00:00,276403,185.98,CA0625,CASTLE WATER LIMITED,31/07/2023 00:00,27/08/2023 00:00,P05-2024
,LEE VALLEY MARINA STANSTEAD,PREMISES RELATED EXPENDITURE,WATER,2555,Jul-23,08/08/2023 00:00,276403,190.93,CA0625,CASTLE WATER LIMITED,31/07/2023 00:00,27/08/2023 00:00,P05-2024
,LEE VALLEY WATERWORKS CENTRE,PREMISES RELATED EXPENDITURE,WATER,2555,Waterworks-water usage Jul23,09/08/2023 00:00,276459,113.8,CA0625,CASTLE WATER LIMITED,31/07/2023 00:00,27/08/2023 00:00,P05-2024
,LEE VALLEY WATERWORKS CENTRE,PREMISES RELATED EXPENDITURE,WATER,2555,Waterworks-Adjustment Mar23-July23,27/08/2023 00:00,276899,-307.86,CA0625,CASTLE WATER LIMITED,31/07/2023 00:00,27/08/2023 00:00,P05-2024
,LEE VALLEY CAMPSITE,PREMISES RELATED EXPENDITURE,WATER,2555,Sewardstone-water usage-July23,21/08/2023 00:00,276458,1988.55,CA0625,CASTLE WATER LIMITED,31/07/2023 00:00,27/08/2023 00:00,P05-2024
,LEE VALLEY CARAVAN PARK,PREMISES RELATED EXPENDITURE,WATER,2555,DW-water usage0 July 23,09/08/2023 00:00,276457,3343.99,CA0625,CASTLE WATER LIMITED,31/07/2023 00:00,27/08/2023 00:00,P05-2024
,LEE VALLEY CARAVAN PARK,PREMISES RELATED EXPENDITURE,WATER,2555,DW-water usage0 July 23,09/08/2023 00:00,276457,2014.46,CA0625,CASTLE WATER LIMITED,31/07/2023 00:00,27/08/2023 00:00,P05-2024
P&V,EAST INDIA DOCK AND BOW CREEK,PREMISES RELATED EXPENDITURE,WATER,2555,Orchard Pl-water - 01/04-31/10/23,27/08/2023 00:00,276066,7657.06,CA0625,CASTLE WATER LIMITED,31/07/2023 00:00,27/08/2023 00:00,P05-2024
P&V,EAST INDIA DOCK AND BOW CREEK,PREMISES RELATED EXPENDITURE,WATER,2555,Ref to Comp ref 276066,27/08/2023 00:00,277023,-7657.06,CA0625,CASTLE WATER LIMITED,31/07/2023 00:00,27/08/2023 00:00,P05-2024
P&V,EAST INDIA DOCK AND BOW CREEK,PREMISES RELATED EXPENDITURE,WATER,2555,Orchard Pl-amended inv Aprl-Oct23,27/08/2023 00:00,277024,66.15,CA0625,CASTLE WATER LIMITED,31/07/2023 00:00,27/08/2023 00:00,P05-2024
,LV LEISURE CENTRE CAMPSITE,PREMISES RELATED EXPENDITURE,WATER,2555,edmonton-water supply-July23,14/08/2023 00:00,276578,700.63,CA0625,CASTLE WATER LIMITED,31/07/2023 00:00,27/08/2023 00:00,P05-2024
,LV LEISURE CENTRE CAMPSITE,PREMISES RELATED EXPENDITURE,WATER,2555,edmonton-water supply-July23,14/08/2023 00:00,276578,749.21,CA0625,CASTLE WATER LIMITED,31/07/2023 00:00,27/08/2023 00:00,P05-2024
,LV LEISURE CENTRE CAMPSITE,PREMISES RELATED EXPENDITURE,WATER,2555,Edm-mtr 06M023296-July 23,14/08/2023 00:00,276579,42.62,CA0625,CASTLE WATER LIMITED,31/07/2023 00:00,27/08/2023 00:00,P05-2024
,LV LEISURE CENTRE CAMPSITE,PREMISES RELATED EXPENDITURE,WATER,2555,Edm-mtr 06M023296-July 23,14/08/2023 00:00,276579,36.93,CA0625,CASTLE WATER LIMITED,31/07/2023 00:00,27/08/2023 00:00,P05-2024
,LV LEISURE CENTRE CAMPSITE,PREMISES RELATED EXPENDITURE,WATER,2555,Edmonton-Adjustment-June23,27/08/2023 00:00,276924,5.82,CA0625,CASTLE WATER LIMITED,31/07/2023 00:00,27/08/2023 00:00,P05-2024
,LV LEISURE CENTRE CAMPSITE,PREMISES RELATED EXPENDITURE,WATER,2555,Edmonton-Adjustment-June23,27/08/2023 00:00,276924,3.36,CA0625,CASTLE WATER LIMITED,31/07/2023 00:00,27/08/2023 00:00,P05-2024
,LEE VALLEY MARINA SPRINGFIELD,PREMISES RELATED EXPENDITURE,CLEANING & DOMESTIC SUPPLIES,2666,P121660-SERVICE-Site Cleaning April to July 2023,08/08/2023 00:00,276255,1070.52,MA0015,MAYFAIR CLEANING COMPANY LIMITED,31/07/2023 00:00,27/08/2023 00:00,P05-2024
,LEE VALLEY MARINA SPRINGFIELD,PREMISES RELATED EXPENDITURE,CLEANING & DOMESTIC SUPPLIES,2666,P122821-SERVICE-To supply items as requested,22/08/2023 00:00,276487,194.08,HY0043,HYGIENE SYSTEMS LTD,31/07/2023 00:00,27/08/2023 00:00,P05-2024
,LEE VALLEY MARINA STANSTEAD,PREMISES RELATED EXPENDITURE,CLEANING & DOMESTIC SUPPLIES,2666,P122882-SERVICE-jkl loo rolls,14/08/2023 00:00,276594,99.9,TH0008,JKL SOLUTIONS LTD,31/07/2023 00:00,27/08/2023 00:00,P05-2024
,LEE VALLEY CAMPSITE,PREMISES RELATED EXPENDITURE,CLEANING & DOMESTIC SUPPLIES,2666,P122973-SERVICE-Toilet rolls x6,22/08/2023 00:00,276471,133.2,HY0043,HYGIENE SYSTEMS LTD,31/07/2023 00:00,27/08/2023 00:00,P05-2024
,LEE VALLEY CAMPSITE,PREMISES RELATED EXPENDITURE,CLEANING & DOMESTIC SUPPLIES,2666,P122979-SERVICE-Site cleaning materials,27/08/2023 00:00,276895,182.17,HY0043,HYGIENE SYSTEMS LTD,31/07/2023 00:00,27/08/2023 00:00,P05-2024
,LV LEISURE CENTRE CAMPSITE,PREMISES RELATED EXPENDITURE,CLEANING & DOMESTIC SUPPLIES,2666,P122830-SERVICE-Cleaning supplies,14/08/2023 00:00,276488,507.64,HY0043,HYGIENE SYSTEMS LTD,31/07/2023 00:00,27/08/2023 00:00,P05-2024
,LV LEISURE CENTRE CAMPSITE,PREMISES RELATED EXPENDITURE,CLEANING & DOMESTIC SUPPLIES,2666,P122861-SERVICE-vacuum cleaner and bags,14/08/2023 00:00,276597,150.22,HY0043,HYGIENE SYSTEMS LTD,31/07/2023 00:00,27/08/2023 00:00,P05-2024
,LV LEISURE CENTRE CAMPSITE,PREMISES RELATED EXPENDITURE,CLEANING & DOMESTIC SUPPLIES,2666,P122904-SERVICE-Cleaning supplies,23/08/2023 00:00,276681,249.65,HY0043,HYGIENE SYSTEMS LTD,31/07/2023 00:00,27/08/2023 00:00,P05-2024
,LV LEISURE CENTRE CAMPSITE,PREMISES RELATED EXPENDITURE,CLEANING & DOMESTIC SUPPLIES,2666,P123005-SERVICE-Cleaning supplies,27/08/2023 00:00,276923,249.08,HY0043,HYGIENE SYSTEMS LTD,31/07/2023 00:00,27/08/2023 00:00,P05-2024
P&V,LEE VALLEY FARM HOLYFIELDHALL,TRANSPORT RELATED EXPENDITURE,TRANSPORT RUNNING EXPENSES,3333,P121509-SERVICE-Tractor Spares,15/08/2023 00:00,276184,-76.99,RW0257,R. W. CRAWFORD AGRICULTURAL MACHINERY LTD,31/07/2023 00:00,27/08/2023 00:00,P05-2024
P&V,LEE VALLEY FARM HOLYFIELDHALL,TRANSPORT RELATED EXPENDITURE,TRANSPORT RUNNING EXPENSES,3333,P121498-SERVICE-Puncture Repair,15/08/2023 00:00,276254,240,KB0006,KB TYRES LTD,31/07/2023 00:00,27/08/2023 00:00,P05-2024
P&V,LEE VALLEY FARM HOLYFIELDHALL,TRANSPORT RELATED EXPENDITURE,TRANSPORT RUNNING EXPENSES,3333,Holyfield-Tracotr spares,15/08/2023 00:00,276266,-341.12,RW0257,R. W. CRAWFORD AGRICULTURAL MACHINERY LTD,31/07/2023 00:00,27/08/2023 00:00,P05-2024
P&V,LEE VALLEY FARM HOLYFIELDHALL,TRANSPORT RELATED EXPENDITURE,TRANSPORT RUNNING EXPENSES,3333,Holyfield-Tracotr spares,15/08/2023 00:00,276266,236.13,RW0257,R. W. CRAWFORD AGRICULTURAL MACHINERY LTD,31/07/2023 00:00,27/08/2023 00:00,P05-2024
P&V,LEE VALLEY FARM HOLYFIELDHALL,TRANSPORT RELATED EXPENDITURE,TRANSPORT RUNNING EXPENSES,3333,Holyfield-Tracotr spares,15/08/2023 00:00,276266,104.99,RW0257,R. W. CRAWFORD AGRICULTURAL MACHINERY LTD,31/07/2023 00:00,27/08/2023 00:00,P05-2024
P&V,LEE VALLEY FARM HOLYFIELDHALL,TRANSPORT RELATED EXPENDITURE,TRANSPORT RUNNING EXPENSES,3333,P121509-SERVICE-Tractor Spares,15/08/2023 00:00,276266,341.12,RW0257,R. W. CRAWFORD AGRICULTURAL MACHINERY LTD,31/07/2023 00:00,27/08/2023 00:00,P05-2024
P&V,LEE VALLEY FARM HOLYFIELDHALL,TRANSPORT RELATED EXPENDITURE,TRANSPORT RUNNING EXPENSES,3333,P121498-SERVICE-Puncture Repair,15/08/2023 00:00,276294,14,KB0006,KB TYRES LTD,31/07/2023 00:00,27/08/2023 00:00,P05-2024
P&V,LEE VALLEY FARM HOLYFIELDHALL,TRANSPORT RELATED EXPENDITURE,TRANSPORT RUNNING EXPENSES,3333,P122918-SERVICE-Sprayer Test/Fuel Surcharge,15/08/2023 00:00,276612,245,SP0036,SPRAYTEC LTD,31/07/2023 00:00,27/08/2023 00:00,P05-2024
P&V,LEE VALLEY FARM HOLYFIELDHALL,TRANSPORT RELATED EXPENDITURE,TRANSPORT RUNNING EXPENSES,3333,P123076-SERVICE-Bale Squeezer,27/08/2023 00:00,276839,700,BE0664,BENTLAND FARMS LTD,31/07/2023 00:00,27/08/2023 00:00,P05-2024
,LV CAMPSITE CARAVAN SALES,TRANSPORT RELATED EXPENDITURE,TRANSPORT RUNNING EXPENSES,3333,P122765-SERVICE-Transport 125 DW to 40 SC,08/08/2023 00:00,276273,750,CL0760,CLARKS CARAVAN & BOAT HAULAGE LTD,31/07/2023 00:00,27/08/2023 00:00,P05-2024
P&V,FISHERIES MANAGEMENT,TRANSPORT RELATED EXPENDITURE,VEHICLE FUEL,3335,FUEL CARD-July 2023,14/08/2023 00:00,276406,234.09,AR0035,ALLSTAR BUSINESS SOLUTIONS LTD,31/07/2023 00:00,27/08/2023 00:00,P05-2024
,LEE VALLEY MARINA STANSTEAD,TRANSPORT RELATED EXPENDITURE,VEHICLE FUEL,3335,P122749-SERVICE-white diesel 200ltr,08/08/2023 00:00,276249,244.92,SP0543,SPEEDY FUELS LIMITED,31/07/2023 00:00,27/08/2023 00:00,P05-2024
,LEE VALLEY MARINA STANSTEAD,TRANSPORT RELATED EXPENDITURE,VEHICLE FUEL,3335,FUEL CARD-July 2023,14/08/2023 00:00,276406,267.72,AR0035,ALLSTAR BUSINESS SOLUTIONS LTD,31/07/2023 00:00,27/08/2023 00:00,P05-2024
P&V,LEE VALLEY FARM HOLYFIELDHALL,TRANSPORT RELATED EXPENDITURE,VEHICLE FUEL,3335,FUEL CARD-July 2023,14/08/2023 00:00,276406,134.25,AR0035,ALLSTAR BUSINESS SOLUTIONS LTD,31/07/2023 00:00,27/08/2023 00:00,P05-2024
,LEE VALLEY CAMPSITE,TRANSPORT RELATED EXPENDITURE,VEHICLE FUEL,3335,FUEL CARD-July 2023,14/08/2023 00:00,276406,131.33,AR0035,ALLSTAR BUSINESS SOLUTIONS LTD,31/07/2023 00:00,27/08/2023 00:00,P05-2024
,LEE VALLEY CARAVAN PARK,TRANSPORT RELATED EXPENDITURE,VEHICLE FUEL,3335,FUEL CARD-July 2023,14/08/2023 00:00,276406,222.58,AR0035,ALLSTAR BUSINESS SOLUTIONS LTD,31/07/2023 00:00,27/08/2023 00:00,P05-2024
P&V,SOUTH AREA RANGERS,TRANSPORT RELATED EXPENDITURE,VEHICLE FUEL,3335,FUEL CARD-July 2023,14/08/2023 00:00,276406,364.4,AR0035,ALLSTAR BUSINESS SOLUTIONS LTD,31/07/2023 00:00,27/08/2023 00:00,P05-2024
P&V,RIVER LEE COUNTRY PARK,TRANSPORT RELATED EXPENDITURE,VEHICLE FUEL,3335,FUEL CARD-July 2023,14/08/2023 00:00,276406,298.1,AR0035,ALLSTAR BUSINESS SOLUTIONS LTD,31/07/2023 00:00,27/08/2023 00:00,P05-2024
P&V,RIVER LEE COUNTRY PARK,TRANSPORT RELATED EXPENDITURE,VEHICLE FUEL,3335,FUEL CARD-July 2023,14/08/2023 00:00,276406,64.79,AR0035,ALLSTAR BUSINESS SOLUTIONS LTD,31/07/2023 00:00,27/08/2023 00:00,P05-2024
P&V,SOUTH AREA RANGERS,TRANSPORT RELATED EXPENDITURE,VEHICLE REPAIRS & MAINTENANCE,3338,P122806-SERVICE-Service / Repairs - LT71 HPO,27/08/2023 00:00,276925,462.07,OL0059,OLIVER LANDPOWER LIMITED,31/07/2023 00:00,27/08/2023 00:00,P05-2024
P&V,SOUTH AREA RANGERS,TRANSPORT RELATED EXPENDITURE,VEHICLE REPAIRS & MAINTENANCE,3338,P122805-SERVICE-Service / Repairs - LT71 HPE,27/08/2023 00:00,277013,847.58,OL0059,OLIVER LANDPOWER LIMITED,31/07/2023 00:00,27/08/2023 00:00,P05-2024
P&V,VOLUNTEERS (L&E),TRANSPORT RELATED EXPENDITURE,TRAVELLING EXPENSES,3344,Remaining expenses from April23-June23,16/08/2023 00:00,276683,16.2,CH0761,MRS J C CHANDLER,31/07/2023 00:00,27/08/2023 00:00,P05-2024
,LEE VALLEY MARINA SPRINGFIELD,SUPPLIES AND SERVICES,EQUIPMENT & MATERIALS,4111,P122645-SERVICE-Warning signs & safety equipment,22/08/2023 00:00,276025,267.13,SE0018,BRADY CORPORATION LIMITED/SETON,31/07/2023 00:00,27/08/2023 00:00,P05-2024
,LEE VALLEY MARINA SPRINGFIELD,SUPPLIES AND SERVICES,EQUIPMENT & MATERIALS,4111,P122645-SERVICE-Warning signs & safety equipment,22/08/2023 00:00,276052,101.63,SE0018,BRADY CORPORATION LIMITED/SETON,31/07/2023 00:00,27/08/2023 00:00,P05-2024
,LEE VALLEY MARINA SPRINGFIELD,SUPPLIES AND SERVICES,EQUIPMENT & MATERIALS,4111,P122645-SERVICE-Warning signs & safety equipment,22/08/2023 00:00,276299,86.68,SE0018,BRADY CORPORATION LIMITED/SETON,31/07/2023 00:00,27/08/2023 00:00,P05-2024
,LEE VALLEY MARINA SPRINGFIELD,SUPPLIES AND SERVICES,EQUIPMENT & MATERIALS,4111,P122645-SERVICE-Warning signs & safety equipment,22/08/2023 00:00,276496,-86.68,SE0018,BRADY CORPORATION LIMITED/SETON,31/07/2023 00:00,27/08/2023 00:00,P05-2024
,LEE VALLEY MARINA SPRINGFIELD,SUPPLIES AND SERVICES,EQUIPMENT & MATERIALS,4111,P123046-SERVICE-Sandy Lane Override Gate Key H27 System Key,27/08/2023 00:00,277011,29,GE0460,GERDA SECURITY PRODUCTS LTD,31/07/2023 00:00,27/08/2023 00:00,P05-2024
,LEE VALLEY MARINA SPRINGFIELD,SUPPLIES AND SERVICES,EQUIPMENT & MATERIALS,4111,P123046-SERVICE-Delivery,27/08/2023 00:00,277011,6,GE0460,GERDA SECURITY PRODUCTS LTD,31/07/2023 00:00,27/08/2023 00:00,P05-2024
,LEE VALLEY CARAVAN PARK,SUPPLIES AND SERVICES,EQUIPMENT & MATERIALS,4111,P122854-SERVICE-Supply & fit 2 lamps & 1 stove heater,08/08/2023 00:00,276279,415,BR0018,BRADSHAW ELECTRICAL LIMITED,31/07/2023 00:00,27/08/2023 00:00,P05-2024
,LEE VALLEY CARAVAN PARK,SUPPLIES AND SERVICES,EQUIPMENT & MATERIALS,4111,P122864-SERVICE-Mila Prolinea handles,09/08/2023 00:00,276415,22.99,SC0057,SCREWFIX DIRECT LTD,31/07/2023 00:00,27/08/2023 00:00,P05-2024
,LEE VALLEY CARAVAN PARK,SUPPLIES AND SERVICES,EQUIPMENT & MATERIALS,4111,P121461-SERVICE-ELECTRICAL WORKS CODE 2,09/08/2023 00:00,276473,3845,BR0018,BRADSHAW ELECTRICAL LIMITED,31/07/2023 00:00,27/08/2023 00:00,P05-2024
,LEE VALLEY CARAVAN PARK,SUPPLIES AND SERVICES,EQUIPMENT & MATERIALS,4111,P121462-SERVICE-CODE 3 ELECTRICAL WORKS ON SITE,09/08/2023 00:00,276473,720,BR0018,BRADSHAW ELECTRICAL LIMITED,31/07/2023 00:00,27/08/2023 00:00,P05-2024
,LEE VALLEY CARAVAN PARK,SUPPLIES AND SERVICES,EQUIPMENT & MATERIALS,4111,P122930-SERVICE-River Cottage Aerials Points x 3,22/08/2023 00:00,276475,597,BR0018,BRADSHAW ELECTRICAL LIMITED,31/07/2023 00:00,27/08/2023 00:00,P05-2024
,LEE VALLEY CARAVAN PARK,SUPPLIES AND SERVICES,EQUIPMENT & MATERIALS,4111,P123043-SERVICE-5 x LED lamps for Touring Bollards,27/08/2023 00:00,276476,50,BR0018,BRADSHAW ELECTRICAL LIMITED,31/07/2023 00:00,27/08/2023 00:00,P05-2024
,LEE VALLEY CARAVAN PARK,SUPPLIES AND SERVICES,EQUIPMENT & MATERIALS,4111,P122887-SERVICE-Saw blades,14/08/2023 00:00,276493,39.57,SC0057,SCREWFIX DIRECT LTD,31/07/2023 00:00,27/08/2023 00:00,P05-2024
,LEE VALLEY CARAVAN PARK,SUPPLIES AND SERVICES,EQUIPMENT & MATERIALS,4111,P122929-SERVICE-Cleaners Lights replace faulty with new LED,27/08/2023 00:00,276609,201,BR0018,BRADSHAW ELECTRICAL LIMITED,31/07/2023 00:00,27/08/2023 00:00,P05-2024
,LEE VALLEY CARAVAN PARK,SUPPLIES AND SERVICES,EQUIPMENT & MATERIALS,4111,P123075-SERVICE-6 pin euro cylinder,27/08/2023 00:00,276887,14.69,SC0057,SCREWFIX DIRECT LTD,31/07/2023 00:00,27/08/2023 00:00,P05-2024
P&V,MYDDELTON HOUSE GARDENS,SUPPLIES AND SERVICES,EQUIPMENT & MATERIALS,4111,P121912-SERVICE-pest control gardens 23/24,16/08/2023 00:00,276410,138.35,FA0149,FARGRO LIMITED,31/07/2023 00:00,27/08/2023 00:00,P05-2024
P&V,SOUTH AREA RANGERS,SUPPLIES AND SERVICES,EQUIPMENT & MATERIALS,4111,P122934-SERVICE-2x Rapid Setting Cement - 58196,22/08/2023 00:00,276666,24.15,SC0057,SCREWFIX DIRECT LTD,31/07/2023 00:00,27/08/2023 00:00,P05-2024
P&V,SOUTH AREA RANGERS,SUPPLIES AND SERVICES,EQUIPMENT & MATERIALS,4111,P122934-SERVICE-1x Screws 4x4 Pk200,22/08/2023 00:00,276666,6.49,SC0057,SCREWFIX DIRECT LTD,31/07/2023 00:00,27/08/2023 00:00,P05-2024
P&V,SOUTH AREA RANGERS,SUPPLIES AND SERVICES,EQUIPMENT & MATERIALS,4111,P123046-SERVICE-Sandy Lane Override Gate Key H27 System Key,27/08/2023 00:00,277011,29,GE0460,GERDA SECURITY PRODUCTS LTD,31/07/2023 00:00,27/08/2023 00:00,P05-2024
P&V,SOUTH AREA RANGERS,SUPPLIES AND SERVICES,EQUIPMENT & MATERIALS,4111,P123046-SERVICE-Delivery,27/08/2023 00:00,277011,6,GE0460,GERDA SECURITY PRODUCTS LTD,31/07/2023 00:00,27/08/2023 00:00,P05-2024
P&V,WILDLIFE DISCOVERY CENTRE,SUPPLIES AND SERVICES,EQUIPMENT & MATERIALS,4111,P122689-SERVICE-1x Heavy Duty Rubber Torch - SEC0040,22/08/2023 00:00,276214,5.99,SE0018,BRADY CORPORATION LIMITED/SETON,31/07/2023 00:00,27/08/2023 00:00,P05-2024
P&V,WILDLIFE DISCOVERY CENTRE,SUPPLIES AND SERVICES,EQUIPMENT & MATERIALS,4111,P122689-SERVICE-2x High Vis Waist Coat - 305NIB160,22/08/2023 00:00,276214,6.1,SE0018,BRADY CORPORATION LIMITED/SETON,31/07/2023 00:00,27/08/2023 00:00,P05-2024
P&V,WILDLIFE DISCOVERY CENTRE,SUPPLIES AND SERVICES,EQUIPMENT & MATERIALS,4111,P122689-SERVICE-1x AED Avaialbe Here Sign - FA048A5SAVM,22/08/2023 00:00,276214,8.54,SE0018,BRADY CORPORATION LIMITED/SETON,31/07/2023 00:00,27/08/2023 00:00,P05-2024
P&V,WILDLIFE DISCOVERY CENTRE,SUPPLIES AND SERVICES,EQUIPMENT & MATERIALS,4111,P122689-SERVICE-Delivery,22/08/2023 00:00,276214,5.95,SE0018,BRADY CORPORATION LIMITED/SETON,31/07/2023 00:00,27/08/2023 00:00,P05-2024
P&V,WILDLIFE DISCOVERY CENTRE,SUPPLIES AND SERVICES,EQUIPMENT & MATERIALS,4111,P122691-SERVICE-First Aid Kit - F30557,14/08/2023 00:00,276606,15.95,ST0038,ST JOHN AMBULANCE,31/07/2023 00:00,27/08/2023 00:00,P05-2024
P&V,RIVER LEE COUNTRY PARK,SUPPLIES AND SERVICES,EQUIPMENT & MATERIALS,4111,P123062-SERVICE-10m of 5mm Chain,27/08/2023 00:00,277014,28.49,SC0057,SCREWFIX DIRECT LTD,31/07/2023 00:00,27/08/2023 00:00,P05-2024
P&V,RIVER LEE COUNTRY PARK,SUPPLIES AND SERVICES,EQUIPMENT & MATERIALS,4111,P123062-SERVICE-Set of Nut Splitters,27/08/2023 00:00,277014,11.66,SC0057,SCREWFIX DIRECT LTD,31/07/2023 00:00,27/08/2023 00:00,P05-2024
P&V,SPORT AND LEISURE,SUPPLIES AND SERVICES,EQUIPMENT & MATERIALS,4111,"P122732-SERVICE-RS PRO RS-95 Sound Level Meter 35dB to 130dB,",14/08/2023 00:00,276246,43.98,RS0046,RS COMPONENTS LIMITED,31/07/2023 00:00,27/08/2023 00:00,P05-2024
,LV LEISURE CENTRE GOLF COURSE,SUPPLIES AND SERVICES,EQUIPMENT & MATERIALS,4111,P122818-SERVICE-Extension Lead Golf Course,09/08/2023 00:00,275821,17.08,SC0057,SCREWFIX DIRECT LTD,31/07/2023 00:00,27/08/2023 00:00,P05-2024
,LV LEISURE CENTRE GOLF COURSE,SUPPLIES AND SERVICES,EQUIPMENT & MATERIALS,4111,P122699-SERVICE-Replace Faulty Valve 6th Green,08/08/2023 00:00,276183,1060.63,SJ0635,SJS IRRIGATION,31/07/2023 00:00,27/08/2023 00:00,P05-2024
,LV LEISURE CENTRE GOLF COURSE,SUPPLIES AND SERVICES,EQUIPMENT & MATERIALS,4111,P122184-SERVICE-Install Plug Sockets in Office,15/08/2023 00:00,276281,520,BR0018,BRADSHAW ELECTRICAL LIMITED,31/07/2023 00:00,27/08/2023 00:00,P05-2024
,LV LEISURE CENTRE GOLF COURSE,SUPPLIES AND SERVICES,EQUIPMENT & MATERIALS,4111,P122876-SERVICE-P122184 Extra Funds to replace LED Lights,15/08/2023 00:00,276281,252,BR0018,BRADSHAW ELECTRICAL LIMITED,31/07/2023 00:00,27/08/2023 00:00,P05-2024
CEO,RESIDENTIAL ACCOMMODATION,SUPPLIES AND SERVICES,EQUIPMENT MAINTENANCE,4112,P122888-SERVICE-2 Bungalow - Annual Boiler Service,14/08/2023 00:00,276498,160,WA0315,PAUL WALLACE ESTATE AGENTS,31/07/2023 00:00,27/08/2023 00:00,P05-2024
CEO,RESIDENTIAL ACCOMMODATION,SUPPLIES AND SERVICES,EQUIPMENT MAINTENANCE,4112,P122889-SERVICE-Marshgate Cottage - Annual Gas Safety Certifi,14/08/2023 00:00,276499,100,WA0315,PAUL WALLACE ESTATE AGENTS,31/07/2023 00:00,27/08/2023 00:00,P05-2024
CEO,COMMERCIAL ACCOMMODATION,SUPPLIES AND SERVICES,EQUIPMENT MAINTENANCE,4112,CHAMBERLAIN OF LONDON,08/08/2023 00:00,276021,10,LO0128,CHAMBERLAIN OF LONDON,31/07/2023 00:00,27/08/2023 00:00,P05-2024
CEO,COMMERCIAL ACCOMMODATION,SUPPLIES AND SERVICES,EQUIPMENT MAINTENANCE,4112,CHAMBERLAIN OF LONDON,08/08/2023 00:00,276022,10,LO0128,CHAMBERLAIN OF LONDON,31/07/2023 00:00,27/08/2023 00:00,P05-2024
CEO,COMMERCIAL ACCOMMODATION,SUPPLIES AND SERVICES,EQUIPMENT MAINTENANCE,4112,CHAMBERLAIN OF LONDON,08/08/2023 00:00,276023,250,LO0128,CHAMBERLAIN OF LONDON,31/07/2023 00:00,27/08/2023 00:00,P05-2024
,LEE VALLEY CAMPSITE,SUPPLIES AND SERVICES,EQUIPMENT MAINTENANCE,4112,P122608-SERVICE-Block A,09/08/2023 00:00,276026,355,SO0400,SOUTHERN GREEN SERVICES LIMITED,31/07/2023 00:00,27/08/2023 00:00,P05-2024
,LEE VALLEY CAMPSITE,SUPPLIES AND SERVICES,EQUIPMENT MAINTENANCE,4112,P122608-SERVICE-Block B,09/08/2023 00:00,276026,475,SO0400,SOUTHERN GREEN SERVICES LIMITED,31/07/2023 00:00,27/08/2023 00:00,P05-2024
,LEE VALLEY CAMPSITE,SUPPLIES AND SERVICES,EQUIPMENT MAINTENANCE,4112,P122608-SERVICE-Block B gas remediall works,09/08/2023 00:00,276026,320,SO0400,SOUTHERN GREEN SERVICES LIMITED,31/07/2023 00:00,27/08/2023 00:00,P05-2024
,LEE VALLEY CAMPSITE,SUPPLIES AND SERVICES,EQUIPMENT MAINTENANCE,4112,P122853-SERVICE-Pitch 39test& reinstate power,08/08/2023 00:00,276278,60,BR0018,BRADSHAW ELECTRICAL LIMITED,31/07/2023 00:00,27/08/2023 00:00,P05-2024
,LEE VALLEY CAMPSITE,SUPPLIES AND SERVICES,EQUIPMENT MAINTENANCE,4112,P122849-SERVICE-B Block Urinals overflow,22/08/2023 00:00,276801,385,SO0400,SOUTHERN GREEN SERVICES LIMITED,31/07/2023 00:00,27/08/2023 00:00,P05-2024
,LEE VALLEY CAMPSITE,SUPPLIES AND SERVICES,EQUIPMENT MAINTENANCE,4112,P122850-SERVICE-Chemical Toilet,22/08/2023 00:00,276802,205,SO0400,SOUTHERN GREEN SERVICES LIMITED,31/07/2023 00:00,27/08/2023 00:00,P05-2024
,LEE VALLEY CAMPSITE,SUPPLIES AND SERVICES,EQUIPMENT MAINTENANCE,4112,P123049-SERVICE-New Filters for Kuboto,27/08/2023 00:00,276850,16.38,BR0143,GEORGE BROWNS LTD,31/07/2023 00:00,27/08/2023 00:00,P05-2024
,LEE VALLEY CAMPSITE,SUPPLIES AND SERVICES,EQUIPMENT MAINTENANCE,4112,P123050-SERVICE-Kubota repairs,27/08/2023 00:00,276872,278.5,GE0440,GTEC'S,31/07/2023 00:00,27/08/2023 00:00,P05-2024
,LEE VALLEY CARAVAN PARK,SUPPLIES AND SERVICES,EQUIPMENT MAINTENANCE,4112,P122881-SERVICE-Water Heater in tent field WC replace cable,22/08/2023 00:00,276477,127.25,BR0018,BRADSHAW ELECTRICAL LIMITED,31/07/2023 00:00,27/08/2023 00:00,P05-2024
,LEE VALLEY CARAVAN PARK,SUPPLIES AND SERVICES,EQUIPMENT MAINTENANCE,4112,"P122996-SERVICE-Paint, screws, gloves",22/08/2023 00:00,276621,34.07,SC0057,SCREWFIX DIRECT LTD,31/07/2023 00:00,27/08/2023 00:00,P05-2024
,LEE VALLEY CARAVAN PARK,SUPPLIES AND SERVICES,EQUIPMENT MAINTENANCE,4112,P122997-SERVICE-Maintainence materials,22/08/2023 00:00,276665,14.63,SC0057,SCREWFIX DIRECT LTD,31/07/2023 00:00,27/08/2023 00:00,P05-2024
P&V,MYDDELTON HOUSE GARDENS,SUPPLIES AND SERVICES,EQUIPMENT MAINTENANCE,4112,P122347-SERVICE-mower repair & service for Harrier 48Pro etc,08/08/2023 00:00,276180,99,BR0143,GEORGE BROWNS LTD,31/07/2023 00:00,27/08/2023 00:00,P05-2024
P&V,MYDDELTON HOUSE GARDENS,SUPPLIES AND SERVICES,EQUIPMENT MAINTENANCE,4112,P122325-SERVICE-mowers service june 23 MHG,08/08/2023 00:00,276181,709.62,BR0143,GEORGE BROWNS LTD,31/07/2023 00:00,27/08/2023 00:00,P05-2024
P&V,MYDDELTON HOUSE GARDENS,SUPPLIES AND SERVICES,EQUIPMENT MAINTENANCE,4112,P122347-SERVICE-mower repair & service for Harrier 48Pro etc,08/08/2023 00:00,276182,125,BR0143,GEORGE BROWNS LTD,31/07/2023 00:00,27/08/2023 00:00,P05-2024
P&V,MYDDELTON HOUSE GARDENS,SUPPLIES AND SERVICES,EQUIPMENT MAINTENANCE,4112,P122347-SERVICE-mower repair & service for Harrier 48Pro etc,08/08/2023 00:00,276240,527.28,BR0143,GEORGE BROWNS LTD,31/07/2023 00:00,27/08/2023 00:00,P05-2024
P&V,SOUTH AREA RANGERS,SUPPLIES AND SERVICES,EQUIPMENT MAINTENANCE,4112,P122823-SERVICE-Brushcutter Repair - RAN0192,27/08/2023 00:00,277036,65,AP0245,APS LIMITED,31/07/2023 00:00,27/08/2023 00:00,P05-2024
P&V,SOUTH AREA RANGERS,SUPPLIES AND SERVICES,EQUIPMENT MAINTENANCE,4112,P122802-SERVICE-Chain Oil - 7815163004,27/08/2023 00:00,277038,32.92,AP0245,APS LIMITED,31/07/2023 00:00,27/08/2023 00:00,P05-2024
P&V,SOUTH AREA RANGERS,SUPPLIES AND SERVICES,EQUIPMENT MAINTENANCE,4112,P122802-SERVICE-Pole Saw Chain - 36700000064,27/08/2023 00:00,277038,38.34,AP0245,APS LIMITED,31/07/2023 00:00,27/08/2023 00:00,P05-2024
,LV LEISURE CENTRE CAMPSITE,SUPPLIES AND SERVICES,EQUIPMENT MAINTENANCE,4112,P122029-SERVICE-intruder panel battery replace,08/08/2023 00:00,276187,58,RV0035,RVTV SECURITY GROUP LTD,31/07/2023 00:00,27/08/2023 00:00,P05-2024
,LV LEISURE CENTRE CAMPSITE,SUPPLIES AND SERVICES,EQUIPMENT MAINTENANCE,4112,P122915-SERVICE-hook up pitch 19 repair,14/08/2023 00:00,276275,110,BR0018,BRADSHAW ELECTRICAL LIMITED,31/07/2023 00:00,27/08/2023 00:00,P05-2024
,LV LEISURE CENTRE CAMPSITE,SUPPLIES AND SERVICES,EQUIPMENT MAINTENANCE,4112,P122833-SERVICE-replaced socket outlet,08/08/2023 00:00,276276,70,BR0018,BRADSHAW ELECTRICAL LIMITED,31/07/2023 00:00,27/08/2023 00:00,P05-2024
,LV LEISURE CENTRE CAMPSITE,SUPPLIES AND SERVICES,EQUIPMENT MAINTENANCE,4112,P122030-SERVICE-Repair of AHU,08/08/2023 00:00,276404,1176,FL0287,FLAKT GROUP UK LTD,31/07/2023 00:00,27/08/2023 00:00,P05-2024
,LV LEISURE CENTRE GOLF COURSE,SUPPLIES AND SERVICES,EQUIPMENT MAINTENANCE,4112,P122869-SERVICE-Ground Yard Cushman Isolator & Hose,15/08/2023 00:00,276397,224.44,DO0027,ERNEST DOE & SONS LTD,31/07/2023 00:00,27/08/2023 00:00,P05-2024
R&B,INFORMATION TECHNOLOGY,SUPPLIES AND SERVICES,IT CORE SYSTEMS,4113,P122460-SERVICE-Provision of RDHS AIR 2023-24,08/08/2023 00:00,276002,3500,RI0181,RDHS SAFETY CONSULTANCY LIMITED,31/07/2023 00:00,27/08/2023 00:00,P05-2024
R&B,INFORMATION TECHNOLOGY,SUPPLIES AND SERVICES,IT CORE SYSTEMS,4113,P122713-SERVICE-PAYware Ocius pos Quarterly  service fee for,08/08/2023 00:00,276041,118.32,CO0440,VERIFONE SERVICES UK & IRELAND LTD,31/07/2023 00:00,27/08/2023 00:00,P05-2024
R&B,INFORMATION TECHNOLOGY,SUPPLIES AND SERVICES,IT CORE SYSTEMS,4113,P122713-SERVICE-PAYware Ocius pos Quarterly  service fee for,08/08/2023 00:00,276042,828.24,CO0440,VERIFONE SERVICES UK & IRELAND LTD,31/07/2023 00:00,27/08/2023 00:00,P05-2024
R&B,INFORMATION TECHNOLOGY,SUPPLIES AND SERVICES,IT CORE SYSTEMS,4113,P121892-SERVICE-Support & Data Apr 23 - Mar 24,14/08/2023 00:00,276411,160.54,CY0653,CYBERTILL,31/07/2023 00:00,27/08/2023 00:00,P05-2024
R&B,INFORMATION TECHNOLOGY,SUPPLIES AND SERVICES,IT CORE SYSTEMS,4113,P121421-SERVICE-CIPHR Payroll April 2023 - March 2024 @ 569.,09/08/2023 00:00,276413,569.58,CI0721,CIPHR,31/07/2023 00:00,27/08/2023 00:00,P05-2024
R&B,INFORMATION TECHNOLOGY,SUPPLIES AND SERVICES,IT CORE SYSTEMS,4113,"P121499-SERVICE-Efin monthly managed fees @ 1,466.82",09/08/2023 00:00,276449,1466.82,CE0021,ADVANCED BUSINESS SOLUTIONS,31/07/2023 00:00,27/08/2023 00:00,P05-2024
R&B,INFORMATION TECHNOLOGY,SUPPLIES AND SERVICES,IT CORE SYSTEMS,4113,P121193-SERVICE-Gema parks Campsite monthly subs April 2023 -,09/08/2023 00:00,276472,605,NE0218,NETGUIDES LIMITED,31/07/2023 00:00,27/08/2023 00:00,P05-2024
R&B,INFORMATION TECHNOLOGY,SUPPLIES AND SERVICES,IT NETWORK & TELECOMS COSTS,4114,"P123028-SERVICE-CallSwitch licence, calls, mimecast, cloud ba",23/08/2023 00:00,276039,1669,IQ0022,IQUAL,31/07/2023 00:00,27/08/2023 00:00,P05-2024
R&B,INFORMATION TECHNOLOGY,SUPPLIES AND SERVICES,IT NETWORK & TELECOMS COSTS,4114,P121817-SERVICE-Monthly SIP charges Apr 2023 - Mar 2024,08/08/2023 00:00,276304,159.27,FR0131,VOICEFLEX LTD,31/07/2023 00:00,27/08/2023 00:00,P05-2024
R&B,INFORMATION TECHNOLOGY,SUPPLIES AND SERVICES,IT NETWORK & TELECOMS COSTS,4114,P121559-SERVICE-Campsites Circuits 1GB for Public WiFi - Apri,08/08/2023 00:00,276307,835,PP0200,PPSNET LIMITED,31/07/2023 00:00,27/08/2023 00:00,P05-2024
R&B,INFORMATION TECHNOLOGY,SUPPLIES AND SERVICES,IT NETWORK & TELECOMS COSTS,4114,P121558-SERVICE-MPLS for all sites April - September 2023,08/08/2023 00:00,276308,8757.36,PP0200,PPSNET LIMITED,31/07/2023 00:00,27/08/2023 00:00,P05-2024
R&B,INFORMATION TECHNOLOGY,SUPPLIES AND SERVICES,IT NETWORK & TELECOMS COSTS,4114,P123023-SERVICE-CallSwitch Licence & Calls June 2023,23/08/2023 00:00,276810,846.65,IQ0022,IQUAL,31/07/2023 00:00,27/08/2023 00:00,P05-2024
R&B,INFORMATION TECHNOLOGY,SUPPLIES AND SERVICES,IT NETWORK & TELECOMS COSTS,4114,"P123028-SERVICE-CallSwitch licence, calls, mimecast, cloud ba",23/08/2023 00:00,276902,-1669,IQ0022,IQUAL,31/07/2023 00:00,27/08/2023 00:00,P05-2024
R&B,INFORMATION TECHNOLOGY,SUPPLIES AND SERVICES,IT NETWORK & TELECOMS COSTS,4114,P123029-SERVICE-CallSwitch Licence & Calls May 2023,27/08/2023 00:00,276912,846.65,IQ0022,IQUAL,31/07/2023 00:00,27/08/2023 00:00,P05-2024
R&B,INFORMATION TECHNOLOGY,SUPPLIES AND SERVICES,IT HARDWARE & SOFTWARE COSTS,4116,P122122-SERVICE-Mimecast S1 6 monthly payment includes:,08/08/2023 00:00,276288,-878,IQ0022,IQUAL,31/07/2023 00:00,27/08/2023 00:00,P05-2024
R&B,INFORMATION TECHNOLOGY,SUPPLIES AND SERVICES,IT HARDWARE & SOFTWARE COSTS,4116,P122122-SERVICE-Mimecast S1 6 monthly payment includes:,08/08/2023 00:00,276289,-60,IQ0022,IQUAL,31/07/2023 00:00,27/08/2023 00:00,P05-2024
R&B,INFORMATION TECHNOLOGY,SUPPLIES AND SERVICES,IT HARDWARE & SOFTWARE COSTS,4116,P122796-SERVICE-Dell MS116- Mouse - Optical - 2 Buttons - Wir,08/08/2023 00:00,276301,62.5,AM0406,AMAZON PAYMENTS UK LIMITED,31/07/2023 00:00,27/08/2023 00:00,P05-2024
R&B,INFORMATION TECHNOLOGY,SUPPLIES AND SERVICES,IT HARDWARE & SOFTWARE COSTS,4116,P122796-SERVICE-Dell MS116- Mouse - Optical - 2 Buttons - Wir,08/08/2023 00:00,276302,45.6,AM0406,AMAZON PAYMENTS UK LIMITED,31/07/2023 00:00,27/08/2023 00:00,P05-2024
R&B,INFORMATION TECHNOLOGY,SUPPLIES AND SERVICES,IT HARDWARE & SOFTWARE COSTS,4116,P122796-SERVICE-Dell MS116- Mouse - Optical - 2 Buttons - Wir,08/08/2023 00:00,276303,102.55,AM0406,AMAZON PAYMENTS UK LIMITED,31/07/2023 00:00,27/08/2023 00:00,P05-2024
R&B,INFORMATION TECHNOLOGY,SUPPLIES AND SERVICES,IT HARDWARE & SOFTWARE COSTS,4116,"P122824-SERVICE-Apple iPhone 11, 64GB, Black (renewed)",09/08/2023 00:00,276455,282.49,AM0406,AMAZON PAYMENTS UK LIMITED,31/07/2023 00:00,27/08/2023 00:00,P05-2024
R&B,INFORMATION TECHNOLOGY,SUPPLIES AND SERVICES,IT HARDWARE & SOFTWARE COSTS,4116,P122800-SERVICE-KAIMENG Electric Standing Desk 140x70cm with,09/08/2023 00:00,276456,269.14,AM0406,AMAZON PAYMENTS UK LIMITED,31/07/2023 00:00,27/08/2023 00:00,P05-2024
R&B,INFORMATION TECHNOLOGY,SUPPLIES AND SERVICES,IT HARDWARE & SOFTWARE COSTS,4116,P122892-SERVICE-Adobe licences,27/08/2023 00:00,276832,3894.86,ST0687,STONE TECHNOLOGIES LTD T/A STONE GROUP,31/07/2023 00:00,27/08/2023 00:00,P05-2024
R&B,INFORMATION TECHNOLOGY,SUPPLIES AND SERVICES,IT HARDWARE & SOFTWARE COSTS,4116,P122982-SERVICE-KAIMENG Electric Standing Desk 140x70cm with,23/08/2023 00:00,276847,141.66,AM0406,AMAZON PAYMENTS UK LIMITED,31/07/2023 00:00,27/08/2023 00:00,P05-2024
R&B,INFORMATION TECHNOLOGY,SUPPLIES AND SERVICES,IT HARDWARE & SOFTWARE COSTS,4116,P122122-SERVICE-Mimecast S1 6 monthly payment includes:,23/08/2023 00:00,276853,853,IQ0022,IQUAL,31/07/2023 00:00,27/08/2023 00:00,P05-2024
R&B,INFORMATION TECHNOLOGY,SUPPLIES AND SERVICES,IT HARDWARE & SOFTWARE COSTS,4116,P122122-SERVICE-Mimecast S1 6 monthly payment includes:,23/08/2023 00:00,276854,853,IQ0022,IQUAL,31/07/2023 00:00,27/08/2023 00:00,P05-2024
R&B,INFORMATION TECHNOLOGY,SUPPLIES AND SERVICES,IT MAINTENANCE AGREEMENTS,4119,P121793-SERVICE-Digiticket monthly ticketing service,09/08/2023 00:00,276437,636,DI0304,DIGITAL TICKETING SYSTEMS LTD (DIGITICKETS),31/07/2023 00:00,27/08/2023 00:00,P05-2024
,LEE VALLEY MARINA STANSTEAD,EXPENDITURE FROM RENEWALS FUND,EXPENDITURE FROM RENEWALS FUND,4121,P122570-SERVICE-laser curtain + light supply and install,14/08/2023 00:00,276427,1721,PS0429,PSL AUTOMATION,31/07/2023 00:00,27/08/2023 00:00,P05-2024
,LEE VALLEY MARINA STANSTEAD,EXPENDITURE FROM RENEWALS FUND,EXPENDITURE FROM RENEWALS FUND,4121,P122140-SERVICE-Main Security Gate + pedestian gate,14/08/2023 00:00,276428,25766,PS0429,PSL AUTOMATION,31/07/2023 00:00,27/08/2023 00:00,P05-2024
P&V,NORTH AREA RANGERS,EXPENDITURE FROM RENEWALS FUND,EXPENDITURE FROM RENEWALS FUND,4121,New Isuzu utility Ref  ET23 SYF,22/08/2023 00:00,276484,-500,RW0257,R. W. CRAWFORD AGRICULTURAL MACHINERY LTD,31/07/2023 00:00,27/08/2023 00:00,P05-2024
P&V,NORTH AREA RANGERS,EXPENDITURE FROM RENEWALS FUND,EXPENDITURE FROM RENEWALS FUND,4121,P122972-SERVICE-Ranger New Vehilce ET23 SYF,22/08/2023 00:00,276484,28913,RW0257,R. W. CRAWFORD AGRICULTURAL MACHINERY LTD,31/07/2023 00:00,27/08/2023 00:00,P05-2024
P&V,NORTH AREA RANGERS,EXPENDITURE FROM RENEWALS FUND,EXPENDITURE FROM RENEWALS FUND,4121,New Isuzu utility Ref  ET23 SYF,22/08/2023 00:00,276484,-28913,RW0257,R. W. CRAWFORD AGRICULTURAL MACHINERY LTD,31/07/2023 00:00,27/08/2023 00:00,P05-2024
P&V,NORTH AREA RANGERS,EXPENDITURE FROM RENEWALS FUND,EXPENDITURE FROM RENEWALS FUND,4121,New Isuzu utility Ref  ET23 SYF,22/08/2023 00:00,276484,375,RW0257,R. W. CRAWFORD AGRICULTURAL MACHINERY LTD,31/07/2023 00:00,27/08/2023 00:00,P05-2024
P&V,NORTH AREA RANGERS,EXPENDITURE FROM RENEWALS FUND,EXPENDITURE FROM RENEWALS FUND,4121,New Isuzu utility Ref  ET23 SYF,22/08/2023 00:00,276484,29038,RW0257,R. W. CRAWFORD AGRICULTURAL MACHINERY LTD,31/07/2023 00:00,27/08/2023 00:00,P05-2024
P&V,NORTH AREA RANGERS,EXPENDITURE FROM RENEWALS FUND,EXPENDITURE FROM RENEWALS FUND,4121,P122972-SERVICE-Ranger New Vehilce ET23 WGP,22/08/2023 00:00,276485,28913,RW0257,R. W. CRAWFORD AGRICULTURAL MACHINERY LTD,31/07/2023 00:00,27/08/2023 00:00,P05-2024
P&V,NORTH AREA RANGERS,EXPENDITURE FROM RENEWALS FUND,EXPENDITURE FROM RENEWALS FUND,4121,New Isuzu Utility-Ref ET23 WGP,22/08/2023 00:00,276485,-28913,RW0257,R. W. CRAWFORD AGRICULTURAL MACHINERY LTD,31/07/2023 00:00,27/08/2023 00:00,P05-2024
P&V,NORTH AREA RANGERS,EXPENDITURE FROM RENEWALS FUND,EXPENDITURE FROM RENEWALS FUND,4121,New Isuzu Utility-Ref ET23 WGP,22/08/2023 00:00,276485,375,RW0257,R. W. CRAWFORD AGRICULTURAL MACHINERY LTD,31/07/2023 00:00,27/08/2023 00:00,P05-2024
P&V,NORTH AREA RANGERS,EXPENDITURE FROM RENEWALS FUND,EXPENDITURE FROM RENEWALS FUND,4121,New Isuzu Utility-Ref ET23 WGP,22/08/2023 00:00,276485,29038,RW0257,R. W. CRAWFORD AGRICULTURAL MACHINERY LTD,31/07/2023 00:00,27/08/2023 00:00,P05-2024
P&V,NORTH AREA RANGERS,EXPENDITURE FROM RENEWALS FUND,EXPENDITURE FROM RENEWALS FUND,4121,New Isuzu Utility-Ref ET23 WGP,22/08/2023 00:00,276485,-500,RW0257,R. W. CRAWFORD AGRICULTURAL MACHINERY LTD,31/07/2023 00:00,27/08/2023 00:00,P05-2024
,LEE VALLEY CAMPSITE,SUPPLIES AND SERVICES,MATERIALS (GROUNDS MAINT),4125,P122686-SERVICE-1x Dumpy bag soil,22/08/2023 00:00,276444,76.66,TH0051,THOMPSONS OF CREWS HILL LTD,31/07/2023 00:00,27/08/2023 00:00,P05-2024
,LEE VALLEY CARAVAN PARK,SUPPLIES AND SERVICES,MATERIALS (GROUNDS MAINT),4125,P122905-SERVICE-3 Ton MOT,22/08/2023 00:00,276632,138,LE0012,LEASIDE TIMBER & BUILDERS MERCHANTS LTD,31/07/2023 00:00,27/08/2023 00:00,P05-2024
,LV LEISURE CENTRE GOLF COURSE,SUPPLIES AND SERVICES,MATERIALS (GROUNDS MAINT),4125,P122628-SERVICE-20 Tonne P205 Bunker Sand,14/08/2023 00:00,276494,1029.4,CA0698,CAMBRIDGE GOLF COMPANY,31/07/2023 00:00,27/08/2023 00:00,P05-2024
,LEE VALLEY MARINA SPRINGFIELD,SUPPLIES AND SERVICES,MATERIALS (TOOLS & PLANT),4127,P122640-SERVICE-To carry out Annual tank and pump service,22/08/2023 00:00,276776,250,FA0269,FAST FUEL SERVICES,31/07/2023 00:00,27/08/2023 00:00,P05-2024
,LEE VALLEY MARINA SPRINGFIELD,SUPPLIES AND SERVICES,MATERIALS (TOOLS & PLANT),4127,P122640-SERVICE-Calibrated Normond gauge,22/08/2023 00:00,276776,470,FA0269,FAST FUEL SERVICES,31/07/2023 00:00,27/08/2023 00:00,P05-2024
,SPRINGFIELD RECHARGEABLE WORKS,SUPPLIES AND SERVICES,MATERIALS (ENG OTHER),4130,P122577-SERVICE-To hire 120 ton crane on 1/8/2023,22/08/2023 00:00,276589,1400,BA0339,BALDWINS CRANE HIRE LTD,31/07/2023 00:00,27/08/2023 00:00,P05-2024
,SPRINGFIELD RECHARGEABLE WORKS,SUPPLIES AND SERVICES,MATERIALS (ENG OTHER),4130,P122577-SERVICE-To provide insurance @ 15%,22/08/2023 00:00,276589,210,BA0339,BALDWINS CRANE HIRE LTD,31/07/2023 00:00,27/08/2023 00:00,P05-2024
,LEE VALLEY CARAVAN PARK,SUPPLIES AND SERVICES,MATERIALS (MEDICAL),4132,"P122687-SERVICE-Drip tray's, Shelving, Safety mirror - H & S",22/08/2023 00:00,276620,161.25,ES0413,ESE DIRECT,31/07/2023 00:00,27/08/2023 00:00,P05-2024
P&V,LEE VALLEY FARM HOLYFIELDHALL,SUPPLIES AND SERVICES,DAIRY SUNDRIES,4138,P123077-SERVICE-Water Troughs,27/08/2023 00:00,276838,995,BE0664,BENTLAND FARMS LTD,31/07/2023 00:00,27/08/2023 00:00,P05-2024
,LV CAMPSITE CARAVAN SALES,SUPPLIES AND SERVICES,DECKING PURCHASES,4173,P122315-SERVICE-126 DW Decking,08/08/2023 00:00,275963,6572,WI0352,WILDWOOD OF MAYFIELD LTD,31/07/2023 00:00,27/08/2023 00:00,P05-2024
,LV CAMPSITE CARAVAN SALES,SUPPLIES AND SERVICES,DECKING PURCHASES,4173,P122313-SERVICE-124 DW Decking,08/08/2023 00:00,276248,7314,WI0352,WILDWOOD OF MAYFIELD LTD,31/07/2023 00:00,27/08/2023 00:00,P05-2024
,LV CAMPSITE CARAVAN SALES,SUPPLIES AND SERVICES,DECKING PURCHASES,4173,Sewardstone-decking,09/08/2023 00:00,276396,700,MO0041,CAPSER,31/07/2023 00:00,27/08/2023 00:00,P05-2024
,LV CAMPSITE CARAVAN SALES,SUPPLIES AND SERVICES,DECKING PURCHASES,4173,Sewardstone-decking,09/08/2023 00:00,276396,-2900,MO0041,CAPSER,31/07/2023 00:00,27/08/2023 00:00,P05-2024
,LV CAMPSITE CARAVAN SALES,SUPPLIES AND SERVICES,DECKING PURCHASES,4173,Sewardstone-decking,09/08/2023 00:00,276396,2200,MO0041,CAPSER,31/07/2023 00:00,27/08/2023 00:00,P05-2024
,LV CAMPSITE CARAVAN SALES,SUPPLIES AND SERVICES,DECKING PURCHASES,4173,P122633-SERVICE-SC 10 Decking at back of Weedons,09/08/2023 00:00,276396,2900,MO0041,CAPSER,31/07/2023 00:00,27/08/2023 00:00,P05-2024
,LV CAMPSITE CARAVAN SALES,SUPPLIES AND SERVICES,MISCELLANEOUS CARAVAN COSTS,4174,P122700-SERVICE-Introduction 9 SC Sale,08/08/2023 00:00,276049,1000,RA0356,RAINBOW ESTATE AGENTS (SE) LTD,31/07/2023 00:00,27/08/2023 00:00,P05-2024
,LV CAMPSITE CARAVAN SALES,SUPPLIES AND SERVICES,MISCELLANEOUS CARAVAN COSTS,4174,P122871-SERVICE-30 SC Supply & Fit Aerial,15/08/2023 00:00,276189,225,AS0343,ASCENT AERIALS,31/07/2023 00:00,27/08/2023 00:00,P05-2024
,LV CAMPSITE CARAVAN SALES,SUPPLIES AND SERVICES,MISCELLANEOUS CARAVAN COSTS,4174,P122634-SERVICE-Connect 4xstatics 123 124 126 127 DW,09/08/2023 00:00,276474,685,BR0018,BRADSHAW ELECTRICAL LIMITED,31/07/2023 00:00,27/08/2023 00:00,P05-2024
,LV CAMPSITE CARAVAN SALES,SUPPLIES AND SERVICES,MISCELLANEOUS CARAVAN COSTS,4174,P122434-SERVICE-HH 30 SC Panasonic TZ Super Compact Air Con,09/08/2023 00:00,276483,1616.67,SP0698,SPEEDYFIT LTD,31/07/2023 00:00,27/08/2023 00:00,P05-2024
,LV CAMPSITE CARAVAN SALES,SUPPLIES AND SERVICES,MISCELLANEOUS CARAVAN COSTS,4174,P122874-SERVICE-Introduction 43 DW HH Sale,15/08/2023 00:00,276513,1000,RA0356,RAINBOW ESTATE AGENTS (SE) LTD,31/07/2023 00:00,27/08/2023 00:00,P05-2024
,LV CAMPSITE CARAVAN SALES,SUPPLIES AND SERVICES,MISCELLANEOUS CARAVAN COSTS,4174,P122874-SERVICE-Introduction 68 DW HH Sale,15/08/2023 00:00,276513,1000,RA0356,RAINBOW ESTATE AGENTS (SE) LTD,31/07/2023 00:00,27/08/2023 00:00,P05-2024
,LV CAMPSITE CARAVAN SALES,SUPPLIES AND SERVICES,MISCELLANEOUS CARAVAN COSTS,4174,P122874-SERVICE-Introduction 30 SC HH Sale,15/08/2023 00:00,276513,1000,RA0356,RAINBOW ESTATE AGENTS (SE) LTD,31/07/2023 00:00,27/08/2023 00:00,P05-2024
,LV CAMPSITE CARAVAN SALES,SUPPLIES AND SERVICES,MISCELLANEOUS CARAVAN COSTS,4174,P122434-SERVICE-HH 30 SC Panasonic TZ Super Compact Air Con,22/08/2023 00:00,276684,-1616.67,SP0698,SPEEDYFIT LTD,31/07/2023 00:00,27/08/2023 00:00,P05-2024
,LV CAMPSITE CARAVAN SALES,SUPPLIES AND SERVICES,MISCELLANEOUS CARAVAN COSTS,4174,P122434-SERVICE-HH 30 SC Panasonic TZ Super Compact Air Con,22/08/2023 00:00,276685,1940,SP0698,SPEEDYFIT LTD,31/07/2023 00:00,27/08/2023 00:00,P05-2024
,LV CAMPSITE CARAVAN SALES,SUPPLIES AND SERVICES,MISCELLANEOUS CARAVAN COSTS,4174,DW -plumbing,27/08/2023 00:00,277025,600,MO0041,CAPSER,31/07/2023 00:00,27/08/2023 00:00,P05-2024
,LV CAMPSITE CARAVAN SALES,SUPPLIES AND SERVICES,MISCELLANEOUS CARAVAN COSTS,4174,P122994-SERVICE-125 DW 40 SC Base & Plumb 31 & 31 SC Pathways,27/08/2023 00:00,277025,4100,MO0041,CAPSER,31/07/2023 00:00,27/08/2023 00:00,P05-2024
,LV CAMPSITE CARAVAN SALES,SUPPLIES AND SERVICES,MISCELLANEOUS CARAVAN COSTS,4174,DW -plumbing,27/08/2023 00:00,277025,3500,MO0041,CAPSER,31/07/2023 00:00,27/08/2023 00:00,P05-2024
,LV CAMPSITE CARAVAN SALES,SUPPLIES AND SERVICES,MISCELLANEOUS CARAVAN COSTS,4174,DW -plumbing,27/08/2023 00:00,277025,-4100,MO0041,CAPSER,31/07/2023 00:00,27/08/2023 00:00,P05-2024
,LEE VALLEY CARAVAN PARK,SUPPLIES AND SERVICES,MISCELLANEOUS CARAVAN COSTS,4174,P120972-SERVICE-Various Sockets-  Willerby BK Linear 40/13/2,09/08/2023 00:00,276448,82.22,SO0481,SOUTHERN COUNTIES LEISURE,31/07/2023 00:00,27/08/2023 00:00,P05-2024
,LEE VALLEY CARAVAN PARK,SUPPLIES AND SERVICES,MISCELLANEOUS CARAVAN COSTS,4174,P123008-SERVICE-Mounting TV in the cottage,23/08/2023 00:00,276871,298.48,AS0343,ASCENT AERIALS,31/07/2023 00:00,27/08/2023 00:00,P05-2024
,LEE VALLEY CARAVAN PARK,SUPPLIES AND SERVICES,CONSUMABLES - LODGES,4181,P123038-SERVICE-Various Items for Riverside Cottage,27/08/2023 00:00,274828,101.02,PA0415,PATTERSONS,31/07/2023 00:00,27/08/2023 00:00,P05-2024
,LEE VALLEY CARAVAN PARK,SUPPLIES AND SERVICES,CONSUMABLES - LODGES,4181,P122883-SERVICE-Replacement Fridge,27/08/2023 00:00,276997,274.17,CU0759,CURRYS BUSINESS,31/07/2023 00:00,27/08/2023 00:00,P05-2024
,LEE VALLEY CARAVAN PARK,SUPPLIES AND SERVICES,CONSUMABLES - LODGES,4181,P122883-SERVICE-Replacement Microwave,27/08/2023 00:00,276997,16.67,CU0759,CURRYS BUSINESS,31/07/2023 00:00,27/08/2023 00:00,P05-2024
,LEE VALLEY MARINA SPRINGFIELD,SUPPLIES AND SERVICES,CLOTHING & UNIFORMS,4225,Springfield-to supply PPE & equip,22/08/2023 00:00,276454,49.99,SA0008,SAFETEC DIRECT LTD,31/07/2023 00:00,27/08/2023 00:00,P05-2024
,LEE VALLEY MARINA SPRINGFIELD,SUPPLIES AND SERVICES,CLOTHING & UNIFORMS,4225,Springfield-to supply PPE & equip,22/08/2023 00:00,276454,45.97,SA0008,SAFETEC DIRECT LTD,31/07/2023 00:00,27/08/2023 00:00,P05-2024
,LEE VALLEY MARINA SPRINGFIELD,SUPPLIES AND SERVICES,CLOTHING & UNIFORMS,4225,P122545-SERVICE-To suppy PPE & uniform as per quote,22/08/2023 00:00,276454,95.96,SA0008,SAFETEC DIRECT LTD,31/07/2023 00:00,27/08/2023 00:00,P05-2024
,LEE VALLEY MARINA SPRINGFIELD,SUPPLIES AND SERVICES,CLOTHING & UNIFORMS,4225,Springfield-to supply PPE & equip,22/08/2023 00:00,276454,-95.96,SA0008,SAFETEC DIRECT LTD,31/07/2023 00:00,27/08/2023 00:00,P05-2024
,LEE VALLEY CAMPSITE,SUPPLIES AND SERVICES,CLOTHING & UNIFORMS,4225,P122829-SERVICE-SC Staff Uniform,15/08/2023 00:00,276426,193.5,DI0017,DIRECT BOOT & SHOE SUPPLIES,31/07/2023 00:00,27/08/2023 00:00,P05-2024
,LEE VALLEY CARAVAN PARK,SUPPLIES AND SERVICES,CLOTHING & UNIFORMS,4225,P122829-SERVICE-DW Staff Uniform,15/08/2023 00:00,276426,18,DI0017,DIRECT BOOT & SHOE SUPPLIES,31/07/2023 00:00,27/08/2023 00:00,P05-2024
P&V,NORTH AREA RANGERS,SUPPLIES AND SERVICES,CLOTHING & UNIFORMS,4225,P122295-SERVICE-Delivery to address below,15/08/2023 00:00,276643,17.5,AP0245,APS LIMITED,31/07/2023 00:00,27/08/2023 00:00,P05-2024
P&V,NORTH AREA RANGERS,SUPPLIES AND SERVICES,CLOTHING & UNIFORMS,4225,P122295-SERVICE-3x Stihl Chainsaw Gloves,15/08/2023 00:00,276643,87.48,AP0245,APS LIMITED,31/07/2023 00:00,27/08/2023 00:00,P05-2024
P&V,NORTH AREA RANGERS,SUPPLIES AND SERVICES,CLOTHING & UNIFORMS,4225,P122295-SERVICE-8x Sthil Safety Helmets,15/08/2023 00:00,276643,299.68,AP0245,APS LIMITED,31/07/2023 00:00,27/08/2023 00:00,P05-2024
P&V,SOUTH AREA RANGERS,SUPPLIES AND SERVICES,CLOTHING & UNIFORMS,4225,P122455-SERVICE-Inventory transfer print (EX),08/08/2023 00:00,276050,14.6,EN0283,ENGELBERT STRAUSS LIMITED,31/07/2023 00:00,27/08/2023 00:00,P05-2024
P&V,SOUTH AREA RANGERS,SUPPLIES AND SERVICES,CLOTHING & UNIFORMS,4225,P122455-SERVICE-17x Ladies Polo Shirts - 22206 - Navy,08/08/2023 00:00,276050,450.5,EN0283,ENGELBERT STRAUSS LIMITED,31/07/2023 00:00,27/08/2023 00:00,P05-2024
P&V,SOUTH AREA RANGERS,SUPPLIES AND SERVICES,CLOTHING & UNIFORMS,4225,P122455-SERVICE-3x Ladies Micro Fleece Jacket - 77861 - Black,08/08/2023 00:00,276050,99,EN0283,ENGELBERT STRAUSS LIMITED,31/07/2023 00:00,27/08/2023 00:00,P05-2024
P&V,SOUTH AREA RANGERS,SUPPLIES AND SERVICES,CLOTHING & UNIFORMS,4225,P122455-SERVICE-Screen costs per colour/size,08/08/2023 00:00,276050,49.8,EN0283,ENGELBERT STRAUSS LIMITED,31/07/2023 00:00,27/08/2023 00:00,P05-2024
P&V,SOUTH AREA RANGERS,SUPPLIES AND SERVICES,CLOTHING & UNIFORMS,4225,P122455-SERVICE-Service Charge per order,08/08/2023 00:00,276050,9.9,EN0283,ENGELBERT STRAUSS LIMITED,31/07/2023 00:00,27/08/2023 00:00,P05-2024
P&V,SOUTH AREA RANGERS,SUPPLIES AND SERVICES,CLOTHING & UNIFORMS,4225,P122455-SERVICE-6x 3in1 Men's Functional Jacket - 77720 - Bla,08/08/2023 00:00,276050,957.6,EN0283,ENGELBERT STRAUSS LIMITED,31/07/2023 00:00,27/08/2023 00:00,P05-2024
P&V,SOUTH AREA RANGERS,SUPPLIES AND SERVICES,CLOTHING & UNIFORMS,4225,P122455-SERVICE-6x Ladies Micrp Fleece - 89781 - Black,08/08/2023 00:00,276050,162,EN0283,ENGELBERT STRAUSS LIMITED,31/07/2023 00:00,27/08/2023 00:00,P05-2024
P&V,SOUTH AREA RANGERS,SUPPLIES AND SERVICES,CLOTHING & UNIFORMS,4225,P122455-SERVICE-10x Flexi-Stretch Waterproof Trouser - 77658,08/08/2023 00:00,276050,199,EN0283,ENGELBERT STRAUSS LIMITED,31/07/2023 00:00,27/08/2023 00:00,P05-2024
P&V,SOUTH AREA RANGERS,SUPPLIES AND SERVICES,CLOTHING & UNIFORMS,4225,P122667-SERVICE-1x Disposable Ear plugs,27/08/2023 00:00,277037,39.54,AP0245,APS LIMITED,31/07/2023 00:00,27/08/2023 00:00,P05-2024
P&V,SOUTH AREA RANGERS,SUPPLIES AND SERVICES,CLOTHING & UNIFORMS,4225,P122667-SERVICE-2x Stihl Helmets,27/08/2023 00:00,277037,142.66,AP0245,APS LIMITED,31/07/2023 00:00,27/08/2023 00:00,P05-2024
P&V,SOUTH AREA RANGERS,SUPPLIES AND SERVICES,CLOTHING & UNIFORMS,4225,P122567-SERVICE-1x Stihl Dynamic Thermovent Gloves - 88611051,27/08/2023 00:00,277039,21.85,AP0245,APS LIMITED,31/07/2023 00:00,27/08/2023 00:00,P05-2024
P&V,RIVER LEE COUNTRY PARK,SUPPLIES AND SERVICES,CLOTHING & UNIFORMS,4225,P122455-SERVICE-2x 3in1 Ladies Functional Jacket - 77730 - Bl,08/08/2023 00:00,276050,329.2,EN0283,ENGELBERT STRAUSS LIMITED,31/07/2023 00:00,27/08/2023 00:00,P05-2024
P&V,RIVER LEE COUNTRY PARK,SUPPLIES AND SERVICES,CLOTHING & UNIFORMS,4225,P122455-SERVICE-5x Men's Functional Fleece - 77410 - Black,08/08/2023 00:00,276050,265,EN0283,ENGELBERT STRAUSS LIMITED,31/07/2023 00:00,27/08/2023 00:00,P05-2024
P&V,RIVER LEE COUNTRY PARK,SUPPLIES AND SERVICES,CLOTHING & UNIFORMS,4225,P122455-SERVICE-13x Men's Micro Fleece - 89581 - Black,08/08/2023 00:00,276050,351,EN0283,ENGELBERT STRAUSS LIMITED,31/07/2023 00:00,27/08/2023 00:00,P05-2024
P&V,RIVER LEE COUNTRY PARK,SUPPLIES AND SERVICES,CLOTHING & UNIFORMS,4225,P122455-SERVICE-45 x Men's Polo Shirts - 22216 - Navy,08/08/2023 00:00,276050,1170,EN0283,ENGELBERT STRAUSS LIMITED,31/07/2023 00:00,27/08/2023 00:00,P05-2024
P&V,SPORT AND LEISURE,SUPPLIES AND SERVICES,CLOTHING & UNIFORMS,4225,P122898-SERVICE-Delivery charge,22/08/2023 00:00,276633,7.95,DI0017,DIRECT BOOT & SHOE SUPPLIES,31/07/2023 00:00,27/08/2023 00:00,P05-2024
P&V,SPORT AND LEISURE,SUPPLIES AND SERVICES,CLOTHING & UNIFORMS,4225,P122898-SERVICE-Embrodiery of own garments as per quotation 3,22/08/2023 00:00,276633,133.12,DI0017,DIRECT BOOT & SHOE SUPPLIES,31/07/2023 00:00,27/08/2023 00:00,P05-2024
P&V,VOLUNTEERS (L&E),SUPPLIES AND SERVICES,CLOTHING & UNIFORMS,4225,P122344-SERVICE-4 x Large UN019 Black Full Zip Fleece with Se,09/08/2023 00:00,275362,74,DI0017,DIRECT BOOT & SHOE SUPPLIES,31/07/2023 00:00,27/08/2023 00:00,P05-2024
P&V,VOLUNTEERS (L&E),SUPPLIES AND SERVICES,CLOTHING & UNIFORMS,4225,P122344-SERVICE-2 x Size M KK403 Mens Kustom Kit Polo with Se,09/08/2023 00:00,275362,35.98,DI0017,DIRECT BOOT & SHOE SUPPLIES,31/07/2023 00:00,27/08/2023 00:00,P05-2024
P&V,VOLUNTEERS (L&E),SUPPLIES AND SERVICES,CLOTHING & UNIFORMS,4225,P122344-SERVICE-3 x Size L KK403 Mens Kustom Kit Polo with Se,09/08/2023 00:00,275362,53.97,DI0017,DIRECT BOOT & SHOE SUPPLIES,31/07/2023 00:00,27/08/2023 00:00,P05-2024
P&V,VOLUNTEERS (L&E),SUPPLIES AND SERVICES,CLOTHING & UNIFORMS,4225,P122344-SERVICE-1 x Size 14 Womens KK703 Kustom Kit Polo with,09/08/2023 00:00,275362,17.99,DI0017,DIRECT BOOT & SHOE SUPPLIES,31/07/2023 00:00,27/08/2023 00:00,P05-2024
P&V,VOLUNTEERS (L&E),SUPPLIES AND SERVICES,CLOTHING & UNIFORMS,4225,P122344-SERVICE-2 x Medium UN019 Black Full Zip Fleece with S,09/08/2023 00:00,275362,37,DI0017,DIRECT BOOT & SHOE SUPPLIES,31/07/2023 00:00,27/08/2023 00:00,P05-2024
P&V,VOLUNTEERS (L&E),SUPPLIES AND SERVICES,CLOTHING & UNIFORMS,4225,P122344-SERVICE-2 x XL UN019 Black Full Zip Fleece with Sewn,09/08/2023 00:00,275362,37,DI0017,DIRECT BOOT & SHOE SUPPLIES,31/07/2023 00:00,27/08/2023 00:00,P05-2024
P&V,VOLUNTEERS (L&E),SUPPLIES AND SERVICES,CLOTHING & UNIFORMS,4225,P122344-SERVICE-4 x Small UN019 Black Full Zip Fleeces with S,09/08/2023 00:00,275362,74,DI0017,DIRECT BOOT & SHOE SUPPLIES,31/07/2023 00:00,27/08/2023 00:00,P05-2024
P&V,VOLUNTEERS (L&E),SUPPLIES AND SERVICES,CLOTHING & UNIFORMS,4225,P122344-SERVICE-1 x Size 8 Womens KK703 Kustom Kit Polo with,09/08/2023 00:00,275362,17.99,DI0017,DIRECT BOOT & SHOE SUPPLIES,31/07/2023 00:00,27/08/2023 00:00,P05-2024
P&V,VOLUNTEERS (L&E),SUPPLIES AND SERVICES,CLOTHING & UNIFORMS,4225,P122344-SERVICE-1 x Size XXL KK403 Mens Kustom Kit Polo with,09/08/2023 00:00,275362,22.98,DI0017,DIRECT BOOT & SHOE SUPPLIES,31/07/2023 00:00,27/08/2023 00:00,P05-2024
P&V,VOLUNTEERS (L&E),SUPPLIES AND SERVICES,CLOTHING & UNIFORMS,4225,P122344-SERVICE-2 x Size XL KK403 Mens Kustom Kit Polo with S,09/08/2023 00:00,275362,35.98,DI0017,DIRECT BOOT & SHOE SUPPLIES,31/07/2023 00:00,27/08/2023 00:00,P05-2024
P&V,VOLUNTEERS (L&E),SUPPLIES AND SERVICES,CLOTHING & UNIFORMS,4225,P122344-SERVICE-1 x Size XXL KK403 Mens Kustom Kit Polo with,09/08/2023 00:00,276425,-4.99,DI0017,DIRECT BOOT & SHOE SUPPLIES,31/07/2023 00:00,27/08/2023 00:00,P05-2024
,LV LEISURE CENTRE CAMPSITE,SUPPLIES AND SERVICES,CLOTHING & UNIFORMS,4225,P122829-SERVICE-EC Staff Uniform,15/08/2023 00:00,276426,156,DI0017,DIRECT BOOT & SHOE SUPPLIES,31/07/2023 00:00,27/08/2023 00:00,P05-2024
CEO,CHIEF EXECUTIVE,SUPPLIES AND SERVICES,OFFICE EXPENSES,4311,P122955-SERVICE-Paper Clips (KF01313),27/08/2023 00:00,276849,5.67,TH0008,JKL SOLUTIONS LTD,31/07/2023 00:00,27/08/2023 00:00,P05-2024
CEO,CHIEF EXECUTIVE,SUPPLIES AND SERVICES,OFFICE EXPENSES,4311,P122955-SERVICE-A4 Gloss Photo Paper (CO29392),27/08/2023 00:00,276849,20.94,TH0008,JKL SOLUTIONS LTD,31/07/2023 00:00,27/08/2023 00:00,P05-2024
CEO,CHIEF EXECUTIVE,SUPPLIES AND SERVICES,OFFICE EXPENSES,4311,P122955-SERVICE-A4 Plastic Folders (KF24002),27/08/2023 00:00,276849,7.85,TH0008,JKL SOLUTIONS LTD,31/07/2023 00:00,27/08/2023 00:00,P05-2024
P&V,"ASSET PROTECTION, MAINT, DEVEL",SUPPLIES AND SERVICES,OFFICE EXPENSES,4311,P122910-SERVICE-AMPD Stationery,14/08/2023 00:00,276490,31.28,TH0008,JKL SOLUTIONS LTD,31/07/2023 00:00,27/08/2023 00:00,P05-2024
R&B,DEMOCRATIC REPRESENTATION & MA,SUPPLIES AND SERVICES,OFFICE EXPENSES,4311,P122568-SERVICE-Avery Address Labels (L7163-100),14/08/2023 00:00,276469,39.09,TH0008,JKL SOLUTIONS LTD,31/07/2023 00:00,27/08/2023 00:00,P05-2024
,LEE VALLEY MARINA STANSTEAD,SUPPLIES AND SERVICES,OFFICE EXPENSES,4311,P122872-SERVICE-stationery JKL,14/08/2023 00:00,276593,101.1,TH0008,JKL SOLUTIONS LTD,31/07/2023 00:00,27/08/2023 00:00,P05-2024
,LEE VALLEY MARINA STANSTEAD,SUPPLIES AND SERVICES,OFFICE EXPENSES,4311,P122897-SERVICE-1 x A3 ream of paper (site posters from Mktg),22/08/2023 00:00,276672,9.9,TH0008,JKL SOLUTIONS LTD,31/07/2023 00:00,27/08/2023 00:00,P05-2024
,LEE VALLEY MARINA STANSTEAD,SUPPLIES AND SERVICES,OFFICE EXPENSES,4311,P122983-SERVICE-elec cards blue and red - chandlery,23/08/2023 00:00,276869,85.47,PA0355,PASS (PORTABLE APPLIANCE SAFETY SERVICES) LTD,31/07/2023 00:00,27/08/2023 00:00,P05-2024
,LEE VALLEY MARINA STANSTEAD,SUPPLIES AND SERVICES,OFFICE EXPENSES,4311,P122989-SERVICE-office stationery,27/08/2023 00:00,276883,22.07,TH0008,JKL SOLUTIONS LTD,31/07/2023 00:00,27/08/2023 00:00,P05-2024
,LEE VALLEY CAMPSITE,SUPPLIES AND SERVICES,OFFICE EXPENSES,4311,P122974-SERVICE-till rolls,22/08/2023 00:00,276435,58.88,TH0008,JKL SOLUTIONS LTD,31/07/2023 00:00,27/08/2023 00:00,P05-2024
,LEE VALLEY CAMPSITE,SUPPLIES AND SERVICES,OFFICE EXPENSES,4311,P122974-SERVICE-laminate pouches,22/08/2023 00:00,276435,64.71,TH0008,JKL SOLUTIONS LTD,31/07/2023 00:00,27/08/2023 00:00,P05-2024
,LEE VALLEY CAMPSITE,SUPPLIES AND SERVICES,OFFICE EXPENSES,4311,P122974-SERVICE-post it note pads,22/08/2023 00:00,276435,32.1,TH0008,JKL SOLUTIONS LTD,31/07/2023 00:00,27/08/2023 00:00,P05-2024
,LEE VALLEY CAMPSITE,SUPPLIES AND SERVICES,OFFICE EXPENSES,4311,P122974-SERVICE-photocopy paper,22/08/2023 00:00,276435,45.22,TH0008,JKL SOLUTIONS LTD,31/07/2023 00:00,27/08/2023 00:00,P05-2024
,LEE VALLEY CAMPSITE,SUPPLIES AND SERVICES,OFFICE EXPENSES,4311,P122974-SERVICE-plastic punch pockets,22/08/2023 00:00,276435,3.12,TH0008,JKL SOLUTIONS LTD,31/07/2023 00:00,27/08/2023 00:00,P05-2024
,LEE VALLEY CARAVAN PARK,SUPPLIES AND SERVICES,OFFICE EXPENSES,4311,P122855-SERVICE-Stocktaking,08/08/2023 00:00,276290,165,VE0038,VENNERS LTD,31/07/2023 00:00,27/08/2023 00:00,P05-2024
,LEE VALLEY CARAVAN PARK,SUPPLIES AND SERVICES,OFFICE EXPENSES,4311,P122931-SERVICE-Extra Twin Socket in Office,22/08/2023 00:00,276610,73,BR0018,BRADSHAW ELECTRICAL LIMITED,31/07/2023 00:00,27/08/2023 00:00,P05-2024
,LV LEISURE CENTRE CAMPSITE,SUPPLIES AND SERVICES,OFFICE EXPENSES,4311,P122670-SERVICE-Office stationary,14/08/2023 00:00,276436,100.19,TH0008,JKL SOLUTIONS LTD,31/07/2023 00:00,27/08/2023 00:00,P05-2024
P&V,MYDDELTON HOUSE,SUPPLIES AND SERVICES,POSTAGE & MAILING,4445,PITNEY BOWES PURCHASE POWER,14/08/2023 00:00,276638,489.97,PI0021,PITNEY BOWES PURCHASE POWER,31/07/2023 00:00,27/08/2023 00:00,P05-2024
P&V,MYDDELTON HOUSE,SUPPLIES AND SERVICES,POSTAGE & MAILING,4445,ROYAL MAIL,16/08/2023 00:00,276644,0.62,PI0021,PITNEY BOWES PURCHASE POWER,31/07/2023 00:00,27/08/2023 00:00,P05-2024
R&B,INFORMATION TECHNOLOGY,SUPPLIES AND SERVICES,TELEPHONES (OFFICE),4481,IT-monthly charge,08/08/2023 00:00,276202,29.5,ZE0007,ZEN INTERNET LTD,31/07/2023 00:00,27/08/2023 00:00,P05-2024
R&B,INFORMATION TECHNOLOGY,SUPPLIES AND SERVICES,TELEPHONES (OFFICE),4481,IT- Monthly charge,21/08/2023 00:00,276674,31.32,ZE0007,ZEN INTERNET LTD,31/07/2023 00:00,27/08/2023 00:00,P05-2024
R&B,INFORMATION TECHNOLOGY,SUPPLIES AND SERVICES,TELEPHONES (OFFICE),4481,IT-ZEN FIBRE PRO MONTHLY CHG,21/08/2023 00:00,276675,38,ZE0007,ZEN INTERNET LTD,31/07/2023 00:00,27/08/2023 00:00,P05-2024
R&B,INFORMATION TECHNOLOGY,SUPPLIES AND SERVICES,TELEPHONES (MOBILE),4484,IT-Monthly Mobile Charges,27/08/2023 00:00,277001,937.06,VO0010,VODAFONE  LIMITED (CORPORATE),31/07/2023 00:00,27/08/2023 00:00,P05-2024
CEO,CHIEF EXECUTIVE,SUPPLIES AND SERVICES,HOSPITALITY,4505,P122637-SERVICE-Refreshments at White Water Centre on 18 Augu,08/08/2023 00:00,276470,16,GR0097,GREENWICH LEISURE LTD,31/07/2023 00:00,27/08/2023 00:00,P05-2024
R&B,CORPORATE TRAINING,SUPPLIES AND SERVICES,HOSPITALITY,4505,P122321-SERVICE-Room and Catering on 29/06/23:,22/08/2023 00:00,276692,280.83,GR0097,GREENWICH LEISURE LTD,31/07/2023 00:00,27/08/2023 00:00,P05-2024
,LEE VALLEY CAMPSITE,SUPPLIES AND SERVICES,MARKETING,4603,P122607-SERVICE-Site Signage,08/08/2023 00:00,276271,60,SL0528,SLAM SIGNS LTD,31/07/2023 00:00,27/08/2023 00:00,P05-2024
,LEE VALLEY CAMPSITE,SUPPLIES AND SERVICES,MARKETING,4603,P122607-SERVICE-Site Signage,22/08/2023 00:00,276412,130,SL0528,SLAM SIGNS LTD,31/07/2023 00:00,27/08/2023 00:00,P05-2024
,LEE VALLEY CARAVAN PARK,SUPPLIES AND SERVICES,MARKETING,4603,P121464-SERVICE-Inclusion Late Availability Newsletter,08/08/2023 00:00,275850,195,WA0063,WARNERS GROUP PUBLICATIONS PLC,31/07/2023 00:00,27/08/2023 00:00,P05-2024
P&V,SPORTS DEVELOPMENT GRANTS & AG,SUPPLIES AND SERVICES,MARKETING,4603,P122432-SERVICE-Active communities A5 leaflet,16/08/2023 00:00,276414,133,BL0393,BLUE SEA DESIGN,31/07/2023 00:00,27/08/2023 00:00,P05-2024
P&V,SPORTS DEVELOPMENT GRANTS & AG,SUPPLIES AND SERVICES,MARKETING,4603,"P122846-SERVICE-2,500 half fold leaflets (4pp A5) on 170gsm s",16/08/2023 00:00,276486,153.65,SO0582,SOLOPRESS,31/07/2023 00:00,27/08/2023 00:00,P05-2024
P&V,MYDDELTON HOUSE,SUPPLIES AND SERVICES,CASH COLLECTIONS,4642,P122957-SERVICE-Myddelton House cash collection Julu,22/08/2023 00:00,276584,24.86,SE0692,SECURITY PLUS LTD,31/07/2023 00:00,27/08/2023 00:00,P05-2024
,LEE VALLEY MARINA SPRINGFIELD,SUPPLIES AND SERVICES,CASH COLLECTIONS,4642,P122957-SERVICE-Stanstead Marina,22/08/2023 00:00,276584,24.86,SE0692,SECURITY PLUS LTD,31/07/2023 00:00,27/08/2023 00:00,P05-2024
,LEE VALLEY MARINA STANSTEAD,SUPPLIES AND SERVICES,CASH COLLECTIONS,4642,P122957-SERVICE-Springfield Marina,22/08/2023 00:00,276584,12.43,SE0692,SECURITY PLUS LTD,31/07/2023 00:00,27/08/2023 00:00,P05-2024
,LEE VALLEY CAMPSITE,SUPPLIES AND SERVICES,CASH COLLECTIONS,4642,P122957-SERVICE-Sewardstone Campsite,22/08/2023 00:00,276584,24.86,SE0692,SECURITY PLUS LTD,31/07/2023 00:00,27/08/2023 00:00,P05-2024
,LEE VALLEY CARAVAN PARK,SUPPLIES AND SERVICES,CASH COLLECTIONS,4642,P122957-SERVICE-Dobbs Weir caravan Park,22/08/2023 00:00,276584,37.29,SE0692,SECURITY PLUS LTD,31/07/2023 00:00,27/08/2023 00:00,P05-2024
,LV LEISURE CENTRE CAMPSITE,SUPPLIES AND SERVICES,CASH COLLECTIONS,4642,P122957-SERVICE-Edmonton Campsite,22/08/2023 00:00,276584,37.29,SE0692,SECURITY PLUS LTD,31/07/2023 00:00,27/08/2023 00:00,P05-2024
,LEE VALLEY MARINA STANSTEAD,SUPPLIES AND SERVICES,SECURITY,4650,P122845-SERVICE-electrics for gate installation,08/08/2023 00:00,276277,240,BR0018,BRADSHAW ELECTRICAL LIMITED,31/07/2023 00:00,27/08/2023 00:00,P05-2024
,LEE VALLEY MARINA STANSTEAD,SUPPLIES AND SERVICES,SECURITY,4650,P122928-SERVICE-CALL OUT FOR BARRIER ARM,15/08/2023 00:00,276596,110,PS0429,PSL AUTOMATION,31/07/2023 00:00,27/08/2023 00:00,P05-2024
,LEE VALLEY CARAVAN PARK,SUPPLIES AND SERVICES,SECURITY,4650,P122856-SERVICE-Yearly Redcare & maintenance,08/08/2023 00:00,276399,899.68,AD0015,ADT FIRE & SECURITY PLC,31/07/2023 00:00,27/08/2023 00:00,P05-2024
P&V,SOUTH AREA RANGERS,SUPPLIES AND SERVICES,SECURITY,4650,P122624-SERVICE-Move Block from Waltham Abbey to Gunpowder Pa,14/08/2023 00:00,276243,450,BU0090,BUSH WHEELER SERVICES LTD,31/07/2023 00:00,27/08/2023 00:00,P05-2024
CEO,LVLC SERVICE CHARGE,SUPPLIES AND SERVICES,SECURITY,4650,P121975-SERVICE-Security,14/08/2023 00:00,276500,997.6,PA0059,PARKGUARD LTD,31/07/2023 00:00,27/08/2023 00:00,P05-2024
CEO,LVLC SERVICE CHARGE,SUPPLIES AND SERVICES,SECURITY,4650,P122844-SERVICE-Automated Barrier Maintenance - Premium Cover,22/08/2023 00:00,276514,825,PS0429,PSL AUTOMATION,31/07/2023 00:00,27/08/2023 00:00,P05-2024
CEO,PR/COMMUNICATIONS,SUPPLIES AND SERVICES,ADVERTISING - AWARENESS,4656,P121493-SERVICE-Bird Fair programme - half page advert,14/08/2023 00:00,276429,500,WA0063,WARNERS GROUP PUBLICATIONS PLC,31/07/2023 00:00,27/08/2023 00:00,P05-2024
CEO,PR/COMMUNICATIONS,SUPPLIES AND SERVICES,MEDIA MONITORING,4660,P122701-SERVICE-Simplified licence 2023-24,27/08/2023 00:00,276892,9014.2,NE0043,NLA MEDIA ACCESS LIMITED,31/07/2023 00:00,27/08/2023 00:00,P05-2024
CEO,LEGAL SERVICES,SUPPLIES AND SERVICES,OFFSITE ARCHIVED STORAGE,4667,P122952-SERVICE-Off site sorage/archive july 2023,27/08/2023 00:00,276402,389.15,DA0154,RESTORE PLC,31/07/2023 00:00,27/08/2023 00:00,P05-2024
,LV LEISURE CENTRE CAMPSITE,SUPPLIES AND SERVICES,ENTERTAINMENT & OTHER LICENCES,4711,P122825-SERVICE-licensing,08/08/2023 00:00,276296,180,EN0120,LONDON BOROUGH OF ENFIELD,31/07/2023 00:00,27/08/2023 00:00,P05-2024
,LV LEISURE CENTRE CAMPSITE,SUPPLIES AND SERVICES,ENTERTAINMENT & OTHER LICENCES,4711,P122942-SERVICE-license for last year,16/08/2023 00:00,276590,180,EN0120,LONDON BOROUGH OF ENFIELD,31/07/2023 00:00,27/08/2023 00:00,P05-2024
P&V,MYDDLETON HSE HERITAGE CENTRE,SUPPLIES AND SERVICES,NET CATERING PURCHASES,4777,BTR-food/drinks,08/08/2023 00:00,276218,-195.21,360001,BIDFOOD,31/07/2023 00:00,27/08/2023 00:00,P05-2024
P&V,MYDDLETON HSE HERITAGE CENTRE,SUPPLIES AND SERVICES,NET CATERING PURCHASES,4777,BTR-food/drinks,08/08/2023 00:00,276218,171.85,360001,BIDFOOD,31/07/2023 00:00,27/08/2023 00:00,P05-2024
P&V,MYDDLETON HSE HERITAGE CENTRE,SUPPLIES AND SERVICES,NET CATERING PURCHASES,4777,P122639-SERVICE-Food & Drink order week com 24/07/2023,08/08/2023 00:00,276218,195.21,360001,BIDFOOD,31/07/2023 00:00,27/08/2023 00:00,P05-2024
P&V,MYDDLETON HSE HERITAGE CENTRE,SUPPLIES AND SERVICES,NET CATERING PURCHASES,4777,P122638-SERVICE-Food drink order week com 17/07/2023,08/08/2023 00:00,276218,182.77,360001,BIDFOOD,31/07/2023 00:00,27/08/2023 00:00,P05-2024
P&V,MYDDLETON HSE HERITAGE CENTRE,SUPPLIES AND SERVICES,NET CATERING PURCHASES,4777,BTR-food/drinks,08/08/2023 00:00,276218,23.36,360001,BIDFOOD,31/07/2023 00:00,27/08/2023 00:00,P05-2024
P&V,MYDDLETON HSE HERITAGE CENTRE,SUPPLIES AND SERVICES,NET CATERING PURCHASES,4777,BTR- food and drinks,08/08/2023 00:00,276298,136.55,360001,BIDFOOD,31/07/2023 00:00,27/08/2023 00:00,P05-2024
P&V,MYDDLETON HSE HERITAGE CENTRE,SUPPLIES AND SERVICES,NET CATERING PURCHASES,4777,BTR- food and drinks,08/08/2023 00:00,276298,534.75,360001,BIDFOOD,31/07/2023 00:00,27/08/2023 00:00,P05-2024
P&V,MYDDLETON HSE HERITAGE CENTRE,SUPPLIES AND SERVICES,NET CATERING PURCHASES,4777,BTR- food and drinks,08/08/2023 00:00,276298,-671.3,360001,BIDFOOD,31/07/2023 00:00,27/08/2023 00:00,P05-2024
P&V,MYDDLETON HSE HERITAGE CENTRE,SUPPLIES AND SERVICES,NET CATERING PURCHASES,4777,P122639-SERVICE-Food & Drink order week com 24/07/2023,08/08/2023 00:00,276298,671.3,360001,BIDFOOD,31/07/2023 00:00,27/08/2023 00:00,P05-2024
P&V,MYDDLETON HSE HERITAGE CENTRE,SUPPLIES AND SERVICES,NET CATERING PURCHASES,4777,P122539-SERVICE-Cofee order weeek com 10/07/2023,16/08/2023 00:00,276405,79.65,TU0194,TUDOR TEA & COFFEE,31/07/2023 00:00,27/08/2023 00:00,P05-2024
P&V,MYDDLETON HSE HERITAGE CENTRE,SUPPLIES AND SERVICES,NET CATERING PURCHASES,4777,P121783-SERVICE-Coffee order weeek com 01 May 2023,16/08/2023 00:00,276405,24,TU0194,TUDOR TEA & COFFEE,31/07/2023 00:00,27/08/2023 00:00,P05-2024
P&V,MYDDLETON HSE HERITAGE CENTRE,SUPPLIES AND SERVICES,NET CATERING PURCHASES,4777,P122027-SERVICE-Coffee & Puly cleaner order week com 22 May 2,16/08/2023 00:00,276405,84.3,TU0194,TUDOR TEA & COFFEE,31/07/2023 00:00,27/08/2023 00:00,P05-2024
P&V,MYDDLETON HSE HERITAGE CENTRE,SUPPLIES AND SERVICES,NET CATERING PURCHASES,4777,BTR-food/drinks,16/08/2023 00:00,276407,96.43,360001,BIDFOOD,31/07/2023 00:00,27/08/2023 00:00,P05-2024
P&V,MYDDLETON HSE HERITAGE CENTRE,SUPPLIES AND SERVICES,NET CATERING PURCHASES,4777,BTR-food/drinks,16/08/2023 00:00,276407,52.84,360001,BIDFOOD,31/07/2023 00:00,27/08/2023 00:00,P05-2024
P&V,MYDDLETON HSE HERITAGE CENTRE,SUPPLIES AND SERVICES,NET CATERING PURCHASES,4777,P122791-SERVICE-Food/Drink order week com 31/07/2023,16/08/2023 00:00,276407,149.27,360001,BIDFOOD,31/07/2023 00:00,27/08/2023 00:00,P05-2024
P&V,MYDDLETON HSE HERITAGE CENTRE,SUPPLIES AND SERVICES,NET CATERING PURCHASES,4777,P122639-SERVICE-Food & Drink order week com 24/07/2023,16/08/2023 00:00,276407,133.49,360001,BIDFOOD,31/07/2023 00:00,27/08/2023 00:00,P05-2024
P&V,MYDDLETON HSE HERITAGE CENTRE,SUPPLIES AND SERVICES,NET CATERING PURCHASES,4777,BTR-food/drinks,16/08/2023 00:00,276407,-149.27,360001,BIDFOOD,31/07/2023 00:00,27/08/2023 00:00,P05-2024
P&V,MYDDLETON HSE HERITAGE CENTRE,SUPPLIES AND SERVICES,NET CATERING PURCHASES,4777,P122791-SERVICE-Food/Drink order week com 31/07/2023,16/08/2023 00:00,276516,207.15,360001,BIDFOOD,31/07/2023 00:00,27/08/2023 00:00,P05-2024
P&V,MYDDLETON HSE HERITAGE CENTRE,SUPPLIES AND SERVICES,NET CATERING PURCHASES,4777,BTR- food/drinks,16/08/2023 00:00,276516,80.67,360001,BIDFOOD,31/07/2023 00:00,27/08/2023 00:00,P05-2024
P&V,MYDDLETON HSE HERITAGE CENTRE,SUPPLIES AND SERVICES,NET CATERING PURCHASES,4777,BTR- food/drinks,16/08/2023 00:00,276516,-207.15,360001,BIDFOOD,31/07/2023 00:00,27/08/2023 00:00,P05-2024
P&V,MYDDLETON HSE HERITAGE CENTRE,SUPPLIES AND SERVICES,NET CATERING PURCHASES,4777,BTR- food/drinks,16/08/2023 00:00,276516,126.48,360001,BIDFOOD,31/07/2023 00:00,27/08/2023 00:00,P05-2024
P&V,MYDDLETON HSE HERITAGE CENTRE,SUPPLIES AND SERVICES,NET CATERING PURCHASES,4777,BTR-food/drinks,16/08/2023 00:00,276624,114.2,360001,BIDFOOD,31/07/2023 00:00,27/08/2023 00:00,P05-2024
P&V,MYDDLETON HSE HERITAGE CENTRE,SUPPLIES AND SERVICES,NET CATERING PURCHASES,4777,BTR-food/drinks,16/08/2023 00:00,276624,414.36,360001,BIDFOOD,31/07/2023 00:00,27/08/2023 00:00,P05-2024
P&V,MYDDLETON HSE HERITAGE CENTRE,SUPPLIES AND SERVICES,NET CATERING PURCHASES,4777,BTR-food/drinks,16/08/2023 00:00,276624,-528.56,360001,BIDFOOD,31/07/2023 00:00,27/08/2023 00:00,P05-2024
P&V,MYDDLETON HSE HERITAGE CENTRE,SUPPLIES AND SERVICES,NET CATERING PURCHASES,4777,P122791-SERVICE-Food/Drink order week com 31/07/2023,16/08/2023 00:00,276624,528.56,360001,BIDFOOD,31/07/2023 00:00,27/08/2023 00:00,P05-2024
P&V,MYDDLETON HSE HERITAGE CENTRE,SUPPLIES AND SERVICES,NET CATERING PURCHASES,4777,P122791-SERVICE-Food/Drink order week com 31/07/2023,16/08/2023 00:00,276645,-9.07,360001,BIDFOOD,31/07/2023 00:00,27/08/2023 00:00,P05-2024
P&V,MYDDLETON HSE HERITAGE CENTRE,SUPPLIES AND SERVICES,NET CATERING PURCHASES,4777,BTR-food/drinks,16/08/2023 00:00,276646,54.46,360001,BIDFOOD,31/07/2023 00:00,27/08/2023 00:00,P05-2024
P&V,MYDDLETON HSE HERITAGE CENTRE,SUPPLIES AND SERVICES,NET CATERING PURCHASES,4777,BTR-food/drinks,16/08/2023 00:00,276646,154.01,360001,BIDFOOD,31/07/2023 00:00,27/08/2023 00:00,P05-2024
P&V,MYDDLETON HSE HERITAGE CENTRE,SUPPLIES AND SERVICES,NET CATERING PURCHASES,4777,BTR-food/drinks,16/08/2023 00:00,276646,-208.47,360001,BIDFOOD,31/07/2023 00:00,27/08/2023 00:00,P05-2024
P&V,MYDDLETON HSE HERITAGE CENTRE,SUPPLIES AND SERVICES,NET CATERING PURCHASES,4777,P122791-SERVICE-Food/Drink order week com 31/07/2023,16/08/2023 00:00,276646,124.09,360001,BIDFOOD,31/07/2023 00:00,27/08/2023 00:00,P05-2024
P&V,MYDDLETON HSE HERITAGE CENTRE,SUPPLIES AND SERVICES,NET CATERING PURCHASES,4777,P122793-SERVICE-Food/Drink order week com 07/08/2023,16/08/2023 00:00,276646,208.47,360001,BIDFOOD,31/07/2023 00:00,27/08/2023 00:00,P05-2024
P&V,MYDDLETON HSE HERITAGE CENTRE,SUPPLIES AND SERVICES,NET CATERING PURCHASES,4777,BTR-food & drinks,16/08/2023 00:00,276699,149.43,360001,BIDFOOD,31/07/2023 00:00,27/08/2023 00:00,P05-2024
P&V,MYDDLETON HSE HERITAGE CENTRE,SUPPLIES AND SERVICES,NET CATERING PURCHASES,4777,BTR-food & drinks,16/08/2023 00:00,276699,335.81,360001,BIDFOOD,31/07/2023 00:00,27/08/2023 00:00,P05-2024
P&V,MYDDLETON HSE HERITAGE CENTRE,SUPPLIES AND SERVICES,NET CATERING PURCHASES,4777,BTR-food & drinks,16/08/2023 00:00,276699,-485.24,360001,BIDFOOD,31/07/2023 00:00,27/08/2023 00:00,P05-2024
P&V,MYDDLETON HSE HERITAGE CENTRE,SUPPLIES AND SERVICES,NET CATERING PURCHASES,4777,P122793-SERVICE-Food/Drink order week com 07/08/2023,16/08/2023 00:00,276699,485.24,360001,BIDFOOD,31/07/2023 00:00,27/08/2023 00:00,P05-2024
P&V,MYDDLETON HSE HERITAGE CENTRE,SUPPLIES AND SERVICES,NET CATERING PURCHASES,4777,LIDL-BREAD X 6,22/08/2023 00:00,276817,8.34,FI0001,DIRECTOR OF FINANCE - CASH,31/07/2023 00:00,27/08/2023 00:00,P05-2024
P&V,MYDDLETON HSE HERITAGE CENTRE,SUPPLIES AND SERVICES,NET CATERING PURCHASES,4777,SAINSBURYS-BREAD X6,22/08/2023 00:00,276817,8.64,FI0001,DIRECTOR OF FINANCE - CASH,31/07/2023 00:00,27/08/2023 00:00,P05-2024
P&V,MYDDLETON HSE HERITAGE CENTRE,SUPPLIES AND SERVICES,NET CATERING PURCHASES,4777,SAINSBURYS -BREAD X 6,22/08/2023 00:00,276817,8.34,FI0001,DIRECTOR OF FINANCE - CASH,31/07/2023 00:00,27/08/2023 00:00,P05-2024
P&V,MYDDLETON HSE HERITAGE CENTRE,SUPPLIES AND SERVICES,NET CATERING PURCHASES,4777,BTR-food &  drinks,27/08/2023 00:00,276903,-306.29,360001,BIDFOOD,31/07/2023 00:00,27/08/2023 00:00,P05-2024
P&V,MYDDLETON HSE HERITAGE CENTRE,SUPPLIES AND SERVICES,NET CATERING PURCHASES,4777,BTR-food &  drinks,27/08/2023 00:00,276903,247.49,360001,BIDFOOD,31/07/2023 00:00,27/08/2023 00:00,P05-2024
P&V,MYDDLETON HSE HERITAGE CENTRE,SUPPLIES AND SERVICES,NET CATERING PURCHASES,4777,BTR-food &  drinks,27/08/2023 00:00,276903,58.8,360001,BIDFOOD,31/07/2023 00:00,27/08/2023 00:00,P05-2024
P&V,MYDDLETON HSE HERITAGE CENTRE,SUPPLIES AND SERVICES,NET CATERING PURCHASES,4777,P122891-SERVICE-Food & Drink order week com 07.08.2023,27/08/2023 00:00,276903,205.98,360001,BIDFOOD,31/07/2023 00:00,27/08/2023 00:00,P05-2024
P&V,MYDDLETON HSE HERITAGE CENTRE,SUPPLIES AND SERVICES,NET CATERING PURCHASES,4777,P122793-SERVICE-Food/Drink order week com 07/08/2023,27/08/2023 00:00,276903,306.29,360001,BIDFOOD,31/07/2023 00:00,27/08/2023 00:00,P05-2024
,LEE VALLEY MARINA SPRINGFIELD,SUPPLIES AND SERVICES,TRADING AC - EXTERNAL PURCHASE,4875,P122668-SERVICE-Paint,08/08/2023 00:00,276028,590.67,CR0651,CRAFTMASTER PAINTS,31/07/2023 00:00,27/08/2023 00:00,P05-2024
,LEE VALLEY MARINA SPRINGFIELD,SUPPLIES AND SERVICES,TRADING AC - EXTERNAL PURCHASE,4875,P122558-SERVICE-General chandlery stock,08/08/2023 00:00,276199,9.63,MI0200,MIDLAND CHANDLERS LIMITED,31/07/2023 00:00,27/08/2023 00:00,P05-2024
,LEE VALLEY MARINA SPRINGFIELD,SUPPLIES AND SERVICES,TRADING AC - EXTERNAL PURCHASE,4875,P122788-SERVICE-Gas and electrical fittings,08/08/2023 00:00,276300,332.33,AQ0033,AQUAFAX LIMITED,31/07/2023 00:00,27/08/2023 00:00,P05-2024
,LEE VALLEY MARINA SPRINGFIELD,SUPPLIES AND SERVICES,TRADING AC - EXTERNAL PURCHASE,4875,P122558-SERVICE-General chandlery stock,08/08/2023 00:00,276401,1.07,MI0200,MIDLAND CHANDLERS LIMITED,31/07/2023 00:00,27/08/2023 00:00,P05-2024
,LEE VALLEY MARINA SPRINGFIELD,SUPPLIES AND SERVICES,TRADING AC - EXTERNAL PURCHASE,4875,P122790-SERVICE-Chandlery Stock various,09/08/2023 00:00,276450,349.74,MI0200,MIDLAND CHANDLERS LIMITED,31/07/2023 00:00,27/08/2023 00:00,P05-2024
,LEE VALLEY MARINA SPRINGFIELD,SUPPLIES AND SERVICES,TRADING AC - EXTERNAL PURCHASE,4875,P122837-SERVICE-General chandlery stock,09/08/2023 00:00,276451,630.19,MI0200,MIDLAND CHANDLERS LIMITED,31/07/2023 00:00,27/08/2023 00:00,P05-2024
,LEE VALLEY MARINA SPRINGFIELD,SUPPLIES AND SERVICES,TRADING AC - EXTERNAL PURCHASE,4875,P122879-SERVICE-Chandlery Stock,16/08/2023 00:00,276599,353.16,MI0200,MIDLAND CHANDLERS LIMITED,31/07/2023 00:00,27/08/2023 00:00,P05-2024
,LEE VALLEY MARINA SPRINGFIELD,SUPPLIES AND SERVICES,TRADING AC - EXTERNAL PURCHASE,4875,P122912-SERVICE-Paint,22/08/2023 00:00,276614,1311.04,CR0651,CRAFTMASTER PAINTS,31/07/2023 00:00,27/08/2023 00:00,P05-2024
,LEE VALLEY MARINA SPRINGFIELD,SUPPLIES AND SERVICES,TRADING AC - EXTERNAL PURCHASE,4875,P122863-SERVICE-Tools and painting supplies,16/08/2023 00:00,276618,751.07,CE0510,CENTURION EUROPE LIMITED,31/07/2023 00:00,27/08/2023 00:00,P05-2024
,LEE VALLEY MARINA SPRINGFIELD,SUPPLIES AND SERVICES,TRADING AC - EXTERNAL PURCHASE,4875,P122927-SERVICE-Chandlery Stock various,16/08/2023 00:00,276647,653.78,MI0200,MIDLAND CHANDLERS LIMITED,31/07/2023 00:00,27/08/2023 00:00,P05-2024
,LEE VALLEY MARINA SPRINGFIELD,SUPPLIES AND SERVICES,TRADING AC - EXTERNAL PURCHASE,4875,P122936-SERVICE-Customer order,22/08/2023 00:00,276667,62.64,MI0200,MIDLAND CHANDLERS LIMITED,31/07/2023 00:00,27/08/2023 00:00,P05-2024
,LEE VALLEY MARINA SPRINGFIELD,SUPPLIES AND SERVICES,TRADING AC - EXTERNAL PURCHASE,4875,P122926-SERVICE-Customer paint order,22/08/2023 00:00,276676,401.2,AQ0033,AQUAFAX LIMITED,31/07/2023 00:00,27/08/2023 00:00,P05-2024
,LEE VALLEY MARINA SPRINGFIELD,SUPPLIES AND SERVICES,TRADING AC - EXTERNAL PURCHASE,4875,P122927-SERVICE-Chandlery Stock various,22/08/2023 00:00,276697,63.16,MI0200,MIDLAND CHANDLERS LIMITED,31/07/2023 00:00,27/08/2023 00:00,P05-2024
,LEE VALLEY MARINA SPRINGFIELD,SUPPLIES AND SERVICES,TRADING AC - EXTERNAL PURCHASE,4875,P122879-SERVICE-Chandlery Stock,22/08/2023 00:00,276698,-62.24,MI0200,MIDLAND CHANDLERS LIMITED,31/07/2023 00:00,27/08/2023 00:00,P05-2024
,LEE VALLEY MARINA SPRINGFIELD,SUPPLIES AND SERVICES,TRADING AC - EXTERNAL PURCHASE,4875,P122963-SERVICE-General chandlery Stock,27/08/2023 00:00,276837,-49.43,MI0200,MIDLAND CHANDLERS LIMITED,31/07/2023 00:00,27/08/2023 00:00,P05-2024
,LEE VALLEY MARINA SPRINGFIELD,SUPPLIES AND SERVICES,TRADING AC - EXTERNAL PURCHASE,4875,P122919-SERVICE-Ropes,22/08/2023 00:00,276843,955.7,DS0201,DSM GROUP,31/07/2023 00:00,27/08/2023 00:00,P05-2024
,LEE VALLEY MARINA SPRINGFIELD,SUPPLIES AND SERVICES,TRADING AC - EXTERNAL PURCHASE,4875,P122919-SERVICE-Ropes,22/08/2023 00:00,276844,16.66,DS0201,DSM GROUP,31/07/2023 00:00,27/08/2023 00:00,P05-2024
,LEE VALLEY MARINA SPRINGFIELD,SUPPLIES AND SERVICES,TRADING AC - EXTERNAL PURCHASE,4875,P122788-SERVICE-Gas and electrical fittings,22/08/2023 00:00,276855,-21.75,AQ0033,AQUAFAX LIMITED,31/07/2023 00:00,27/08/2023 00:00,P05-2024
,LEE VALLEY MARINA SPRINGFIELD,SUPPLIES AND SERVICES,TRADING AC - EXTERNAL PURCHASE,4875,P123010-SERVICE-Chandlery Stock,27/08/2023 00:00,276888,27.48,AS0036,ASAP SUPPLIES,31/07/2023 00:00,27/08/2023 00:00,P05-2024
,LEE VALLEY MARINA SPRINGFIELD,SUPPLIES AND SERVICES,TRADING AC - EXTERNAL PURCHASE,4875,P123010-SERVICE-Chandlery Stock,27/08/2023 00:00,276889,202.72,AS0036,ASAP SUPPLIES,31/07/2023 00:00,27/08/2023 00:00,P05-2024
,LEE VALLEY MARINA SPRINGFIELD,SUPPLIES AND SERVICES,TRADING AC - EXTERNAL PURCHASE,4875,P122963-SERVICE-General chandlery Stock,27/08/2023 00:00,276890,49.43,MI0200,MIDLAND CHANDLERS LIMITED,31/07/2023 00:00,27/08/2023 00:00,P05-2024
,LEE VALLEY MARINA SPRINGFIELD,SUPPLIES AND SERVICES,TRADING AC - EXTERNAL PURCHASE,4875,P122879-SERVICE-Chandlery Stock,27/08/2023 00:00,276918,10.7,MI0200,MIDLAND CHANDLERS LIMITED,31/07/2023 00:00,27/08/2023 00:00,P05-2024
,LEE VALLEY MARINA SPRINGFIELD,SUPPLIES AND SERVICES,TRADING AC - EXTERNAL PURCHASE,4875,P122558-SERVICE-General chandlery stock,27/08/2023 00:00,276918,43.06,MI0200,MIDLAND CHANDLERS LIMITED,31/07/2023 00:00,27/08/2023 00:00,P05-2024
,LEE VALLEY MARINA SPRINGFIELD,SUPPLIES AND SERVICES,TRADING AC - EXTERNAL PURCHASE,4875,P123004-SERVICE-Chandlery Stock various,27/08/2023 00:00,276919,170.94,MI0200,MIDLAND CHANDLERS LIMITED,31/07/2023 00:00,27/08/2023 00:00,P05-2024
,LEE VALLEY MARINA SPRINGFIELD,SUPPLIES AND SERVICES,TRADING AC - EXTERNAL PURCHASE,4875,P123013-SERVICE-Customer order,27/08/2023 00:00,276920,438.78,MI0200,MIDLAND CHANDLERS LIMITED,31/07/2023 00:00,27/08/2023 00:00,P05-2024
,LEE VALLEY MARINA SPRINGFIELD,SUPPLIES AND SERVICES,TRADING AC - EXTERNAL PURCHASE,4875,P123036-SERVICE-Chandlery Stock general,27/08/2023 00:00,276999,333.13,MI0200,MIDLAND CHANDLERS LIMITED,31/07/2023 00:00,27/08/2023 00:00,P05-2024
,LEE VALLEY MARINA SPRINGFIELD,SUPPLIES AND SERVICES,TRADING AC - EXTERNAL PURCHASE,4875,P123045-SERVICE-Paint,27/08/2023 00:00,277000,875.3,CR0651,CRAFTMASTER PAINTS,31/07/2023 00:00,27/08/2023 00:00,P05-2024
,STANSTEAD RECHARGEABLE WORKS,SUPPLIES AND SERVICES,TRADING AC - EXTERNAL PURCHASE,4875,P122939-SERVICE-chandlery items,15/08/2023 00:00,275185,30.8,AS0036,ASAP SUPPLIES,31/07/2023 00:00,27/08/2023 00:00,P05-2024
,STANSTEAD RECHARGEABLE WORKS,SUPPLIES AND SERVICES,TRADING AC - EXTERNAL PURCHASE,4875,P122966-SERVICE-chandlery stock,22/08/2023 00:00,275186,100.44,AS0036,ASAP SUPPLIES,31/07/2023 00:00,27/08/2023 00:00,P05-2024
,STANSTEAD RECHARGEABLE WORKS,SUPPLIES AND SERVICES,TRADING AC - EXTERNAL PURCHASE,4875,P122939-SERVICE-chandlery items,15/08/2023 00:00,275187,36.96,AS0036,ASAP SUPPLIES,31/07/2023 00:00,27/08/2023 00:00,P05-2024
,STANSTEAD RECHARGEABLE WORKS,SUPPLIES AND SERVICES,TRADING AC - EXTERNAL PURCHASE,4875,P122257-SERVICE-chandlery stock,08/08/2023 00:00,275876,42.32,MI0200,MIDLAND CHANDLERS LIMITED,31/07/2023 00:00,27/08/2023 00:00,P05-2024
,STANSTEAD RECHARGEABLE WORKS,SUPPLIES AND SERVICES,TRADING AC - EXTERNAL PURCHASE,4875,P122130-SERVICE-Midland chandlery items,08/08/2023 00:00,275876,457.41,MI0200,MIDLAND CHANDLERS LIMITED,31/07/2023 00:00,27/08/2023 00:00,P05-2024
,STANSTEAD RECHARGEABLE WORKS,SUPPLIES AND SERVICES,TRADING AC - EXTERNAL PURCHASE,4875,Stanstead-Chandlery stock,08/08/2023 00:00,276220,40.34,MI0200,MIDLAND CHANDLERS LIMITED,31/07/2023 00:00,27/08/2023 00:00,P05-2024
,STANSTEAD RECHARGEABLE WORKS,SUPPLIES AND SERVICES,TRADING AC - EXTERNAL PURCHASE,4875,Stanstead-Chandlery stock,08/08/2023 00:00,276220,1258.34,MI0200,MIDLAND CHANDLERS LIMITED,31/07/2023 00:00,27/08/2023 00:00,P05-2024
,STANSTEAD RECHARGEABLE WORKS,SUPPLIES AND SERVICES,TRADING AC - EXTERNAL PURCHASE,4875,Stanstead-Chandlery stock,08/08/2023 00:00,276220,-1298.68,MI0200,MIDLAND CHANDLERS LIMITED,31/07/2023 00:00,27/08/2023 00:00,P05-2024
,STANSTEAD RECHARGEABLE WORKS,SUPPLIES AND SERVICES,TRADING AC - EXTERNAL PURCHASE,4875,P122734-SERVICE-chandlery stock,08/08/2023 00:00,276220,1298.68,MI0200,MIDLAND CHANDLERS LIMITED,31/07/2023 00:00,27/08/2023 00:00,P05-2024
,STANSTEAD RECHARGEABLE WORKS,SUPPLIES AND SERVICES,TRADING AC - EXTERNAL PURCHASE,4875,P122744-SERVICE-chandlery stock,08/08/2023 00:00,276221,174.06,MI0200,MIDLAND CHANDLERS LIMITED,31/07/2023 00:00,27/08/2023 00:00,P05-2024
,STANSTEAD RECHARGEABLE WORKS,SUPPLIES AND SERVICES,TRADING AC - EXTERNAL PURCHASE,4875,P122737-SERVICE-Bearings,08/08/2023 00:00,276222,24.4,MI0200,MIDLAND CHANDLERS LIMITED,31/07/2023 00:00,27/08/2023 00:00,P05-2024
,STANSTEAD RECHARGEABLE WORKS,SUPPLIES AND SERVICES,TRADING AC - EXTERNAL PURCHASE,4875,P122673-SERVICE-paint,08/08/2023 00:00,276239,54.08,MA0442,MARINE AND INDUSTRIAL LLP,31/07/2023 00:00,27/08/2023 00:00,P05-2024
,STANSTEAD RECHARGEABLE WORKS,SUPPLIES AND SERVICES,TRADING AC - EXTERNAL PURCHASE,4875,P122749-SERVICE-red diesel 2200ltr,08/08/2023 00:00,276250,1716,SP0543,SPEEDY FUELS LIMITED,31/07/2023 00:00,27/08/2023 00:00,P05-2024
,STANSTEAD RECHARGEABLE WORKS,SUPPLIES AND SERVICES,TRADING AC - EXTERNAL PURCHASE,4875,P122257-SERVICE-chandlery stock,08/08/2023 00:00,276256,179.33,MI0200,MIDLAND CHANDLERS LIMITED,31/07/2023 00:00,27/08/2023 00:00,P05-2024
,STANSTEAD RECHARGEABLE WORKS,SUPPLIES AND SERVICES,TRADING AC - EXTERNAL PURCHASE,4875,P122257-SERVICE-chandlery stock,08/08/2023 00:00,276257,8.8,MI0200,MIDLAND CHANDLERS LIMITED,31/07/2023 00:00,27/08/2023 00:00,P05-2024
,STANSTEAD RECHARGEABLE WORKS,SUPPLIES AND SERVICES,TRADING AC - EXTERNAL PURCHASE,4875,P122734-SERVICE-chandlery stock,08/08/2023 00:00,276258,96.64,MI0200,MIDLAND CHANDLERS LIMITED,31/07/2023 00:00,27/08/2023 00:00,P05-2024
,STANSTEAD RECHARGEABLE WORKS,SUPPLIES AND SERVICES,TRADING AC - EXTERNAL PURCHASE,4875,P122626-SERVICE-charcoal & logs,08/08/2023 00:00,276267,275,HA0371,HARTS OF OAK,31/07/2023 00:00,27/08/2023 00:00,P05-2024
,STANSTEAD RECHARGEABLE WORKS,SUPPLIES AND SERVICES,TRADING AC - EXTERNAL PURCHASE,4875,P122406-SERVICE-chandlery stock,08/08/2023 00:00,276284,-499.73,MI0200,MIDLAND CHANDLERS LIMITED,31/07/2023 00:00,27/08/2023 00:00,P05-2024
,STANSTEAD RECHARGEABLE WORKS,SUPPLIES AND SERVICES,TRADING AC - EXTERNAL PURCHASE,4875,P122257-SERVICE-chandlery stock,08/08/2023 00:00,276285,17.9,MI0200,MIDLAND CHANDLERS LIMITED,31/07/2023 00:00,27/08/2023 00:00,P05-2024
,STANSTEAD RECHARGEABLE WORKS,SUPPLIES AND SERVICES,TRADING AC - EXTERNAL PURCHASE,4875,P122257-SERVICE-chandlery stock,08/08/2023 00:00,276306,32.1,MI0200,MIDLAND CHANDLERS LIMITED,31/07/2023 00:00,27/08/2023 00:00,P05-2024
,STANSTEAD RECHARGEABLE WORKS,SUPPLIES AND SERVICES,TRADING AC - EXTERNAL PURCHASE,4875,P122751-SERVICE-gas,14/08/2023 00:00,276417,623,SM0664,KG SMITH & SON,31/07/2023 00:00,27/08/2023 00:00,P05-2024
,STANSTEAD RECHARGEABLE WORKS,SUPPLIES AND SERVICES,TRADING AC - EXTERNAL PURCHASE,4875,P122809-SERVICE-chandlery stock,14/08/2023 00:00,276431,177.34,AS0036,ASAP SUPPLIES,31/07/2023 00:00,27/08/2023 00:00,P05-2024
,STANSTEAD RECHARGEABLE WORKS,SUPPLIES AND SERVICES,TRADING AC - EXTERNAL PURCHASE,4875,P122841-SERVICE-paint,14/08/2023 00:00,276434,689.35,CR0651,CRAFTMASTER PAINTS,31/07/2023 00:00,27/08/2023 00:00,P05-2024
,STANSTEAD RECHARGEABLE WORKS,SUPPLIES AND SERVICES,TRADING AC - EXTERNAL PURCHASE,4875,Stanstead-Chandlery stock,14/08/2023 00:00,276452,1057.19,MI0200,MIDLAND CHANDLERS LIMITED,31/07/2023 00:00,27/08/2023 00:00,P05-2024
,STANSTEAD RECHARGEABLE WORKS,SUPPLIES AND SERVICES,TRADING AC - EXTERNAL PURCHASE,4875,Stanstead-Chandlery stock,14/08/2023 00:00,276452,-1084.63,MI0200,MIDLAND CHANDLERS LIMITED,31/07/2023 00:00,27/08/2023 00:00,P05-2024
,STANSTEAD RECHARGEABLE WORKS,SUPPLIES AND SERVICES,TRADING AC - EXTERNAL PURCHASE,4875,P122839-SERVICE-chandlery stock,14/08/2023 00:00,276452,1084.63,MI0200,MIDLAND CHANDLERS LIMITED,31/07/2023 00:00,27/08/2023 00:00,P05-2024
,STANSTEAD RECHARGEABLE WORKS,SUPPLIES AND SERVICES,TRADING AC - EXTERNAL PURCHASE,4875,Stanstead-Chandlery stock,14/08/2023 00:00,276452,27.44,MI0200,MIDLAND CHANDLERS LIMITED,31/07/2023 00:00,27/08/2023 00:00,P05-2024
,STANSTEAD RECHARGEABLE WORKS,SUPPLIES AND SERVICES,TRADING AC - EXTERNAL PURCHASE,4875,P122836-SERVICE-chandlery stock,14/08/2023 00:00,276453,848.29,AQ0033,AQUAFAX LIMITED,31/07/2023 00:00,27/08/2023 00:00,P05-2024
,STANSTEAD RECHARGEABLE WORKS,SUPPLIES AND SERVICES,TRADING AC - EXTERNAL PURCHASE,4875,P122839-SERVICE-chandlery stock,14/08/2023 00:00,276481,2.84,MI0200,MIDLAND CHANDLERS LIMITED,31/07/2023 00:00,27/08/2023 00:00,P05-2024
,STANSTEAD RECHARGEABLE WORKS,SUPPLIES AND SERVICES,TRADING AC - EXTERNAL PURCHASE,4875,P122839-SERVICE-chandlery stock,14/08/2023 00:00,276482,3.95,MI0200,MIDLAND CHANDLERS LIMITED,31/07/2023 00:00,27/08/2023 00:00,P05-2024
,STANSTEAD RECHARGEABLE WORKS,SUPPLIES AND SERVICES,TRADING AC - EXTERNAL PURCHASE,4875,P122787-SERVICE-ropes,14/08/2023 00:00,276491,408.4,DS0201,DSM GROUP,31/07/2023 00:00,27/08/2023 00:00,P05-2024
,STANSTEAD RECHARGEABLE WORKS,SUPPLIES AND SERVICES,TRADING AC - EXTERNAL PURCHASE,4875,P122848-SERVICE-chandlery stock,14/08/2023 00:00,276508,369.29,CE0510,CENTURION EUROPE LIMITED,31/07/2023 00:00,27/08/2023 00:00,P05-2024
,STANSTEAD RECHARGEABLE WORKS,SUPPLIES AND SERVICES,TRADING AC - EXTERNAL PURCHASE,4875,P122839-SERVICE-chandlery stock,14/08/2023 00:00,276598,7.44,MI0200,MIDLAND CHANDLERS LIMITED,31/07/2023 00:00,27/08/2023 00:00,P05-2024
,STANSTEAD RECHARGEABLE WORKS,SUPPLIES AND SERVICES,TRADING AC - EXTERNAL PURCHASE,4875,P122842-SERVICE-chandlery stock,14/08/2023 00:00,276635,386.46,CA0660,CALFIRE SPARELINE LIMITED,31/07/2023 00:00,27/08/2023 00:00,P05-2024
,STANSTEAD RECHARGEABLE WORKS,SUPPLIES AND SERVICES,TRADING AC - EXTERNAL PURCHASE,4875,P122257-SERVICE-chandlery stock,22/08/2023 00:00,276677,121.78,MI0200,MIDLAND CHANDLERS LIMITED,31/07/2023 00:00,27/08/2023 00:00,P05-2024
,STANSTEAD RECHARGEABLE WORKS,SUPPLIES AND SERVICES,TRADING AC - EXTERNAL PURCHASE,4875,P122944-SERVICE-chandlery stock,22/08/2023 00:00,276687,807.85,AQ0033,AQUAFAX LIMITED,31/07/2023 00:00,27/08/2023 00:00,P05-2024
,STANSTEAD RECHARGEABLE WORKS,SUPPLIES AND SERVICES,TRADING AC - EXTERNAL PURCHASE,4875,P122944-SERVICE-chandlery stock,22/08/2023 00:00,276695,6.23,AQ0033,AQUAFAX LIMITED,31/07/2023 00:00,27/08/2023 00:00,P05-2024
,STANSTEAD RECHARGEABLE WORKS,SUPPLIES AND SERVICES,TRADING AC - EXTERNAL PURCHASE,4875,P122944-SERVICE-chandlery stock,22/08/2023 00:00,276696,13.9,AQ0033,AQUAFAX LIMITED,31/07/2023 00:00,27/08/2023 00:00,P05-2024
,STANSTEAD RECHARGEABLE WORKS,SUPPLIES AND SERVICES,TRADING AC - EXTERNAL PURCHASE,4875,P122787-SERVICE-ropes,23/08/2023 00:00,276845,302.53,DS0201,DSM GROUP,31/07/2023 00:00,27/08/2023 00:00,P05-2024
,STANSTEAD RECHARGEABLE WORKS,SUPPLIES AND SERVICES,TRADING AC - EXTERNAL PURCHASE,4875,P123020-SERVICE-additional costs,27/08/2023 00:00,276896,32.12,CR0651,CRAFTMASTER PAINTS,31/07/2023 00:00,27/08/2023 00:00,P05-2024
,STANSTEAD RECHARGEABLE WORKS,SUPPLIES AND SERVICES,TRADING AC - EXTERNAL PURCHASE,4875,P123020-SERVICE-paint for the chandlery,27/08/2023 00:00,276896,290.49,CR0651,CRAFTMASTER PAINTS,31/07/2023 00:00,27/08/2023 00:00,P05-2024
,LEE VALLEY CAMPSITE,SUPPLIES AND SERVICES,TRADING AC - EXTERNAL PURCHASE,4875,P122773-SERVICE-SLUSH Syrups cups lids straws,08/08/2023 00:00,276268,168.38,SN0697,SNOWSHOCK LTD,31/07/2023 00:00,27/08/2023 00:00,P05-2024
,LEE VALLEY CAMPSITE,SUPPLIES AND SERVICES,TRADING AC - EXTERNAL PURCHASE,4875,"P122975-SERVICE-logs, charcoal , kindling",22/08/2023 00:00,276492,429,LO0473,LOGS DIRECT LTD,31/07/2023 00:00,27/08/2023 00:00,P05-2024
P&V,ALMOST WILD CAMPSITE,SUPPLIES AND SERVICES,TRADING AC - EXTERNAL PURCHASE,4875,P122801-SERVICE-3 Palletts of Logs,14/08/2023 00:00,276420,837,LO0473,LOGS DIRECT LTD,31/07/2023 00:00,27/08/2023 00:00,P05-2024
P&V,ALMOST WILD CAMPSITE,SUPPLIES AND SERVICES,TRADING AC - EXTERNAL PURCHASE,4875,P122976-SERVICE-1 Pallent 2.7kg Lumpwood Charcole,27/08/2023 00:00,276891,511,LO0473,LOGS DIRECT LTD,31/07/2023 00:00,27/08/2023 00:00,P05-2024
,LV LEISURE CENTRE CAMPSITE,SUPPLIES AND SERVICES,TRADING AC - EXTERNAL PURCHASE,4875,P122835-SERVICE-Golf Balls,08/08/2023 00:00,276283,480.2,GR0144,BARRY GRIFFITHS,31/07/2023 00:00,27/08/2023 00:00,P05-2024
,LV LEISURE CENTRE CAMPSITE,SUPPLIES AND SERVICES,TRADING AC - EXTERNAL PURCHASE,4875,Edmonton-coffee supplies,08/08/2023 00:00,276319,362.36,RI0176,RIJO 42 INGREDIENTS LIMITED,31/07/2023 00:00,27/08/2023 00:00,P05-2024
,LV LEISURE CENTRE CAMPSITE,SUPPLIES AND SERVICES,TRADING AC - EXTERNAL PURCHASE,4875,Edmonton-coffee supplies,08/08/2023 00:00,276319,67.5,RI0176,RIJO 42 INGREDIENTS LIMITED,31/07/2023 00:00,27/08/2023 00:00,P05-2024
,LV LEISURE CENTRE CAMPSITE,SUPPLIES AND SERVICES,TRADING AC - EXTERNAL PURCHASE,4875,P122666-SERVICE-coffee supplies,08/08/2023 00:00,276319,429.86,RI0176,RIJO 42 INGREDIENTS LIMITED,31/07/2023 00:00,27/08/2023 00:00,P05-2024
,LV LEISURE CENTRE CAMPSITE,SUPPLIES AND SERVICES,TRADING AC - EXTERNAL PURCHASE,4875,Edmonton-coffee supplies,08/08/2023 00:00,276319,-429.86,RI0176,RIJO 42 INGREDIENTS LIMITED,31/07/2023 00:00,27/08/2023 00:00,P05-2024
,LV LEISURE CENTRE CAMPSITE,SUPPLIES AND SERVICES,TRADING AC - EXTERNAL PURCHASE,4875,P122862-SERVICE-chairs toilet blue,14/08/2023 00:00,276480,168.61,TO0079,TOWSURE PRODUCTS LIMITED,31/07/2023 00:00,27/08/2023 00:00,P05-2024
,LV LEISURE CENTRE CAMPSITE,SUPPLIES AND SERVICES,TRADING AC - EXTERNAL PURCHASE,4875,Edmonton-food/drink,27/08/2023 00:00,276996,67.5,RI0176,RIJO 42 INGREDIENTS LIMITED,31/07/2023 00:00,27/08/2023 00:00,P05-2024
,LV LEISURE CENTRE CAMPSITE,SUPPLIES AND SERVICES,TRADING AC - EXTERNAL PURCHASE,4875,P123089-SERVICE-Coffee supplies,27/08/2023 00:00,276996,429.86,RI0176,RIJO 42 INGREDIENTS LIMITED,31/07/2023 00:00,27/08/2023 00:00,P05-2024
,LV LEISURE CENTRE CAMPSITE,SUPPLIES AND SERVICES,TRADING AC - EXTERNAL PURCHASE,4875,Edmonton-food/drink,27/08/2023 00:00,276996,-429.86,RI0176,RIJO 42 INGREDIENTS LIMITED,31/07/2023 00:00,27/08/2023 00:00,P05-2024
,LV LEISURE CENTRE CAMPSITE,SUPPLIES AND SERVICES,TRADING AC - EXTERNAL PURCHASE,4875,Edmonton-food/drink,27/08/2023 00:00,276996,362.36,RI0176,RIJO 42 INGREDIENTS LIMITED,31/07/2023 00:00,27/08/2023 00:00,P05-2024
,LV LEISURE CENTRE CAMPSITE,SUPPLIES AND SERVICES,TRADING AC - EXTERNAL PURCHASE,4875,P123019-SERVICE-Till rolls,27/08/2023 00:00,277008,72.4,TH0008,JKL SOLUTIONS LTD,31/07/2023 00:00,27/08/2023 00:00,P05-2024
,LV LEISURE CENTRE CAMPSITE,SUPPLIES AND SERVICES,TRADING AC - EXTERNAL PURCHASE,4875,P122993-SERVICE-Ironing board and scissors,27/08/2023 00:00,277009,49.81,TH0008,JKL SOLUTIONS LTD,31/07/2023 00:00,27/08/2023 00:00,P05-2024
,LEE VALLEY CAMPSITE,SUPPLIES AND SERVICES,TRAVEL CARDS,4876,P122772-SERVICE-500 X ADULT TRAVEL CARDS,21/08/2023 00:00,276497,6840,PA0003,TRANSPORT TRADING LIMITED,31/07/2023 00:00,27/08/2023 00:00,P05-2024
,LEE VALLEY CAMPSITE,SUPPLIES AND SERVICES,TRAVEL CARDS,4876,P122772-SERVICE-250 X CHILDREN TRAVEL CARDS,21/08/2023 00:00,276497,1710,PA0003,TRANSPORT TRADING LIMITED,31/07/2023 00:00,27/08/2023 00:00,P05-2024
,LEE VALLEY CAMPSITE,SUPPLIES AND SERVICES,TRAVEL CARDS,4876,P122772-SERVICE-DELIVERY,21/08/2023 00:00,276497,2.5,PA0003,TRANSPORT TRADING LIMITED,31/07/2023 00:00,27/08/2023 00:00,P05-2024
,LEE VALLEY CAMPSITE,SUPPLIES AND SERVICES,TRAVEL CARDS,4876,Sewardstone-Oyster sales,21/08/2023 00:00,276497,-6840,PA0003,TRANSPORT TRADING LIMITED,31/07/2023 00:00,27/08/2023 00:00,P05-2024
,LEE VALLEY CAMPSITE,SUPPLIES AND SERVICES,TRAVEL CARDS,4876,Sewardstone-Oyster sales,21/08/2023 00:00,276497,2563.75,PA0003,TRANSPORT TRADING LIMITED,31/07/2023 00:00,27/08/2023 00:00,P05-2024
,LV LEISURE CENTRE CAMPSITE,SUPPLIES AND SERVICES,TRAVEL CARDS,4876,EDMONTON-OYSTER SALES,21/08/2023 00:00,276497,4276.25,PA0003,TRANSPORT TRADING LIMITED,31/07/2023 00:00,27/08/2023 00:00,P05-2024
,LEE VALLEY CAMPSITE,SUPPLIES AND SERVICES,BOTTLED GAS,4877,P121611-SERVICE-Stock Gas cannisters,08/08/2023 00:00,276160,674.43,FL0147,FLOGAS BRITAIN LIMITED,31/07/2023 00:00,27/08/2023 00:00,P05-2024
,LEE VALLEY CAMPSITE,SUPPLIES AND SERVICES,BOTTLED GAS,4877,P121611-SERVICE-increase value to cover invoice,08/08/2023 00:00,276160,55.12,FL0147,FLOGAS BRITAIN LIMITED,31/07/2023 00:00,27/08/2023 00:00,P05-2024
,LEE VALLEY CAMPSITE,SUPPLIES AND SERVICES,BOTTLED GAS,4877,P122978-SERVICE-Stock - Gas,27/08/2023 00:00,277012,657.07,FL0147,FLOGAS BRITAIN LIMITED,31/07/2023 00:00,27/08/2023 00:00,P05-2024
CEO,CHIEF EXECUTIVE,SUPPLIES AND SERVICES,UNRECONCILED COMPANY CARD EXP,4880,P ANDREWS-CREDIT CARD STATEMENT-AUG 2023,09/08/2023 00:00,276408,902.3,NA0007,NATWEST CARD CENTRE,31/07/2023 00:00,27/08/2023 00:00,P05-2024
P&V,MYDDELTON HOUSE,SUPPLIES AND SERVICES,UNRECONCILED COMPANY CARD EXP,4880,G FLAVIEN-CREDIT CARD STATEMENT-AUG 2023,09/08/2023 00:00,276408,1782.84,NA0007,NATWEST CARD CENTRE,31/07/2023 00:00,27/08/2023 00:00,P05-2024
CEO,PR/COMMUNICATIONS,SUPPLIES AND SERVICES,UNRECONCILED COMPANY CARD EXP,4880,S BROMBERG-CREDIT CARD STATEMENT-AUG 2023,09/08/2023 00:00,276408,2444.69,NA0007,NATWEST CARD CENTRE,31/07/2023 00:00,27/08/2023 00:00,P05-2024
CEO,REGENERATION & PLANNING,SUPPLIES AND SERVICES,UNRECONCILED COMPANY CARD EXP,4880,C MARTIN-CREDIT CARD STATEMENT-AUG 2023,09/08/2023 00:00,276408,1000,NA0007,NATWEST CARD CENTRE,31/07/2023 00:00,27/08/2023 00:00,P05-2024
R&B,DEMOCRATIC REPRESENTATION & MA,SUPPLIES AND SERVICES,UNRECONCILED COMPANY CARD EXP,4880,S BERTSCHIN-CREDIT CARD STATEMENT-AUG 2023,09/08/2023 00:00,276408,37.87,NA0007,NATWEST CARD CENTRE,31/07/2023 00:00,27/08/2023 00:00,P05-2024
R&B,FINANCE & RESOURCES MANAGEMENT,SUPPLIES AND SERVICES,UNRECONCILED COMPANY CARD EXP,4880,L READ-CREDIT CARD STATEMENT-AUG 2023,09/08/2023 00:00,276408,322.5,NA0007,NATWEST CARD CENTRE,31/07/2023 00:00,27/08/2023 00:00,P05-2024
R&B,INFORMATION TECHNOLOGY,SUPPLIES AND SERVICES,UNRECONCILED COMPANY CARD EXP,4880,S CLARK-CREDIT CARD STATEMENT-AUG 2023,09/08/2023 00:00,276408,220.15,NA0007,NATWEST CARD CENTRE,31/07/2023 00:00,27/08/2023 00:00,P05-2024
,LEE VALLEY MARINA SPRINGFIELD,SUPPLIES AND SERVICES,UNRECONCILED COMPANY CARD EXP,4880,T BEAN-CREDIT CARD STATEMENT-AUG 2023,09/08/2023 00:00,276408,44.65,NA0007,NATWEST CARD CENTRE,31/07/2023 00:00,27/08/2023 00:00,P05-2024
,LEE VALLEY MARINA STANSTEAD,SUPPLIES AND SERVICES,UNRECONCILED COMPANY CARD EXP,4880,J MANTON-CREDIT CARD STATEMENT-AUG 2023,09/08/2023 00:00,276408,253.37,NA0007,NATWEST CARD CENTRE,31/07/2023 00:00,27/08/2023 00:00,P05-2024
P&V,LEE VALLEY FARM HOLYFIELDHALL,SUPPLIES AND SERVICES,UNRECONCILED COMPANY CARD EXP,4880,J PAINTER-CREDIT CARD STATEMENT-AUG 2023,09/08/2023 00:00,276408,276.55,NA0007,NATWEST CARD CENTRE,31/07/2023 00:00,27/08/2023 00:00,P05-2024
,LEE VALLEY CAMPSITE,SUPPLIES AND SERVICES,UNRECONCILED COMPANY CARD EXP,4880,C CARTER-CREDIT CARD STATEMENT-AUG 2023,09/08/2023 00:00,276408,4070.52,NA0007,NATWEST CARD CENTRE,31/07/2023 00:00,27/08/2023 00:00,P05-2024
,LEE VALLEY CARAVAN PARK,SUPPLIES AND SERVICES,UNRECONCILED COMPANY CARD EXP,4880,D SNOWDEN-CREDIT CARD STATEMENT-AUG 2023,09/08/2023 00:00,276408,691.74,NA0007,NATWEST CARD CENTRE,31/07/2023 00:00,27/08/2023 00:00,P05-2024
,LEE VALLEY CARAVAN PARK,SUPPLIES AND SERVICES,UNRECONCILED COMPANY CARD EXP,4880,I RUSSELL-CREDIT CARD STATEMENT-AUG 2023,09/08/2023 00:00,276408,4837.02,NA0007,NATWEST CARD CENTRE,31/07/2023 00:00,27/08/2023 00:00,P05-2024
P&V,SOUTH AREA RANGERS,SUPPLIES AND SERVICES,UNRECONCILED COMPANY CARD EXP,4880,G HODDINOTT-CREDIT CARD STATEMENT-AUG 2023,09/08/2023 00:00,276408,36.98,NA0007,NATWEST CARD CENTRE,31/07/2023 00:00,27/08/2023 00:00,P05-2024
P&V,OPERATIONAL MANAGEMENT (L&E),SUPPLIES AND SERVICES,UNRECONCILED COMPANY CARD EXP,4880,J HETHERINGTON-CREDIT CARD STATEMENT-AUG 2023,09/08/2023 00:00,276408,977.23,NA0007,NATWEST CARD CENTRE,31/07/2023 00:00,27/08/2023 00:00,P05-2024
P&V,OPERATIONAL MANAGEMENT (L&E),SUPPLIES AND SERVICES,UNRECONCILED COMPANY CARD EXP,4880,D HUTLEY-CREDIT CARD STATEMENT-AUG 2023,09/08/2023 00:00,276408,170,NA0007,NATWEST CARD CENTRE,31/07/2023 00:00,27/08/2023 00:00,P05-2024
P&V,SPORT AND LEISURE,SUPPLIES AND SERVICES,UNRECONCILED COMPANY CARD EXP,4880,A SACKETT-CREDIT CARD STATEMENT-AUG 2023,09/08/2023 00:00,276408,727.89,NA0007,NATWEST CARD CENTRE,31/07/2023 00:00,27/08/2023 00:00,P05-2024
P&V,EVENTS MANAGEMENT (PR),SUPPLIES AND SERVICES,UNRECONCILED COMPANY CARD EXP,4880,S STONE-CREDIT CARD STATEMENT-AUG 2023,09/08/2023 00:00,276408,2867.98,NA0007,NATWEST CARD CENTRE,31/07/2023 00:00,27/08/2023 00:00,P05-2024
,LV LEISURE CENTRE CAMPSITE,SUPPLIES AND SERVICES,UNRECONCILED COMPANY CARD EXP,4880,L SMITH-CREDIT CARD STATEMENT-AUG 2023,09/08/2023 00:00,276408,1146.91,NA0007,NATWEST CARD CENTRE,31/07/2023 00:00,27/08/2023 00:00,P05-2024
CEO,COMMERCIAL ACCOMMODATION,SUPPLIES AND SERVICES,OTHER EXPENSES,4899,P121556-SERVICE-Land Registry Fees,08/08/2023 00:00,276432,6,HM0032,HM LAND REGISTRY,31/07/2023 00:00,27/08/2023 00:00,P05-2024
CEO,COMMERCIAL ACCOMMODATION,SUPPLIES AND SERVICES,OTHER EXPENSES,4899,P121556-SERVICE-Land Registry Fees,15/08/2023 00:00,276623,9,HM0032,HM LAND REGISTRY,31/07/2023 00:00,27/08/2023 00:00,P05-2024
R&B,FINANCE,SUPPLIES AND SERVICES,OTHER EXPENSES,4899,VAT-14/04/23-02/05/23,16/08/2023 00:00,276673,0,KE0104,KENNEDYS,31/07/2023 00:00,27/08/2023 00:00,P05-2024
P&V,LEE VALLEY FARM HOLYFIELDHALL,SUPPLIES AND SERVICES,OTHER EXPENSES,4899,P122948-SERVICE-Paint/Marker Board/Terror Kite/Hand Cleaner,15/08/2023 00:00,276252,146.39,AG0440,AGRI-LINC LIMITED,31/07/2023 00:00,27/08/2023 00:00,P05-2024
,LEE VALLEY CAMPSITE,SUPPLIES AND SERVICES,OTHER EXPENSES,4899,P121707-SERVICE-Site Stocktakes apr23-mar24,08/08/2023 00:00,276291,165,VE0038,VENNERS LTD,31/07/2023 00:00,27/08/2023 00:00,P05-2024
,LEE VALLEY CAMPSITE,SUPPLIES AND SERVICES,OTHER EXPENSES,4899,P122878-SERVICE-SC H&S EAP,15/08/2023 00:00,276515,800,BE0656,BERZINS ARCHITECTS,31/07/2023 00:00,27/08/2023 00:00,P05-2024
,LEE VALLEY CARAVAN PARK,SUPPLIES AND SERVICES,OTHER EXPENSES,4899,P122878-SERVICE-DW H&S EAP,15/08/2023 00:00,276515,800,BE0656,BERZINS ARCHITECTS,31/07/2023 00:00,27/08/2023 00:00,P05-2024
P&V,MYDDELTON HOUSE GARDENS,SUPPLIES AND SERVICES,OTHER EXPENSES,4899,P122817-SERVICE-visit england certificate,08/08/2023 00:00,275889,268.37,VI0109,VISIT ENGLAND ASSESSMENT SERVICES,31/07/2023 00:00,27/08/2023 00:00,P05-2024
P&V,SOUTH AREA RANGERS,SUPPLIES AND SERVICES,OTHER EXPENSES,4899,P122688-SERVICE-Buffet Lunch for 19 People - Wednesday 26/07/,14/08/2023 00:00,276581,132.05,SH0256,SHARRONS EVENT CATERING COMPANY LTD,31/07/2023 00:00,27/08/2023 00:00,P05-2024
P&V,SOUTH AREA RANGERS,SUPPLIES AND SERVICES,OTHER EXPENSES,4899,P123011-SERVICE-2x Tickets London in Bloom Awards Ceremony,27/08/2023 00:00,276894,40,LO0329,LONDON IN BLOOM,31/07/2023 00:00,27/08/2023 00:00,P05-2024
P&V,RIVER LEE COUNTRY PARK,SUPPLIES AND SERVICES,OTHER EXPENSES,4899,P122961-SERVICE-Membership of ParkHerts 2023/24,22/08/2023 00:00,276664,150,NO0229,NORTH HERTS COUNCIL,31/07/2023 00:00,27/08/2023 00:00,P05-2024
P&V,COMMUNITY ACCESS FUND,SUPPLIES AND SERVICES,OTHER EXPENSES,4899,P122804-SERVICE-CAF WWC 2/8/23 Ninefields Youth group,23/08/2023 00:00,276321,1080,GR0097,GREENWICH LEISURE LTD,31/07/2023 00:00,27/08/2023 00:00,P05-2024
P&V,COMMUNITY ACCESS FUND,SUPPLIES AND SERVICES,OTHER EXPENSES,4899,"P122962-SERVICE-Water wipe out, SUP, raft building",23/08/2023 00:00,276688,192,GR0097,GREENWICH LEISURE LTD,31/07/2023 00:00,27/08/2023 00:00,P05-2024
P&V,COMMUNITY ACCESS FUND,SUPPLIES AND SERVICES,OTHER EXPENSES,4899,"P122962-SERVICE-Water wipe out, SUP, raft building",23/08/2023 00:00,276689,192,GR0097,GREENWICH LEISURE LTD,31/07/2023 00:00,27/08/2023 00:00,P05-2024
P&V,COMMUNITY ACCESS FUND,SUPPLIES AND SERVICES,OTHER EXPENSES,4899,"P122962-SERVICE-Water wipe out, SUP, raft building",23/08/2023 00:00,276690,348,GR0097,GREENWICH LEISURE LTD,31/07/2023 00:00,27/08/2023 00:00,P05-2024
P&V,COMMUNITY ACCESS FUND,SUPPLIES AND SERVICES,OTHER EXPENSES,4899,P123000-SERVICE-CAF VeloPark Q1 2023,27/08/2023 00:00,277007,600,GR0097,GREENWICH LEISURE LTD,31/07/2023 00:00,27/08/2023 00:00,P05-2024
,LV LEISURE CENTRE CAMPSITE,SUPPLIES AND SERVICES,OTHER EXPENSES,4899,P122834-SERVICE-Stock take,08/08/2023 00:00,276292,165,VE0038,VENNERS LTD,31/07/2023 00:00,27/08/2023 00:00,P05-2024
,LV LEISURE CENTRE CAMPSITE,SUPPLIES AND SERVICES,OTHER EXPENSES,4899,P122878-SERVICE-EC H&S EAP,15/08/2023 00:00,276515,800,BE0656,BERZINS ARCHITECTS,31/07/2023 00:00,27/08/2023 00:00,P05-2024
,LV LEISURE CENTRE GOLF COURSE,SUPPLIES AND SERVICES,OTHER EXPENSES,4899,P122878-SERVICE-GOLF H&S EAP,15/08/2023 00:00,276515,800,BE0656,BERZINS ARCHITECTS,31/07/2023 00:00,27/08/2023 00:00,P05-2024
P&V,AWARDS AND ACCREDITATIONS,SUPPLIES AND SERVICES,OTHER EXPENSES,4899,P121233-SERVICE-WWC Quest assessment,22/08/2023 00:00,276323,1575,4G0455,4GLOBAL CONSULTING LIMITED,31/07/2023 00:00,27/08/2023 00:00,P05-2024
P&V,AWARDS AND ACCREDITATIONS,SUPPLIES AND SERVICES,OTHER EXPENSES,4899,P123035-SERVICE-Mystery visits Velo & HTC 2/8/23,27/08/2023 00:00,276489,610,RI0053,RIGHT DIRECTIONS (MANAGEMENT) LTD,31/07/2023 00:00,27/08/2023 00:00,P05-2024
P&V,AWARDS AND ACCREDITATIONS,SUPPLIES AND SERVICES,OTHER EXPENSES,4899,P122960-SERVICE-Green flag award ceremony 2023,22/08/2023 00:00,276664,50,NO0229,NORTH HERTS COUNCIL,31/07/2023 00:00,27/08/2023 00:00,P05-2024
P&V,S106 PROJECTS,S106 EXPENDITURE (REVENUE),S106 EXPENDITURE (REVENUE),4985,P115733-SERVICE-Designs for Holyfield Bat Hibernacula,22/08/2023 00:00,276619,1000,SO0610,SOUND ECOLOGY,31/07/2023 00:00,27/08/2023 00:00,P05-2024
P&V,"ASSET PROTECTION, MAINT, DEVEL",CAPITAL EXPENDITURE,CAPITAL EXPENDITURE,4990,"P122753-SERVICE-2 Nr 4"" x4"" c 6.2mm to be delivered to WWC",08/08/2023 00:00,276309,930,RB0221,R 'n' B ENGINEERING LTD,31/07/2023 00:00,27/08/2023 00:00,P05-2024
P&V,"ASSET PROTECTION, MAINT, DEVEL",CAPITAL EXPENDITURE,CAPITAL EXPENDITURE,4990,P122840-SERVICE-Stanst4ead Marina installtion of  95mm insula,24/08/2023 00:00,276582,9000,CO0186,CONTACT ROLLERS SHUTTERS LTD,31/07/2023 00:00,27/08/2023 00:00,P05-2024
P&V,"ASSET PROTECTION, MAINT, DEVEL",CAPITAL EXPENDITURE,CAPITAL EXPENDITURE,4990,P122840-SERVICE-Stanst4ead Marina installtion of  95mm insula,14/08/2023 00:00,276583,6000,CO0186,CONTACT ROLLERS SHUTTERS LTD,31/07/2023 00:00,27/08/2023 00:00,P05-2024
P&V,"ASSET PROTECTION, MAINT, DEVEL",CAPITAL EXPENDITURE,CAPITAL EXPENDITURE,4990,P122197-SERVICE-Road/Path Repairs at Sewatrdstone Campsite,14/08/2023 00:00,276601,3587.99,HE0297,HENDERSON & TAYLOR (PUBLIC WORKS LIMITED),31/07/2023 00:00,27/08/2023 00:00,P05-2024
P&V,"ASSET PROTECTION, MAINT, DEVEL",CAPITAL EXPENDITURE,CAPITAL EXPENDITURE,4990,P122197-SERVICE-Road/Path Repairs at Sewatrdstone Campsite,14/08/2023 00:00,276601,5290.99,HE0297,HENDERSON & TAYLOR (PUBLIC WORKS LIMITED),31/07/2023 00:00,27/08/2023 00:00,P05-2024
P&V,"ASSET PROTECTION, MAINT, DEVEL",CAPITAL EXPENDITURE,CAPITAL EXPENDITURE,4990,P122173-SERVICE-Footpath Repair - Waterworks Tarmac Footway,14/08/2023 00:00,276602,4516.45,HE0297,HENDERSON & TAYLOR (PUBLIC WORKS LIMITED),31/07/2023 00:00,27/08/2023 00:00,P05-2024
P&V,"ASSET PROTECTION, MAINT, DEVEL",CAPITAL EXPENDITURE,CAPITAL EXPENDITURE,4990,P122173-SERVICE-Footpath Repair - Waterworks Tarmac Footway,14/08/2023 00:00,276602,1860.73,HE0297,HENDERSON & TAYLOR (PUBLIC WORKS LIMITED),31/07/2023 00:00,27/08/2023 00:00,P05-2024
P&V,"ASSET PROTECTION, MAINT, DEVEL",CAPITAL EXPENDITURE,CAPITAL EXPENDITURE,4990,P122171-SERVICE-Footpath Repair - Tottenham Marshes Car Park,27/08/2023 00:00,276603,1650.95,HE0297,HENDERSON & TAYLOR (PUBLIC WORKS LIMITED),31/07/2023 00:00,27/08/2023 00:00,P05-2024
P&V,"ASSET PROTECTION, MAINT, DEVEL",CAPITAL EXPENDITURE,CAPITAL EXPENDITURE,4990,P122171-SERVICE-Additional Works,27/08/2023 00:00,276603,302,HE0297,HENDERSON & TAYLOR (PUBLIC WORKS LIMITED),31/07/2023 00:00,27/08/2023 00:00,P05-2024
P&V,"ASSET PROTECTION, MAINT, DEVEL",CAPITAL EXPENDITURE,CAPITAL EXPENDITURE,4990,P122172-SERVICE-Footpath Repair - Tottenham Marshes by East H,14/08/2023 00:00,276604,1043.45,HE0297,HENDERSON & TAYLOR (PUBLIC WORKS LIMITED),31/07/2023 00:00,27/08/2023 00:00,P05-2024
P&V,"ASSET PROTECTION, MAINT, DEVEL",CAPITAL EXPENDITURE,CAPITAL EXPENDITURE,4990,P123018-SERVICE-LVAC - isolate and disconnect 4 x external li,22/08/2023 00:00,276607,218,BR0018,BRADSHAW ELECTRICAL LIMITED,31/07/2023 00:00,27/08/2023 00:00,P05-2024
P&V,"ASSET PROTECTION, MAINT, DEVEL",CAPITAL EXPENDITURE,CAPITAL EXPENDITURE,4990,P123017-SERVICE-LVAC - rejoin and extend disconnected cables,22/08/2023 00:00,276608,740,BR0018,BRADSHAW ELECTRICAL LIMITED,31/07/2023 00:00,27/08/2023 00:00,P05-2024
P&V,"ASSET PROTECTION, MAINT, DEVEL",CAPITAL EXPENDITURE,CAPITAL EXPENDITURE,4990,P122902-SERVICE-Repairs to the North ranger base door,16/08/2023 00:00,276622,125,TO0639,TOWNS-END DOUBLE GLAZING LTD,31/07/2023 00:00,27/08/2023 00:00,P05-2024
P&V,"ASSET PROTECTION, MAINT, DEVEL",CAPITAL EXPENDITURE,CAPITAL EXPENDITURE,4990,IC-install sign & cobblestones,22/08/2023 00:00,276852,900,MO0041,CAPSER,31/07/2023 00:00,27/08/2023 00:00,P05-2024
P&V,"ASSET PROTECTION, MAINT, DEVEL",CAPITAL EXPENDITURE,CAPITAL EXPENDITURE,4990,IC-install sign & cobblestones,22/08/2023 00:00,276852,-1150,MO0041,CAPSER,31/07/2023 00:00,27/08/2023 00:00,P05-2024
P&V,"ASSET PROTECTION, MAINT, DEVEL",CAPITAL EXPENDITURE,CAPITAL EXPENDITURE,4990,P122925-SERVICE-Ice Centre - Install sign and cobble stones,22/08/2023 00:00,276852,1150,MO0041,CAPSER,31/07/2023 00:00,27/08/2023 00:00,P05-2024
P&V,"ASSET PROTECTION, MAINT, DEVEL",CAPITAL EXPENDITURE,CAPITAL EXPENDITURE,4990,IC-install sign & cobblestones,22/08/2023 00:00,276852,250,MO0041,CAPSER,31/07/2023 00:00,27/08/2023 00:00,P05-2024
P&V,"ASSET PROTECTION, MAINT, DEVEL",CAPITAL EXPENDITURE,CAPITAL EXPENDITURE,4990,P122728-SERVICE-LVAC High volume combination tanker,27/08/2023 00:00,276881,1679.5,CO0550,CONVERT WATER LTD,31/07/2023 00:00,27/08/2023 00:00,P05-2024
R&B,INFORMATION TECHNOLOGY,CAPITAL EXPENDITURE,CAPITAL EXPENDITURE,4990,P118194-SERVICE-Finance System Upgrade - Implementation proje,08/08/2023 00:00,276297,1578.9,CE0021,ADVANCED BUSINESS SOLUTIONS,31/07/2023 00:00,27/08/2023 00:00,P05-2024
R&B,INFORMATION TECHNOLOGY,CAPITAL EXPENDITURE,CAPITAL EXPENDITURE,4990,P122813-SERVICE-Ubiquiti USW-48-PoE UniFi 48-Port Cloud Manag,09/08/2023 00:00,276421,459.53,BR0650,BROADBANDBUYER.COM,31/07/2023 00:00,27/08/2023 00:00,P05-2024
R&B,INFORMATION TECHNOLOGY,CAPITAL EXPENDITURE,CAPITAL EXPENDITURE,4990,P122813-SERVICE-NETGEAR GS728TPv2 24-Port Smart Managed Rackm,09/08/2023 00:00,276421,274.99,BR0650,BROADBANDBUYER.COM,31/07/2023 00:00,27/08/2023 00:00,P05-2024
R&B,INFORMATION TECHNOLOGY,CAPITAL EXPENDITURE,CAPITAL EXPENDITURE,4990,P122880-SERVICE-Delivery,15/08/2023 00:00,276512,6,BR0650,BROADBANDBUYER.COM,31/07/2023 00:00,27/08/2023 00:00,P05-2024
R&B,INFORMATION TECHNOLOGY,CAPITAL EXPENDITURE,CAPITAL EXPENDITURE,4990,P122880-SERVICE-Bracket - 5ft Fixed  J-Pole Antenna Wall Moun,15/08/2023 00:00,276512,76.08,BR0650,BROADBANDBUYER.COM,31/07/2023 00:00,27/08/2023 00:00,P05-2024
R&B,INFORMATION TECHNOLOGY,CAPITAL EXPENDITURE,CAPITAL EXPENDITURE,4990,P122893-SERVICE-Cabling works Sewardstone,22/08/2023 00:00,276682,650,JP0183,JPH CABLING SERVICES,31/07/2023 00:00,27/08/2023 00:00,P05-2024
,LEE VALLEY CAMPSITE,CAPITAL EXPENDITURE,CAPITAL EXPENDITURE,4990,P122609-SERVICE-Relocation of washing machine,09/08/2023 00:00,276026,330,SO0400,SOUTHERN GREEN SERVICES LIMITED,31/07/2023 00:00,27/08/2023 00:00,P05-2024
,LEE VALLEY CAMPSITE,CAPITAL EXPENDITURE,CAPITAL EXPENDITURE,4990,P122609-SERVICE-Plumbing upgrades,27/08/2023 00:00,276797,590,SO0400,SOUTHERN GREEN SERVICES LIMITED,31/07/2023 00:00,27/08/2023 00:00,P05-2024
,LEE VALLEY CAMPSITE,CAPITAL EXPENDITURE,CAPITAL EXPENDITURE,4990,P122609-SERVICE-Plumbing upgrades,27/08/2023 00:00,276835,-590,SO0400,SOUTHERN GREEN SERVICES LIMITED,31/07/2023 00:00,27/08/2023 00:00,P05-2024
P&V,BIODIVERSITY ACTION PLAN,CAPITAL EXPENDITURE,CAPITAL EXPENDITURE,4990,P122988-SERVICE-Contribution to Herts Water Vole Project 2023,27/08/2023 00:00,276868,2750,HE0275,HERTS & MIDDLESEX WILDLIFE TRUST,31/07/2023 00:00,27/08/2023 00:00,P05-2024
CEO,PR/COMMUNICATIONS,THIRD PARTY PAYMENTS,CONSULTANTS (GENERAL),5110,P121681-SERVICE-Communications Support - LVRPA Corporate,27/08/2023 00:00,276479,3000,LO0024,LONDON COMMUNICATIONS AGENCY LTD,31/07/2023 00:00,27/08/2023 00:00,P05-2024
CEO,PROPERTY,THIRD PARTY PAYMENTS,CONSULTANTS (GENERAL),5110,P122852-SERVICE-Area 4 Marketing,27/08/2023 00:00,275053,355,MO0036,MONTAGU EVANS LLP,31/07/2023 00:00,27/08/2023 00:00,P05-2024
P&V,"ASSET PROTECTION, MAINT, DEVEL",THIRD PARTY PAYMENTS,CONSULTANTS (GENERAL),5110,P122909-SERVICE-Riding Centre,16/08/2023 00:00,276615,525,LI0432,LIFE ENVIRONMENTAL SERVICES LTD,31/07/2023 00:00,27/08/2023 00:00,P05-2024
R&B,FINANCE & RESOURCES MANAGEMENT,THIRD PARTY PAYMENTS,CONSULTANTS (GENERAL),5110,P122810-SERVICE-Quarterly helpline 1/7/23 to 30/9/23,09/08/2023 00:00,276253,800,KP0010,KPMG TAX ADVISERS,31/07/2023 00:00,27/08/2023 00:00,P05-2024
R&B,INTERNAL AUDIT/HEALTH & SAFETY,THIRD PARTY PAYMENTS,CONSULTANTS (GENERAL),5110,P122951-SERVICE-Professional Services,16/08/2023 00:00,276605,1660,CR0543,CROYDON CORPORATE DEBT RECOVERY SERVICE,31/07/2023 00:00,27/08/2023 00:00,P05-2024
CEO,LEGAL SERVICES,THIRD PARTY PAYMENTS,CONSULTANTS (GENERAL),5110,P122943-SERVICE-East Wing North - LVAC Advise,15/08/2023 00:00,276641,963.7,WO0344,WOMBLE BOND DICKINSON (UK) LLP,31/07/2023 00:00,27/08/2023 00:00,P05-2024
R&B,INTERNAL AUDIT/HEALTH & SAFETY,THIRD PARTY PAYMENTS,CONSULTANTS (HEALTH & SAFETY),5123,P121430-SERVICE-Annual H&S contract April - October 2023,22/08/2023 00:00,276870,11458.33,RI0053,RIGHT DIRECTIONS (MANAGEMENT) LTD,31/07/2023 00:00,27/08/2023 00:00,P05-2024
R&B,BALANCE SHEET (AUTHORITY),CREDITORS,EMPLOYEES INCOME TAX,6701,Paye,16/08/2023 00:00,276628,60004.34,HM0368,HMRC,31/07/2023 00:00,27/08/2023 00:00,P05-2024
R&B,BALANCE SHEET (AUTHORITY),CREDITORS,EMPLOYEES NATIONAL INSURANCE,6702,Paye,16/08/2023 00:00,276628,27496.04,HM0368,HMRC,31/07/2023 00:00,27/08/2023 00:00,P05-2024
R&B,BALANCE SHEET (AUTHORITY),CREDITORS,EMPLOYERS NATIONAL INSURANCE,6704,Paye,16/08/2023 00:00,276628,43130.33,HM0368,HMRC,31/07/2023 00:00,27/08/2023 00:00,P05-2024
R&B,BALANCE SHEET (AUTHORITY),CREDITORS,EMPLOYEES PENSION LGPS,6706,EMPLOYEE CONTRIBUTIONS,16/08/2023 00:00,276629,27309.62,LO0334,LONDON PENSION FUND OPERATIONAL ACCOUNT,31/07/2023 00:00,27/08/2023 00:00,P05-2024
R&B,BALANCE SHEET (AUTHORITY),CREDITORS,EMPLOYEES PENSION LGPS,6706,AVC CONTRIBUTIONS,16/08/2023 00:00,276630,125,LO0455,LOCAL GOVERNMENT AVC DEPARTMENT,31/07/2023 00:00,27/08/2023 00:00,P05-2024
R&B,BALANCE SHEET (AUTHORITY),CREDITORS,EMPLOYERS PENSION LGPS,6707,EMPLOYER CONTRIBUTIONS,16/08/2023 00:00,276629,52264.08,LO0334,LONDON PENSION FUND OPERATIONAL ACCOUNT,31/07/2023 00:00,27/08/2023 00:00,P05-2024
R&B,BALANCE SHEET (AUTHORITY),CREDITORS,EMPLOYEES STUDENT LOANS,6709,Paye,16/08/2023 00:00,276628,1438,HM0368,HMRC,31/07/2023 00:00,27/08/2023 00:00,P05-2024
R&B,BALANCE SHEET (AUTHORITY),CREDITORS,EMPLOYEES AEO/DEO,6710,Earning deductions,16/08/2023 00:00,276627,147.79,HM0464,HMCTS- LONDON COLLECTION & COMPLIANCE,31/07/2023 00:00,27/08/2023 00:00,P05-2024
R&B,BALANCE SHEET (AUTHORITY),CREDITORS,EMPLOYEES UNION SUBSCRIPTIONS,6711,MEMBERSHIP FEES,16/08/2023 00:00,276631,57,UN0002,UNISON Greater London Region,31/07/2023 00:00,27/08/2023 00:00,P05-2024
R&B,BALANCE SHEET (AUTHORITY),CREDITORS,CONSTRUCTION INDUSTRY SCHEME,6721,CAPSER,02/08/2023 00:00,276370,-415,MO0041,CAPSER,31/07/2023 00:00,27/08/2023 00:00,P05-2024
R&B,BALANCE SHEET (AUTHORITY),CREDITORS,CONSTRUCTION INDUSTRY SCHEME,6721,R G JOYCE,09/08/2023 00:00,276546,-120,JO0019,R G JOYCE,31/07/2023 00:00,27/08/2023 00:00,P05-2024
R&B,BALANCE SHEET (AUTHORITY),CREDITORS,CONSTRUCTION INDUSTRY SCHEME,6721,CAPSER,09/08/2023 00:00,276555,-140,MO0041,CAPSER,31/07/2023 00:00,27/08/2023 00:00,P05-2024
R&B,BALANCE SHEET (AUTHORITY),CREDITORS,CONSTRUCTION INDUSTRY SCHEME,6721,06/07/23-05/08/23 KENDALL,14/08/2023 00:00,276611,407.3,IN0016,INLAND REVENUE ONLY 948/L1005,31/07/2023 00:00,27/08/2023 00:00,P05-2024
R&B,BALANCE SHEET (AUTHORITY),CREDITORS,CONSTRUCTION INDUSTRY SCHEME,6721,06/07/23-05/08/23 JOYCE,14/08/2023 00:00,276611,422,IN0016,INLAND REVENUE ONLY 948/L1005,31/07/2023 00:00,27/08/2023 00:00,P05-2024
R&B,BALANCE SHEET (AUTHORITY),CREDITORS,CONSTRUCTION INDUSTRY SCHEME,6721,06/07/23-05/08/23 CASPER,14/08/2023 00:00,276611,415,IN0016,INLAND REVENUE ONLY 948/L1005,31/07/2023 00:00,27/08/2023 00:00,P05-2024
R&B,BALANCE SHEET (AUTHORITY),CREDITORS,CONSTRUCTION INDUSTRY SCHEME,6721,CAPSER,23/08/2023 00:00,276966,-50,MO0041,CAPSER,31/07/2023 00:00,27/08/2023 00:00,P05-2024
R&B,BALANCE SHEET (AUTHORITY),CREDITORS,ADVANCED INCOME (LSC/GLL),6727,LV Gift vouchers PRE-Velo/WWC/RC,27/08/2023 00:00,276693,3810,GR0097,GREENWICH LEISURE LTD,31/07/2023 00:00,27/08/2023 00:00,P05-2024
R&B,BALANCE SHEET (AUTHORITY),CL SUSPENSE,INSURANCE SUSPENSE,6861,Period- May23 to Sept 23-Travellers,16/08/2023 00:00,276668,1120.87,MA0012,MARSH UK  LTD,31/07/2023 00:00,27/08/2023 00:00,P05-2024
R&B,ASSET MANAGEMENT REVENUE ACCT,CAPITAL FINANCING COSTS,BORROWING BROKERAGE FEES,6966,TULLETT PREBON (EUROPE) LIMITE,15/08/2023 00:00,276640,9986.3,TU0637,TULLETT PREBON (EUROPE) LIMITED,31/07/2023 00:00,27/08/2023 00:00,P05-2024
P&V,CAR PARK INCOME,INCOME,CAR PARKING INCOME,9730,P122814-SERVICE-P&D Recharge OM&M - Jul 2023,09/08/2023 00:00,276287,3.24,PA0372,PARKINGEYE LIMITED,31/07/2023 00:00,27/08/2023 00:00,P05-2024
P&V,CAR PARK INCOME,INCOME,CAR PARKING INCOME,9730,P122814-SERVICE-P&D Recharge GPP - Jul 2023,09/08/2023 00:00,276287,34.32,PA0372,PARKINGEYE LIMITED,31/07/2023 00:00,27/08/2023 00:00,P05-2024
P&V,CAR PARK INCOME,INCOME,CAR PARKING INCOME,9730,P122814-SERVICE-P&D Recharge CMM - Jul 2023,09/08/2023 00:00,276287,6.9,PA0372,PARKINGEYE LIMITED,31/07/2023 00:00,27/08/2023 00:00,P05-2024
P&V,CAR PARK INCOME,INCOME,CAR PARKING INCOME,9730,P122814-SERVICE-P&D Recharge FG - Jul 2023,09/08/2023 00:00,276287,28.32,PA0372,PARKINGEYE LIMITED,31/07/2023 00:00,27/08/2023 00:00,P05-2024
P&V,CAR PARK INCOME,INCOME,CAR PARKING INCOME,9730,P122814-SERVICE-P&D Recharge Pindar - Jul 2023,09/08/2023 00:00,276287,39.9,PA0372,PARKINGEYE LIMITED,31/07/2023 00:00,27/08/2023 00:00,P05-2024
P&V,CAR PARK INCOME,INCOME,CAR PARKING INCOME,9730,P122814-SERVICE-P&D Recharge WAG - Jul 2023,09/08/2023 00:00,276287,29.76,PA0372,PARKINGEYE LIMITED,31/07/2023 00:00,27/08/2023 00:00,P05-2024
P&V,CAR PARK INCOME,INCOME,CAR PARKING INCOME,9730,P122814-SERVICE-P&D Recharge CA110656 - Jul 2023,09/08/2023 00:00,276287,24.54,PA0372,PARKINGEYE LIMITED,31/07/2023 00:00,27/08/2023 00:00,P05-2024
P&V,CAR PARK INCOME,INCOME,CAR PARKING INCOME,9730,P122814-SERVICE-Paid Parking Tickets Used - GPP - Jul 2023,09/08/2023 00:00,276311,3.59,PA0372,PARKINGEYE LIMITED,31/07/2023 00:00,27/08/2023 00:00,P05-2024
P&V,CAR PARK INCOME,INCOME,CAR PARKING INCOME,9730,P122814-SERVICE-Paid Parking Tickets Used - OM&M - Jul 2023,09/08/2023 00:00,276311,5.77,PA0372,PARKINGEYE LIMITED,31/07/2023 00:00,27/08/2023 00:00,P05-2024
P&V,CAR PARK INCOME,INCOME,CAR PARKING INCOME,9730,P122814-SERVICE-Paid Parking Tickets Used - WAG - Jul 2023,09/08/2023 00:00,276311,3,PA0372,PARKINGEYE LIMITED,31/07/2023 00:00,27/08/2023 00:00,P05-2024
P&V,CAR PARK INCOME,INCOME,CAR PARKING INCOME,9730,P122814-SERVICE-Paid Parking Tickets Used - Pindar - Jul 2023,09/08/2023 00:00,276311,4.2,PA0372,PARKINGEYE LIMITED,31/07/2023 00:00,27/08/2023 00:00,P05-2024
P&V,CAR PARK INCOME,INCOME,CAR PARKING INCOME,9730,P122814-SERVICE-Paid Parking Tickets Used - Clayton- Jul 2023,09/08/2023 00:00,276311,0.23,PA0372,PARKINGEYE LIMITED,31/07/2023 00:00,27/08/2023 00:00,P05-2024
P&V,CAR PARK INCOME,INCOME,CAR PARKING INCOME,9730,P122814-SERVICE-Paid Parking Tickets Used - FG - Jul 2023,09/08/2023 00:00,276311,2.95,PA0372,PARKINGEYE LIMITED,31/07/2023 00:00,27/08/2023 00:00,P05-2024
P&V,CAR PARK INCOME,INCOME,CAR PARKING INCOME,9730,P122814-SERVICE-Paid Parking Tickets Used - CMM - Jul 2023,09/08/2023 00:00,276311,0.71,PA0372,PARKINGEYE LIMITED,31/07/2023 00:00,27/08/2023 00:00,P05-2024
P&V,CAR PARK INCOME,INCOME,CAR PARKING INCOME,9730,Pindar-PCN July23,08/08/2023 00:00,276312,-152.65,PA0372,PARKINGEYE LIMITED,31/07/2023 00:00,27/08/2023 00:00,P05-2024
P&V,CAR PARK INCOME,INCOME,CAR PARKING INCOME,9730,Cornmill Meadows-PCN July 23,08/08/2023 00:00,276313,-27.63,PA0372,PARKINGEYE LIMITED,31/07/2023 00:00,27/08/2023 00:00,P05-2024
P&V,CAR PARK INCOME,INCOME,CAR PARKING INCOME,9730,Clayton Hill-PCN July23,08/08/2023 00:00,276314,-52.63,PA0372,PARKINGEYE LIMITED,31/07/2023 00:00,27/08/2023 00:00,P05-2024
P&V,CAR PARK INCOME,INCOME,CAR PARKING INCOME,9730,Gunpowder-PCN July23,08/08/2023 00:00,276315,-110.25,PA0372,PARKINGEYE LIMITED,31/07/2023 00:00,27/08/2023 00:00,P05-2024
P&V,CAR PARK INCOME,INCOME,CAR PARKING INCOME,9730,Waltham Abbey-PCN July 23,08/08/2023 00:00,276316,-81.04,PA0372,PARKINGEYE LIMITED,31/07/2023 00:00,27/08/2023 00:00,P05-2024
P&V,CAR PARK INCOME,INCOME,CAR PARKING INCOME,9730,Fishers Green-PCn July23,08/08/2023 00:00,276317,-60.88,PA0372,PARKINGEYE LIMITED,31/07/2023 00:00,27/08/2023 00:00,P05-2024
P&V,CAR PARK INCOME,INCOME,CAR PARKING INCOME,9730,Brox Old Mill- PCN July 23,08/08/2023 00:00,276318,-85.88,PA0372,PARKINGEYE LIMITED,31/07/2023 00:00,27/08/2023 00:00,P05-2024
P&V,CAR PARK INCOME,INCOME,CAR PARKING INCOME,9730,Parking-Pay by Phone -July23,08/08/2023 00:00,276395,313.28,PA0372,PARKINGEYE LIMITED,31/07/2023 00:00,27/08/2023 00:00,P05-2024
P&V,CAR PARK INCOME,INCOME,CAR PARKING INCOME,9730,Parking-Pay by Phone -July23,08/08/2023 00:00,276395,-5402.76,PA0372,PARKINGEYE LIMITED,31/07/2023 00:00,27/08/2023 00:00,P05-2024
P&V,CAR PARK INCOME,INCOME,CAR PARKING INCOME,9730,Convenience Fee,22/08/2023 00:00,276834,-207.59,PA0372,PARKINGEYE LIMITED,31/07/2023 00:00,27/08/2023 00:00,P05-2024
CEO,MAJOR EVENTS,INCOME,OTHER INCOME,9950,P122743-SERVICE-WWC Venue hire fee,08/08/2023 00:00,276259,32685,GR0097,GREENWICH LEISURE LTD,31/07/2023 00:00,27/08/2023 00:00,P05-2024
